﻿fiscal_year,invoice_date,invoice_number,invoice_amount,payee,payment_date,payment_number,agency,expenditure_type,expenditure_category,spend_category,cost_center,project,program,grant,fund,financing_source,region,extended_amount,OBJECTID
2018,2017/06/12,1818490,2680.57,VERIZON WIRELESS,2017/07/07,926658,Develop Louisville,Metro Government Operations,Contractual Services,Cellular Telephone Services,,,,,General Fund,,,40.01,0
2018,2017/06/20,1820174,175,URBAN LAND INSTITUTE,2017/07/19,928758,Develop Louisville,Metro Government Operations,Contractual Services,Dues,,,,,General Fund,,,175,1
2018,2017/06/30,1822337,28.54,ANDREA LAUAGO,2017/07/18,928464,Develop Louisville,Metro Government Operations,Contractual Services,Mail & Shipping,,,,,General Fund,,,6.59,2
2018,2017/06/30,1820502,125,PROPERTY VALUATION ADMINISTRATOR,2017/07/10,926850,Develop Louisville,Metro Government Operations,Contractual Services,Temporary Service Contract,,,,,General Fund,,,125,3
2018,2017/03/20,1820947,10470.3,AXXIS LEASING INC,2017/07/14,927758,Develop Louisville,Metro Government Operations,Supplies,Office Equipment,,,,,General Fund,,,3000,4
2018,2017/06/07,1815538,90,KLEIN BROTHERS INC,2017/07/03,925932,Develop Louisville,Metro Government Operations,Supplies,Office Supplies,,,,,General Fund,,,90,5
2018,2017/05/23,1819438,403.74,OFFICE DEPOT INC,2017/08/03,931596,Develop Louisville,Metro Government Operations,Supplies,Office Supplies,,,,,General Fund,,,314.87,6
2018,2017/05/23,1819438,403.74,OFFICE DEPOT INC,2017/08/03,931596,Develop Louisville,Metro Government Operations,Supplies,Office Supplies,,,,,General Fund,,,88.87,7
2018,2017/06/27,1822028,8.59,OFFICE DEPOT INC,2017/07/25,929936,Develop Louisville,Metro Government Operations,Supplies,Office Supplies,,,,,General Fund,,,8.59,8
2018,2017/05/23,1819445,17.66,OFFICE DEPOT INC,2017/07/11,927085,Develop Louisville,Metro Government Operations,Supplies,Office Supplies,,,,,General Fund,,,17.66,9
2018,2017/06/23,1821611,4953.1,C CESARIO MEDICAL CONSULTING LLC,2017/07/19,928576,Department of Corrections,Metro Government Operations,Contractual Services,Consulting Services,,,,,General Fund,,,4953.1,10
2018,2017/06/09,1815336,7592.61,KONICA MINOLTA BUSINESS SOLUTIONS,2017/07/17,928297,Department of Corrections,Metro Government Operations,Contractual Services,Equipment Rental,,,,,General Fund,,,255.4,11
2018,2017/06/09,1815336,7592.61,KONICA MINOLTA BUSINESS SOLUTIONS,2017/07/17,928297,Department of Corrections,Metro Government Operations,Contractual Services,Equipment Rental,,,,,General Fund,,,1083.96,12
2018,2017/04/27,1801701,1415.1,US HEALTHWORKS MEDICAL GROUP OF KY INC,2017/07/11,927131,Department of Corrections,Metro Government Operations,Contractual Services,Lab Service Miscellaneous,,,,,General Fund,,,1415.1,13
2018,2017/05/31,1820785,194.75,LEXISNEXIS RISK DATA MANAGEMENT INC,2017/07/24,929593,Department of Corrections,Metro Government Operations,Contractual Services,Legal Services,,,,,General Fund,,,194.75,14
2018,2017/06/30,1821477,194.75,LEXISNEXIS RISK DATA MANAGEMENT INC,2017/07/25,929911,Department of Corrections,Metro Government Operations,Contractual Services,Legal Services,,,,,General Fund,,,194.75,15
2018,2017/07/06,1821672,590.8,AHEAD HUMAN RESOURCES,2017/07/19,928545,Department of Corrections,Metro Government Operations,Contractual Services,Professional Services,,,,,General Fund,,,590.8,16
2018,2017/06/14,1815770,590.8,AHEAD HUMAN RESOURCES,2017/07/11,927025,Department of Corrections,Metro Government Operations,Contractual Services,Professional Services,,,,,General Fund,,,590.8,17
2018,2017/06/21,1817236,310.17,AHEAD HUMAN RESOURCES,2017/07/11,927025,Department of Corrections,Metro Government Operations,Contractual Services,Professional Services,,,,,General Fund,,,310.17,18
2018,2017/06/28,1818588,590.8,AHEAD HUMAN RESOURCES,2017/07/11,927025,Department of Corrections,Metro Government Operations,Contractual Services,Professional Services,,,,,General Fund,,,590.8,19
2018,2017/06/16,1816868,74.41,CUMMINS ALLISON CORP,2017/07/05,926061,Department of Corrections,Metro Government Operations,Supplies,Office Supplies,,,,,General Fund,,,74.41,20
2018,2017/06/26,1820890,750,MICHAEL VINCENT DAVIS SR,2017/07/17,928264,Department of Corrections,Metro Government Operations,Contractual Services,Professional Services,,,,,Federally Funded,,,750,21
2018,2017/06/29,1822328,100,AFYA INC,2017/07/17,928128,Department of Corrections,Metro Government Operations,Contractual Services,Training & Educational Fees,,,,,Federally Funded,,,100,22
2018,2017/06/08,1824187,3170.05,SEVEN COUNTIES SERVICES INC,2017/07/21,929308,Criminal Justice Commission,Metro Government Operations,Contractual Services,Professional Services,,,,,Federally Funded,,,3170.05,23
2018,2017/06/26,1817872,294.03,JOHN CONTI COFFEE CO INC,2017/07/03,925825,Louisville Metro Council,Metro Government Operations,Contractual Services,Public & Community Relations Services,,,,,General Fund,,,294.03,24
2018,2017/06/09,1813508,199,PRYOR LEARNING INC,2017/07/03,925811,Louisville Metro Council,Metro Government Operations,Contractual Services,Training & Educational Fees,,,,,General Fund,,,199,25
2018,2017/06/07,1816576,140.22,CDW LLC,2017/07/03,925790,Louisville Metro Council,Metro Government Operations,Equipment/Capital Outlay,Computer Software,,,,,General Fund,,,140.22,26
2018,2017/06/21,1818674,513.98,BEST BUY,2017/07/06,926263,Louisville Metro Council,Metro Government Operations,Equipment/Capital Outlay,Furniture and Office Equipment,,,,,General Fund,,,513.98,27
2018,2017/06/12,1818356,482.28,CDW LLC,2017/07/07,926565,Louisville Metro Council,Metro Government Operations,Equipment/Capital Outlay,Furniture and Office Equipment,,,,,General Fund,,,482.28,28
2018,2017/06/15,1816584,15,BEST STAMP & SEAL CO INC,2017/07/10,926744,Louisville Metro Council,Metro Government Operations,Supplies,Office Supplies,,,,,General Fund,,,15,29
2018,2017/06/22,1817854,15.25,BEST STAMP & SEAL CO INC,2017/07/17,928143,Louisville Metro Council,Metro Government Operations,Supplies,Office Supplies,,,,,General Fund,,,15.25,30
2018,2017/06/20,1816592,20,BEST STAMP & SEAL CO INC,2017/07/17,928143,Louisville Metro Council,Metro Government Operations,Supplies,Office Supplies,,,,,General Fund,,,20,31
2018,2017/04/17,1820068,497.47,OFFICE DEPOT INC,2017/07/10,926840,Louisville Metro Council,Metro Government Operations,Supplies,Office Supplies,,,,,General Fund,,,497.47,32
2018,2017/04/14,1820070,3.92,OFFICE DEPOT INC,2017/07/10,926840,Louisville Metro Council,Metro Government Operations,Supplies,Office Supplies,,,,,General Fund,,,3.92,33
2018,2017/05/12,1820071,68.83,OFFICE DEPOT INC,2017/07/10,926840,Louisville Metro Council,Metro Government Operations,Supplies,Office Supplies,,,,,General Fund,,,68.83,34
2018,2017/07/11,1824514,269.45,KONICA MINOLTA BUSINESS SOLUTIONS,2017/07/25,930010,Criminal Justice Commission,Metro Government Operations,Contractual Services,Equipment Rental,,,,,General Fund,,,269.45,35
2018,2017/06/08,1824186,7772.12,SEVEN COUNTIES SERVICES INC,2017/07/21,929308,Criminal Justice Commission,Metro Government Operations,Contractual Services,Professional Services,,,,,Federally Funded,,,7772.12,36
2018,2017/06/09,1815336,7592.61,KONICA MINOLTA BUSINESS SOLUTIONS,2017/07/17,928297,Department of Corrections,Metro Government Operations,Contractual Services,Equipment Rental,,,,,General Fund,,,228.36,37
2018,2017/04/28,1824981,225,HEALTHPOINT ASSOCIATES INC,2017/07/25,929879,Department of Corrections,Metro Government Operations,Contractual Services,Mental Health Services,,,,,General Fund,,,225,38
2018,2017/06/16,1817826,434.16,PSYCHOLOGICAL ASSESSMENT RESOURCES INC,2017/07/19,928710,Department of Corrections,Metro Government Operations,Contractual Services,Training & Educational Fees,,,,,General Fund,,,434.16,39
2018,2017/06/14,1816855,920.26,WONDERLIC INC.,2017/07/11,927112,Department of Corrections,Metro Government Operations,Contractual Services,Training & Educational Fees,,,,,General Fund,,,920.26,40
2018,2017/06/30,1818929,463.16,JEFFERY HORN,2017/07/06,926465,Department of Corrections,Metro Government Operations,Contractual Services,Travel, Out of Town,,,,,General Fund,,,41
2018,2017/06/27,1818275,270,MPC PROMOTIONS,2017/09/11,938235,Department of Corrections,Metro Government Operations,Supplies,Clothing/Uniform supplies,,,,,General Fund,,,196,42
2018,2017/06/27,1818275,270,MPC PROMOTIONS,2017/09/11,938235,Department of Corrections,Metro Government Operations,Supplies,Clothing/Uniform supplies,,,,,General Fund,,,-196,43
2018,2017/06/27,1818275,270,MPC PROMOTIONS,2017/09/11,938235,Department of Corrections,Metro Government Operations,Supplies,Clothing/Uniform supplies,,,,,General Fund,,,-74,44
2018,2017/06/27,1818275,270,MPC PROMOTIONS,2017/09/11,938235,Department of Corrections,Metro Government Operations,Supplies,Clothing/Uniform supplies,,,,,General Fund,,,270,45
2018,2017/06/27,1818275,270,MPC PROMOTIONS,2017/09/11,938235,Department of Corrections,Metro Government Operations,Supplies,Clothing/Uniform supplies,,,,,General Fund,,,74,46
2018,2017/06/30,1822792,5185.61,ALPHA MECHANICAL SERVICE INC,2017/07/28,930510,Public Health & Wellness,Metro Government Operations,Contractual Services,Building/Office Renovation,,,,,General Fund,,,5185.61,47
2018,2017/04/27,1815445,250,FBM PROPERTIES,2017/07/06,926284,Public Health & Wellness,Metro Government Operations,Contractual Services,Building/Office Renovation,,,,,General Fund,,,250,48
2018,2017/06/29,1820934,1841.7,FISHEL COMPANY,2017/08/04,931783,Public Health & Wellness,Metro Government Operations,Contractual Services,Building/Office Renovation,,,,,General Fund,,,1841.7,49
2018,2017/07/01,1822219,49.8,VERIZON WIRELESS,2017/07/20,929158,Public Health & Wellness,Metro Government Operations,Contractual Services,Cellular Telephone Services,,,,,General Fund,,,45.11,50
2018,2017/07/01,1822219,49.8,VERIZON WIRELESS,2017/07/20,929158,Public Health & Wellness,Metro Government Operations,Contractual Services,Cellular Telephone Services,,,,,General Fund,,,4.69,51
2018,2017/06/23,1821597,377.35,CDW LLC,2017/07/19,928580,Public Health & Wellness,Metro Government Operations,Contractual Services,Computer Software Licenses,,,,,General Fund,,,377.35,52
2018,2017/04/28,1805068,11979.06,FISHEL COMPANY,2017/09/01,936882,Public Health & Wellness,Metro Government Operations,Contractual Services,Computer Technical Services,,,,,General Fund,,,11979.06,53
2018,2017/06/25,1820064,1046.86,BEE LINE COURIER SERVICE INC,2017/07/11,927034,Public Health & Wellness,Metro Government Operations,Contractual Services,Courier Service,,,,,General Fund,,,1046.86,54
2018,2017/06/11,1819708,1046.86,BEE LINE COURIER SERVICE INC,2017/07/13,927598,Public Health & Wellness,Metro Government Operations,Contractual Services,Courier Service,,,,,General Fund,,,663.95,55
2018,2017/06/11,1819708,1046.86,BEE LINE COURIER SERVICE INC,2017/07/13,927598,Public Health & Wellness,Metro Government Operations,Contractual Services,Courier Service,,,,,General Fund,,,382.91,56
2018,2017/06/18,1819519,1046.86,BEE LINE COURIER SERVICE INC,2017/07/11,927034,Public Health & Wellness,Metro Government Operations,Contractual Services,Courier Service,,,,,General Fund,,,1046.86,57
2018,2017/06/23,1818496,104.74,VERIZON WIRELESS,2017/07/14,927880,Public Health & Wellness,Metro Government Operations,Contractual Services,Data Communication Services,,,,,General Fund,,,-115.1,58
2018,2017/06/23,1818496,104.74,VERIZON WIRELESS,2017/07/14,927880,Public Health & Wellness,Metro Government Operations,Contractual Services,Data Communication Services,,,,,General Fund,,,104.74,59
2018,2017/06/23,1818496,104.74,VERIZON WIRELESS,2017/07/14,927880,Public Health & Wellness,Metro Government Operations,Contractual Services,Data Communication Services,,,,,General Fund,,,115.1,60
2018,2017/06/12,1815358,3462.97,VERIZON WIRELESS,2017/07/14,927880,Public Health & Wellness,Metro Government Operations,Contractual Services,Data Communication Services,,,,,General Fund,,,999.85,61
2018,2017/06/12,1815358,3462.97,VERIZON WIRELESS,2017/07/14,927880,Public Health & Wellness,Metro Government Operations,Contractual Services,Data Communication Services,,,,,General Fund,,,2134.84,62
2018,2017/06/12,1815358,3462.97,VERIZON WIRELESS,2017/07/14,927880,Public Health & Wellness,Metro Government Operations,Contractual Services,Data Communication Services,,,,,General Fund,,,328.28,63
2018,2017/04/04,1797798,244.4,TIME WARNER CABLE ENTERPRISES LLC,2017/07/07,926651,Public Health & Wellness,Metro Government Operations,Contractual Services,Dues,,,,,General Fund,,,244.4,64
2018,2017/05/05,1820832,251.9,TIME WARNER CABLE ENTERPRISES LLC,2017/07/19,928751,Public Health & Wellness,Metro Government Operations,Contractual Services,Dues,,,,,General Fund,,,251.9,65
2018,2017/06/09,1815346,5936.36,KONICA MINOLTA BUSINESS SOLUTIONS,2017/07/18,928454,Public Health & Wellness,Metro Government Operations,Contractual Services,Equipment Rental,,,,,General Fund,,,5936.36,66
2018,2017/06/06,1812615,1235,C&H SECURITY INC,2017/07/03,925927,Public Health & Wellness,Metro Government Operations,Contractual Services,Miscellaneous Services,,,,,General Fund,,,1235,67
2018,2017/06/23,1820065,22650,INNOVATIVE QUALITY SOLUTIONS INC,2017/07/19,928632,Public Health & Wellness,Metro Government Operations,Contractual Services,Miscellaneous Services,,,,,General Fund,,,22650,68
2018,2017/06/07,1813435,60,KLEIN BROTHERS INC,2017/07/18,928452,Public Health & Wellness,Metro Government Operations,Contractual Services,Miscellaneous Services,,,,,General Fund,,,60,69
2018,2017/05/19,1808477,235.72,STANLEY SCHULTZE & CO INC,2017/07/18,928462,Public Health & Wellness,Metro Government Operations,Contractual Services,Miscellaneous Services,,,,,General Fund,,,55.72,70
2018,2017/05/19,1808477,235.72,STANLEY SCHULTZE & CO INC,2017/07/18,928462,Public Health & Wellness,Metro Government Operations,Contractual Services,Miscellaneous Services,,,,,General Fund,,,180,71
2018,2017/01/06,1773785,84,US HEALTHWORKS MEDICAL GROUP OF KY INC,2017/07/28,930675,Public Health & Wellness,Metro Government Operations,Contractual Services,Miscellaneous Services,,,,,General Fund,,,84,72
2018,2016/04/05,1797860,145,US HEALTHWORKS MEDICAL GROUP OF KY INC,2017/07/27,930433,Public Health & Wellness,Metro Government Operations,Contractual Services,Miscellaneous Services,,,,,General Fund,,,145,73
2018,2017/06/12,1817570,2000,BRIDGE KIDS INTERNATIONAL INC,2017/07/06,926267,Public Health & Wellness,Metro Government Operations,Contractual Services,Payments to Contractors,,,,,General Fund,,,2000,74
2018,2017/06/13,1816801,196.82,DELL MARKETING LP,2017/07/10,926767,Public Health & Wellness,Metro Government Operations,Contractual Services,Payments to Contractors,,,,,General Fund,,,196.82,75
2018,2017/06/12,1822231,2500,LEGACY INC EVERYBODY HAS ONE,2017/08/01,931175,Public Health & Wellness,Metro Government Operations,Contractual Services,Payments to Contractors,,,,,General Fund,,,2500,76
2018,2017/06/09,1814578,64,PARKWAY SOUTHERN CO,2017/07/06,926324,Public Health & Wellness,Metro Government Operations,Contractual Services,Payments to Contractors,,,,,General Fund,,,64,77
2018,2017/05/05,1815298,20000,PEACE EDUCATION PROGRAM INC,2017/07/27,930402,Public Health & Wellness,Metro Government Operations,Contractual Services,Payments to Contractors,,,,,General Fund,,,20000,78
2018,2017/06/15,1819601,4942.85,PROFORMA DOUBLE DOG DARE DBA DOUBLE DOG DARE LLC,2017/07/25,929944,Public Health & Wellness,Metro Government Operations,Contractual Services,Payments to Contractors,,,,,General Fund,,,4942.85,79
2018,2017/05/16,1817550,18000,YOUNG ADULT DEVELOPMENT IN ACTION INC,2017/07/06,926363,Public Health & Wellness,Metro Government Operations,Contractual Services,Payments to Contractors,,,,,General Fund,,,18000,80
2018,2017/06/07,1819310,-29.99,OFFICE DEPOT INC,2017/07/14,927836,Public Health & Wellness,Metro Government Operations,Contractual Services,Professional Services,,,,,General Fund,,,-29.99,81
2018,2017/04/27,1801302,81694.5,UNIVERSITY OF LOUISVILLE,2017/08/01,931230,Public Health & Wellness,Metro Government Operations,Contractual Services,Professional Services,,,,,General Fund,,,81694.5,82
2018,2017/07/06,1822050,417.88,AHEAD HUMAN RESOURCES,2017/07/25,929810,Public Health & Wellness,Metro Government Operations,Contractual Services,Temporary Service Contract,,,,,General Fund,,,417.88,83
2018,2017/06/28,1820405,242.64,AHEAD HUMAN RESOURCES,2017/07/25,929810,Public Health & Wellness,Metro Government Operations,Contractual Services,Temporary Service Contract,,,,,General Fund,,,242.64,84
2018,2017/06/21,1820344,229.16,AHEAD HUMAN RESOURCES,2017/07/25,929810,Public Health & Wellness,Metro Government Operations,Contractual Services,Temporary Service Contract,,,,,General Fund,,,229.16,85
2018,2017/06/09,1824855,650,CHARTER FOR COMPASSION INTERNATIONAL,2017/07/26,930112,Public Health & Wellness,Metro Government Operations,Contractual Services,Training & Educational Fees,,,,,General Fund,,,483.41,86
2018,2017/06/09,1824855,650,CHARTER FOR COMPASSION INTERNATIONAL,2017/07/26,930112,Public Health & Wellness,Metro Government Operations,Contractual Services,Travel, Out of Town,,,,,General Fund,,,87
2018,2017/06/22,1819848,3475,CTBOOK HOLDINGS LLC,2017/07/17,928166,Public Health & Wellness,Metro Government Operations,Supplies,Educational/Training Supplies,,,,,General Fund,,,3475,88
2018,2017/07/04,1820329,414.69,AMAZON COM,2017/07/11,927028,Public Health & Wellness,Metro Government Operations,Supplies,Educational/Training Supplies,,,,,Misc Agreements,,,414.69,89
2018,2017/06/14,1819560,69.17,KROGER CO,2017/07/27,930382,Public Health & Wellness,Metro Government Operations,Supplies,Food,,,,,General Fund,,,69.17,90
2018,2017/06/17,1819713,69.97,KROGER CO,2017/07/11,927072,Public Health & Wellness,Metro Government Operations,Supplies,Food,,,,,General Fund,,,69.97,91
2018,2017/04/11,1811608,-13.13,OFFICE DEPOT INC,2017/07/05,926100,Public Health & Wellness,Metro Government Operations,Supplies,Food,,,,,General Fund,,,-13.13,92
2018,2017/06/28,1818690,676.84,AMAZON COM,2017/07/06,926253,Public Health & Wellness,Metro Government Operations,Supplies,Office Equipment,,,,,General Fund,,,676.84,93
2018,2017/06/28,1821726,170.4,CDW LLC,2017/07/24,929534,Public Health & Wellness,Metro Government Operations,Supplies,Office Equipment,,,,,General Fund,,,170.4,94
2018,2017/06/24,1821244,217.5,CDW LLC,2017/09/19,939397,Public Health & Wellness,Metro Government Operations,Supplies,Office Equipment,,,,,General Fund,,,-217.5,95
2018,2017/06/24,1821244,217.5,CDW LLC,2017/09/19,939397,Public Health & Wellness,Metro Government Operations,Supplies,Office Equipment,,,,,General Fund,,,217.5,96
2018,2017/06/24,1821244,217.5,CDW LLC,2017/09/19,939397,Public Health & Wellness,Metro Government Operations,Supplies,Office Equipment,,,,,General Fund,,,217.5,97
2018,2017/04/12,1798794,12918,CENTRAL BUSINESS EQUIPMENT CO,2017/09/05,937043,Public Health & Wellness,Metro Government Operations,Supplies,Office Equipment,,,,,General Fund,,,12918,98
2018,2017/06/30,1819467,1915,COMSTOCK BROTHERS ELECTRIC CO LLC,2017/07/27,930354,Public Health & Wellness,Metro Government Operations,Supplies,Office Equipment,,,,,General Fund,,,1800,99
2018,2017/06/30,1819467,1915,COMSTOCK BROTHERS ELECTRIC CO LLC,2017/07/27,930354,Public Health & Wellness,Metro Government Operations,Supplies,Office Equipment,,,,,General Fund,,,115,100
2018,2017/05/22,1818602,1002,FIRE EQUIPMENT SERVICE COMPANY,2017/07/06,926285,Public Health & Wellness,Metro Government Operations,Supplies,Office Equipment,,,,,General Fund,,,1002,101
2018,2017/06/15,1816615,901.8,KLEIN BROTHERS INC,2017/07/10,926916,Public Health & Wellness,Metro Government Operations,Supplies,Office Equipment,,,,,General Fund,,,901.8,102
2018,2017/06/12,1814170,749.95,AMAZON COM,2017/07/05,926046,Public Health & Wellness,Metro Government Operations,Supplies,Office Supplies,,,,,General Fund,,,1375,103
2018,2017/06/12,1814170,749.95,AMAZON COM,2017/07/05,926046,Public Health & Wellness,Metro Government Operations,Supplies,Office Supplies,,,,,General Fund,,,749.95,104
2018,2017/06/12,1814170,749.95,AMAZON COM,2017/07/05,926046,Public Health & Wellness,Metro Government Operations,Supplies,Office Supplies,,,,,General Fund,,,-1375,105
2018,2017/06/19,1816222,60.55,AMAZON COM,2017/07/05,926046,Public Health & Wellness,Metro Government Operations,Supplies,Office Supplies,,,,,General Fund,,,60.55,106
2018,2017/06/13,1814963,549,AMAZON COM,2017/07/05,926046,Public Health & Wellness,Metro Government Operations,Supplies,Office Supplies,,,,,General Fund,,,549,107
2018,2017/06/13,1815349,54.99,AMAZON COM,2017/07/05,926046,Public Health & Wellness,Metro Government Operations,Supplies,Office Supplies,,,,,General Fund,,,54.99,108
2018,2017/06/19,1820788,155.55,CDW LLC,2017/07/25,929840,Public Health & Wellness,Metro Government Operations,Supplies,Office Supplies,,,,,General Fund,,,155.55,109
2018,2017/06/16,1820941,2657.24,DELL MARKETING LP,2017/07/20,929066,Public Health & Wellness,Metro Government Operations,Supplies,Office Supplies,,,,,General Fund,,,53.42,110
2018,2017/06/16,1820941,2657.24,DELL MARKETING LP,2017/07/20,929066,Public Health & Wellness,Metro Government Operations,Supplies,Office Supplies,,,,,General Fund,,,2603.82,111
2018,2017/06/01,1819925,354.79,OFFICE DEPOT INC,2017/07/12,927335,Public Health & Wellness,Metro Government Operations,Supplies,Office Supplies,,,,,General Fund,,,354.79,112
2018,2017/06/01,1819925,354.79,OFFICE DEPOT INC,2017/07/12,927335,Public Health & Wellness,Metro Government Operations,Supplies,Office Supplies,,,,,General Fund,,,332.36,113
2018,2017/06/01,1819925,354.79,OFFICE DEPOT INC,2017/07/12,927335,Public Health & Wellness,Metro Government Operations,Supplies,Office Supplies,,,,,General Fund,,,-332.36,114
2018,2017/06/19,1817887,-98.99,OFFICE DEPOT INC,2017/07/27,930400,Public Health & Wellness,Metro Government Operations,Supplies,Office Supplies,,,,,General Fund,,,-98.99,115
2018,2017/06/22,1821305,2515.24,CDW LLC,2017/07/19,928580,Public Health & Wellness,Metro Government Operations,Supplies,Printing/Copier/Reproduction Supplies,,,,,General Fund,,,2515.24,116
2018,2017/06/20,1821603,377.16,CDW LLC,2017/07/26,930111,Public Health & Wellness,Metro Government Operations,Supplies,Printing/Copier/Reproduction Supplies,,,,,General Fund,,,377.16,117
2018,2017/06/20,1822007,8970.23,CDW LLC,2017/07/19,928580,Public Health & Wellness,Metro Government Operations,Supplies,Printing/Copier/Reproduction Supplies,,,,,General Fund,,,8970.23,118
2018,2017/07/08,1822169,6.15,UNITED PARCEL SERVICE,2017/07/19,928755,Public Health & Wellness,Metro Government Operations,Contractual Services,Mail & Shipping,,,,,General Fund,,,6.15,119
2018,2017/06/30,1820863,1561.21,TRADEBE TREATMENT & RECYCLING LLC,2017/07/27,930427,Public Health & Wellness,Metro Government Operations,Contractual Services,Medical Equipment Repair,,,,,General Fund,,,1561.21,120
2018,2017/06/30,1820284,3733.2,LESLIE A WOLF,2017/07/11,927073,Public Health & Wellness,Metro Government Operations,Contractual Services,Payments to Contractors,,,,,General Fund,,,3733.2,121
2018,2017/06/09,1814105,612.18,CEPHEID,2017/07/05,926058,Public Health & Wellness,Metro Government Operations,Supplies,Lab Supplies,,,,,General Fund,,,612.18,122
2018,2017/06/20,1819575,612.18,CEPHEID,2017/07/17,928154,Public Health & Wellness,Metro Government Operations,Supplies,Lab Supplies,,,,,General Fund,,,612.18,123
2018,2017/06/27,1820002,177.88,FISHER HEALTHCARE,2017/07/24,929554,Public Health & Wellness,Metro Government Operations,Supplies,Lab Supplies,,,,,General Fund,,,177.88,124
2018,2017/06/07,1813890,229.97,FISHER HEALTHCARE,2017/07/03,925808,Public Health & Wellness,Metro Government Operations,Supplies,Lab Supplies,,,,,General Fund,,,229.97,125
2018,2017/06/06,1813880,138.73,FISHER HEALTHCARE,2017/07/03,925808,Public Health & Wellness,Metro Government Operations,Supplies,Lab Supplies,,,,,General Fund,,,138.73,126
2018,2017/06/26,1820118,177.88,FISHER HEALTHCARE,2017/07/10,926781,Public Health & Wellness,Metro Government Operations,Supplies,Lab Supplies,,,,,General Fund,,,177.88,127
2018,2016/08/22,1741031,180.5,FISHER SCIENTIFIC COMPANY LLC,2017/08/16,933719,Public Health & Wellness,Metro Government Operations,Supplies,Lab Supplies,,,,,General Fund,,,180.5,128
2018,2017/06/23,1819656,1165.99,IDEXX DISTRIBUTION INC,2017/07/18,928391,Public Health & Wellness,Metro Government Operations,Supplies,Lab Supplies,,,,,General Fund,,,1165.99,129
2018,2017/06/06,1813223,831.27,LIN-ZHI INTERNATIONAL INC,2017/07/03,925835,Public Health & Wellness,Metro Government Operations,Supplies,Lab Supplies,,,,,General Fund,,,831.27,130
2018,2017/06/15,1818076,348.16,MCKESSON MEDICAL SURGICAL INC,2017/07/10,926826,Public Health & Wellness,Metro Government Operations,Supplies,Lab Supplies,,,,,General Fund,,,348.16,131
2018,2017/06/08,1813910,127.1,QUIDEL CORPORATION,2017/07/03,925862,Public Health & Wellness,Metro Government Operations,Supplies,Lab Supplies,,,,,General Fund,,,127.1,132
2018,2017/06/13,1815361,69.3,QUIDEL CORPORATION,2017/07/10,926852,Public Health & Wellness,Metro Government Operations,Supplies,Lab Supplies,,,,,General Fund,,,69.3,133
2018,2017/06/15,1816650,84.3,QUIDEL CORPORATION,2017/07/10,926852,Public Health & Wellness,Metro Government Operations,Supplies,Lab Supplies,,,,,General Fund,,,84.3,134
2018,2017/06/22,1819618,59.16,QUIDEL CORPORATION,2017/07/17,928239,Public Health & Wellness,Metro Government Operations,Supplies,Lab Supplies,,,,,General Fund,,,59.16,135
2018,2017/07/10,1822323,183.38,SCOTT-GROSS CO INC,2017/08/04,931932,Public Health & Wellness,Metro Government Operations,Supplies,Lab Supplies,,,,,General Fund,,,183.38,136
2018,2017/06/08,1815826,4287.41,SIEMENS HEALTHCARE DIAGNOSTICS INC,2017/07/06,926339,Public Health & Wellness,Metro Government Operations,Supplies,Lab Supplies,,,,,General Fund,,,0.41,137
2018,2017/06/08,1815826,4287.41,SIEMENS HEALTHCARE DIAGNOSTICS INC,2017/07/06,926339,Public Health & Wellness,Metro Government Operations,Supplies,Lab Supplies,,,,,General Fund,,,4287,138
2018,2017/06/21,1820363,2128.48,SIEMENS HEALTHCARE DIAGNOSTICS INC,2017/07/17,928254,Public Health & Wellness,Metro Government Operations,Supplies,Lab Supplies,,,,,General Fund,,,2128.48,139
2018,2017/06/15,1815590,305.69,AMAZON COM,2017/07/05,926046,Public Health & Wellness,Metro Government Operations,Contractual Services,Payments to Contractors,,,,,Pass Thru Federal Other,,,305.69,140
2018,2017/06/19,1819755,59.47,MPC PROMOTIONS,2017/07/25,930013,Public Health & Wellness,Metro Government Operations,Contractual Services,Professional Services,,,,,General Fund,,,59.47,141
2018,2017/06/02,1812027,4639.66,MPC PROMOTIONS,2017/07/07,926513,Public Health & Wellness,Metro Government Operations,Supplies,Clothing/Uniform supplies,,,,,General Fund,,,2340,142
2018,2017/06/12,1815461,60,MPC PROMOTIONS,2017/07/07,926513,Public Health & Wellness,Metro Government Operations,Supplies,Clothing/Uniform supplies,,,,,General Fund,,,60,143
2018,2017/03/01,1785098,544,CUSTOM DATA PROCESSING INC,2017/08/18,934330,Public Health & Wellness,Metro Government Operations,Contractual Services,Landfill/Sanitation Services,,,,,General Fund,,,544,144
2018,2017/07/01,1820598,420,CUSTOM DATA PROCESSING INC,2017/07/28,930545,Public Health & Wellness,Metro Government Operations,Contractual Services,Landfill/Sanitation Services,,,,,General Fund,,,420,145
2018,2017/07/01,1820598,420,CUSTOM DATA PROCESSING INC,2017/07/28,930545,Public Health & Wellness,Metro Government Operations,Contractual Services,Landfill/Sanitation Services,,,,,General Fund,,,-420,146
2018,2017/07/01,1820598,420,CUSTOM DATA PROCESSING INC,2017/07/28,930545,Public Health & Wellness,Metro Government Operations,Contractual Services,Landfill/Sanitation Services,,,,,General Fund,,,420,147
2018,2017/05/01,1804025,544,CUSTOM DATA PROCESSING INC,2017/07/11,927048,Public Health & Wellness,Metro Government Operations,Contractual Services,Landfill/Sanitation Services,,,,,General Fund,,,544,148
2018,2017/06/15,1819671,240,LOUISVILLE UNDERGROUND LLC,2017/07/13,927635,Public Health & Wellness,Metro Government Operations,Contractual Services,Miscellaneous Services,,,,,General Fund,,,240,149
2018,2017/06/19,1820342,8300,VOLUNTEERS OF AMERICA MID-STATES,2017/07/11,927107,Public Health & Wellness,Metro Government Operations,Contractual Services,Payments to Contractors,,,,,General Fund,,,8300,150
2018,2017/06/15,1819747,3800.86,VOLUNTEERS OF AMERICA MID-STATES,2017/07/07,926660,Public Health & Wellness,Metro Government Operations,Contractual Services,Payments to Contractors,,,,,General Fund,,,3800.86,151
2018,2017/06/30,1822173,13376.97,UNIVERSITY OF LOUISVILLE,2017/07/25,929980,Public Health & Wellness,Metro Government Operations,Contractual Services,Professional Services,,,,,General Fund,,,13376.97,152
2018,2017/05/17,1824802,1583,BOUND TREE MEDICAL LLC,2017/07/26,930105,Public Health & Wellness,Metro Government Operations,Supplies,Drugs/Medicine Supplies,,,,,General Fund,,,1583,153
2018,2017/06/29,1819772,4622,DAVE PURCHASE PROJECT,2017/07/07,926628,Public Health & Wellness,Metro Government Operations,Supplies,Drugs/Medicine Supplies,,,,,General Fund,,,4622,154
2018,2017/06/09,1815067,3442,DAVE PURCHASE PROJECT,2017/07/05,926106,Public Health & Wellness,Metro Government Operations,Supplies,Drugs/Medicine Supplies,,,,,General Fund,,,3442,155
2018,2017/06/06,1822894,1185,HENRY SCHEIN INC,2017/07/19,928786,Public Health & Wellness,Metro Government Operations,Supplies,Drugs/Medicine Supplies,,,,,General Fund,,,1179.75,156
2018,2017/06/06,1822894,1185,HENRY SCHEIN INC,2017/07/19,928786,Public Health & Wellness,Metro Government Operations,Supplies,Drugs/Medicine Supplies,,,,,General Fund,,,5.25,157
2018,2017/06/29,1820500,1171.68,MCKESSON MEDICAL SURGICAL GOVERNMENT SOLUTIONS LLC,2017/07/24,929605,Public Health & Wellness,Metro Government Operations,Supplies,Drugs/Medicine Supplies,,,,,General Fund,,,1171.68,158
2018,2017/06/29,1820500,1171.68,MCKESSON MEDICAL SURGICAL GOVERNMENT SOLUTIONS LLC,2017/07/24,929605,Public Health & Wellness,Metro Government Operations,Supplies,Drugs/Medicine Supplies,,,,,General Fund,,,1171.68,159
2018,2017/06/29,1820500,1171.68,MCKESSON MEDICAL SURGICAL GOVERNMENT SOLUTIONS LLC,2017/07/24,929605,Public Health & Wellness,Metro Government Operations,Supplies,Drugs/Medicine Supplies,,,,,General Fund,,,-1171.68,160
2018,2017/06/29,1819667,646.92,ULINE INC,2017/07/24,929680,Public Health & Wellness,Metro Government Operations,Supplies,Drugs/Medicine Supplies,,,,,General Fund,,,646.92,161
2018,2017/06/29,1820519,60.8,KENTUCKIANA PRODUCTS & SERVICES INC,2017/07/24,929542,Public Health & Wellness,Metro Government Operations,Supplies,Office Equipment,,,,,General Fund,,,60.8,162
2018,2017/06/12,1815049,189.36,AMAZON COM,2017/07/05,926046,Public Health & Wellness,Metro Government Operations,Supplies,Office Supplies,,,,,General Fund,,,189.36,163
2018,2017/06/27,1819000,66,AMAZON COM,2017/07/06,926253,Public Health & Wellness,Metro Government Operations,Supplies,Office Supplies,,,,,General Fund,,,66,164
2018,2017/06/13,1819742,774.88,MINIT PRINT IT INC,2017/07/13,927638,Public Health & Wellness,Metro Government Operations,Supplies,Office Supplies,,,,,General Fund,,,774.19,165
2018,2017/06/13,1819742,774.88,MINIT PRINT IT INC,2017/07/13,927638,Public Health & Wellness,Metro Government Operations,Supplies,Office Supplies,,,,,General Fund,,,0.69,166
2018,2017/06/26,1822423,34.9,OFFICE DEPOT INC,2017/07/25,929936,Public Health & Wellness,Metro Government Operations,Supplies,Office Supplies,,,,,General Fund,,,34.9,167
2018,2017/06/23,1819812,30,PARKWAY SOUTHERN CO,2017/07/07,926625,Public Health & Wellness,Metro Government Operations,Supplies,Office Supplies,,,,,General Fund,,,30,168
2018,2017/01/01,1779189,967.5,DAROB INC,2017/07/11,927049,Public Health & Wellness,Metro Government Operations,Contractual Services,Landfill/Sanitation Services,,,,,General Fund,,,967.5,169
2018,2017/01/01,1821623,39.89,DAROB INC,2017/07/14,927777,Public Health & Wellness,Metro Government Operations,Contractual Services,Landfill/Sanitation Services,,,,,General Fund,,,39.89,170
2018,2017/06/14,1828036,491.04,AHEAD HUMAN RESOURCES,2017/08/04,931724,Public Health & Wellness,Metro Government Operations,Contractual Services,Temporary Service Contract,,,,,General Fund,,,397.35,171
2018,2017/06/14,1828036,491.04,AHEAD HUMAN RESOURCES,2017/08/04,931724,Public Health & Wellness,Metro Government Operations,Contractual Services,Temporary Service Contract,,,,,General Fund,,,93.69,172
2018,2017/06/28,1819842,586.08,AHEAD HUMAN RESOURCES,2017/07/24,929507,Public Health & Wellness,Metro Government Operations,Contractual Services,Temporary Service Contract,,,,,General Fund,,,586.08,173
2018,2017/05/31,1820114,933.49,AHEAD HUMAN RESOURCES,2017/07/21,929284,Public Health & Wellness,Metro Government Operations,Contractual Services,Temporary Service Contract,,,,,General Fund,,,933.49,174
2018,2017/06/07,1813030,495,AHEAD HUMAN RESOURCES,2017/07/03,925767,Public Health & Wellness,Metro Government Operations,Contractual Services,Temporary Service Contract,,,,,General Fund,,,495,175
2018,2017/07/06,1822521,633.6,AHEAD HUMAN RESOURCES,2017/07/20,929030,Public Health & Wellness,Metro Government Operations,Contractual Services,Temporary Service Contract,,,,,General Fund,,,633.6,176
2018,2017/06/21,1820004,396,AHEAD HUMAN RESOURCES,2017/07/11,927025,Public Health & Wellness,Metro Government Operations,Contractual Services,Temporary Service Contract,,,,,General Fund,,,396,177
2018,2017/05/17,1814874,1345.77,HENRY SCHEIN INC,2017/07/18,928449,Public Health & Wellness,Metro Government Operations,Supplies,Drugs/Medicine Supplies,,,,,General Fund,,,1345.77,178
2018,2017/06/08,1822543,3.99,HENRY SCHEIN INC,2017/07/19,928786,Public Health & Wellness,Metro Government Operations,Supplies,Drugs/Medicine Supplies,,,,,General Fund,,,3.99,179
2018,2017/06/29,1820082,756.74,MCKESSON MEDICAL SURGICAL GOVERNMENT SOLUTIONS LLC,2017/07/24,929605,Public Health & Wellness,Metro Government Operations,Supplies,Drugs/Medicine Supplies,,,,,General Fund,,,756.74,180
2018,2017/06/08,1814013,1820.5,MCKESSON MEDICAL SURGICAL GOVERNMENT SOLUTIONS LLC,2017/07/03,925847,Public Health & Wellness,Metro Government Operations,Supplies,Drugs/Medicine Supplies,,,,,General Fund,,,1820.5,181
2018,2017/06/14,1820246,119.53,AMAZON COM,2017/07/11,927028,Public Health & Wellness,Metro Government Operations,Supplies,Office Supplies,,,,,General Fund,,,119.53,182
2018,2017/06/29,1819456,-39.98,OFFICE DEPOT INC,2017/07/14,927836,Public Health & Wellness,Metro Government Operations,Supplies,Office Supplies,,,,,General Fund,,,-39.98,183
2018,2017/05/23,1819241,416.75,OFFICE DEPOT INC,2017/07/11,927085,Public Health & Wellness,Metro Government Operations,Supplies,Office Supplies,,,,,General Fund,,,416.75,184
2018,2017/06/20,1819334,-42.99,OFFICE DEPOT INC,2017/07/28,930615,Public Health & Wellness,Metro Government Operations,Supplies,Office Supplies,,,,,General Fund,,,-42.99,185
2018,2017/06/16,1819594,550,OUTFRONT MEDIA INC,2017/07/13,927645,Public Health & Wellness,Metro Government Operations,Supplies,Office Supplies,,,,,General Fund,,,550,186
2018,2017/06/19,1820349,3175,OUTFRONT MEDIA INC,2017/07/14,927839,Public Health & Wellness,Metro Government Operations,Supplies,Office Supplies,,,,,General Fund,,,3175,187
2018,2017/06/30,1821984,132,SHRED IT US JV LLC,2017/07/25,929962,Public Health & Wellness,Metro Government Operations,Supplies,Office Supplies,,,,,General Fund,,,200,188
2018,2017/06/30,1821984,132,SHRED IT US JV LLC,2017/07/25,929962,Public Health & Wellness,Metro Government Operations,Supplies,Office Supplies,,,,,General Fund,,,-200,189
2018,2017/06/30,1821984,132,SHRED IT US JV LLC,2017/07/25,929962,Public Health & Wellness,Metro Government Operations,Supplies,Office Supplies,,,,,General Fund,,,132,190
2018,2017/04/15,1799387,190.2,SHRED IT US JV LLC,2017/07/25,929962,Public Health & Wellness,Metro Government Operations,Supplies,Office Supplies,,,,,General Fund,,,190.2,191
2018,2017/05/15,1808435,162.3,SHRED IT US JV LLC,2017/07/07,926638,Public Health & Wellness,Metro Government Operations,Supplies,Office Supplies,,,,,General Fund,,,162.3,192
2018,2017/06/15,1819767,162.3,SHRED IT US JV LLC,2017/07/13,927654,Public Health & Wellness,Metro Government Operations,Supplies,Office Supplies,,,,,General Fund,,,162.3,193
2018,2017/06/23,1825391,929.25,MARGARET J WARD,2017/07/26,930164,Public Health & Wellness,Metro Government Operations,Contractual Services,Professional Services,,,,,General Fund,,,929.25,194
2018,2017/06/28,1818672,503.98,DELL MARKETING LP,2017/07/24,929544,Public Health & Wellness,Metro Government Operations,Supplies,Office Supplies,,,,,General Fund,,,503.98,195
2018,2017/05/19,1813990,583.13,CCH INC,2017/07/03,925789,Louisville Metro Police Department,Metro Government Operations,Contractual Services,Dues,,,,,General Fund,,,583.13,196
2018,2017/05/19,1813990,583.13,CCH INC,2017/07/03,925789,Louisville Metro Police Department,Metro Government Operations,Contractual Services,Dues,,,,,General Fund,,,-584.47,197
2018,2017/05/19,1813990,583.13,CCH INC,2017/07/03,925789,Louisville Metro Police Department,Metro Government Operations,Contractual Services,Dues,,,,,General Fund,,,584.47,198
2018,2017/06/20,1820779,592.72,MATTHEW BENDER & COMPANY INC,2017/07/25,929922,Louisville Metro Police Department,Metro Government Operations,Contractual Services,Dues,,,,,General Fund,,,-592.72,199
2018,2017/06/20,1820779,592.72,MATTHEW BENDER & COMPANY INC,2017/07/25,929922,Louisville Metro Police Department,Metro Government Operations,Contractual Services,Dues,,,,,General Fund,,,592.72,200
2018,2017/06/20,1820779,592.72,MATTHEW BENDER & COMPANY INC,2017/07/25,929922,Louisville Metro Police Department,Metro Government Operations,Contractual Services,Dues,,,,,General Fund,,,592.72,201
2018,2017/06/19,1822908,433,MPC PROMOTIONS,2017/07/31,930964,Louisville Metro Police Department,Metro Government Operations,Contractual Services,Dues,,,,,General Fund,,,433,202
2018,2017/06/01,1817598,883.21,THOMSON REUTERS SCIENTIFIC INC,2017/07/06,926346,Louisville Metro Police Department,Metro Government Operations,Contractual Services,Dues,,,,,General Fund,,,883.21,203
2018,2017/04/20,1817497,1500,WILSON SPORTING GOODS,2017/07/12,927379,Louisville Metro Police Department,Metro Government Operations,Contractual Services,Dues,,,,,General Fund,,,1500,204
2018,2017/06/09,1818606,18932.57,KONICA MINOLTA BUSINESS SOLUTIONS,2017/07/03,925933,Louisville Metro Police Department,Metro Government Operations,Contractual Services,Equipment Rental,,,,,General Fund,,,26.3,205
2018,2017/06/09,1818606,18932.57,KONICA MINOLTA BUSINESS SOLUTIONS,2017/07/03,925933,Louisville Metro Police Department,Metro Government Operations,Contractual Services,Equipment Rental,,,,,General Fund,,,135.58,206
2018,2017/06/09,1818606,18932.57,KONICA MINOLTA BUSINESS SOLUTIONS,2017/07/03,925933,Louisville Metro Police Department,Metro Government Operations,Contractual Services,Equipment Rental,,,,,General Fund,,,12.83,207
2018,2017/06/09,1818606,18932.57,KONICA MINOLTA BUSINESS SOLUTIONS,2017/07/03,925933,Louisville Metro Police Department,Metro Government Operations,Contractual Services,Equipment Rental,,,,,General Fund,,,1800.48,208
2018,2017/07/11,1822320,17895.78,KONICA MINOLTA BUSINESS SOLUTIONS,2017/07/19,928789,Louisville Metro Police Department,Metro Government Operations,Contractual Services,Equipment Rental,,,,,General Fund,,,146.22,209
2018,2017/07/11,1822320,17895.78,KONICA MINOLTA BUSINESS SOLUTIONS,2017/07/19,928789,Louisville Metro Police Department,Metro Government Operations,Contractual Services,Equipment Rental,,,,,General Fund,,,25.12,210
2018,2017/07/11,1822320,17895.78,KONICA MINOLTA BUSINESS SOLUTIONS,2017/07/19,928789,Louisville Metro Police Department,Metro Government Operations,Contractual Services,Equipment Rental,,,,,General Fund,,,1679.29,211
2018,2017/06/27,1818004,2022,COMSTOCK BROTHERS ELECTRIC CO LLC,2017/07/24,929539,Louisville Metro Police Department,Metro Government Operations,Contractual Services,Other Building Maintenance/Repair Services,,,,,General Fund,,,522,212
2018,2017/06/27,1818004,2022,COMSTOCK BROTHERS ELECTRIC CO LLC,2017/07/24,929539,Louisville Metro Police Department,Metro Government Operations,Contractual Services,Other Building Maintenance/Repair Services,,,,,General Fund,,,1500,213
2018,2017/06/29,1820802,1938.18,FISHEL COMPANY,2017/07/24,929553,Louisville Metro Police Department,Metro Government Operations,Contractual Services,Payments to Contractors,,,,,General Fund,,,1938.18,214
2018,2017/04/20,1818418,57118.65,FLYNN BROTHERS CONTRACTING INC,2017/07/03,925809,Louisville Metro Police Department,Metro Government Operations,Contractual Services,Payments to Contractors,,,,,General Fund,,,57118.65,215
2018,2017/06/29,1821587,5000,LASZLO F SIMONYI,2017/07/14,927820,Louisville Metro Police Department,Metro Government Operations,Contractual Services,Payments to Contractors,,,,,General Fund,,,5000,216
2018,2017/06/23,1817873,5000,LASZLO F SIMONYI,2017/07/28,930597,Louisville Metro Police Department,Metro Government Operations,Contractual Services,Payments to Contractors,,,,,General Fund,,,5000,217
2018,2017/06/20,1817857,5000,RICHARD A BADARACCO,2017/07/03,925867,Louisville Metro Police Department,Metro Government Operations,Contractual Services,Professional Services,,,,,General Fund,,,5000,218
2018,2017/06/30,1819607,5000,RICHARD A BADARACCO,2017/07/25,929954,Louisville Metro Police Department,Metro Government Operations,Contractual Services,Professional Services,,,,,General Fund,,,5000,219
2018,2017/06/30,1818000,19.99,COURIER JOURNAL,2017/07/03,925797,Louisville Metro Police Department,Metro Government Operations,Contractual Services,Public & Community Relations Services,,,,,General Fund,,,19.99,220
2018,2017/06/10,1816792,24157.38,THE HON COMPANY LLC,2017/07/05,926132,Louisville Metro Police Department,Metro Government Operations,Equipment/Capital Outlay,Furniture and Office Equipment,,,,,General Fund,,,24157.38,221
2018,2017/04/10,1815601,689.12,CDW LLC,2017/07/10,926754,Louisville Metro Police Department,Metro Government Operations,Equipment/Capital Outlay,Law Enforcement Equipment,,,,,General Fund,,,689.12,222
2018,2017/01/31,1823759,8532,GPS VEHICLE TRACKING SOLUTIONS LLC,2017/07/31,930843,Louisville Metro Police Department,Metro Government Operations,Equipment/Capital Outlay,Law Enforcement Equipment,,,,,General Fund,,,832,223
2018,2017/05/15,1823073,2150,UNITED UNIFORM DISTRIBUTION LLC,2017/07/20,929156,Louisville Metro Police Department,Metro Government Operations,Equipment/Capital Outlay,Law Enforcement Equipment,,,,,General Fund,,,2150,224
2018,2017/06/19,1823251,2761,MPC PROMOTIONS,2017/07/20,929174,Louisville Metro Police Department,Metro Government Operations,Supplies,Clothing/Uniform supplies,,,,,General Fund,,,2761,225
2018,2017/06/30,1823313,3531.5,MPC PROMOTIONS,2017/07/31,930964,Louisville Metro Police Department,Metro Government Operations,Supplies,Clothing/Uniform supplies,,,,,General Fund,,,3531.5,226
2018,2017/06/22,1823787,1350,MPC PROMOTIONS,2017/07/31,930964,Louisville Metro Police Department,Metro Government Operations,Supplies,Clothing/Uniform supplies,,,,,General Fund,,,1350,227
2018,2017/05/31,1813360,787.5,MPC PROMOTIONS,2017/07/03,925936,Louisville Metro Police Department,Metro Government Operations,Supplies,Clothing/Uniform supplies,,,,,General Fund,,,787.5,228
2018,2017/05/04,1806818,39.66,MPC PROMOTIONS,2017/07/14,927902,Louisville Metro Police Department,Metro Government Operations,Supplies,Clothing/Uniform supplies,,,,,General Fund,,,39.66,229
2018,2017/06/27,1823536,474,MPC PROMOTIONS,2017/07/24,929675,Louisville Metro Police Department,Metro Government Operations,Supplies,Clothing/Uniform supplies,,,,,General Fund,,,474,230
2018,2017/06/12,1815999,795.8,MPC PROMOTIONS,2017/07/07,926513,Louisville Metro Police Department,Metro Government Operations,Supplies,Office Supplies,,,,,General Fund,,,795.8,231
2018,2017/05/31,1811901,-39.99,OFFICE DEPOT INC,2017/07/19,928695,Louisville Metro Police Department,Metro Government Operations,Supplies,Office Supplies,,,,,General Fund,,,-39.99,232
2018,2017/04/03,1811667,-69.99,OFFICE DEPOT INC,2017/07/05,926100,Louisville Metro Police Department,Metro Government Operations,Supplies,Office Supplies,,,,,General Fund,,,-69.99,233
2018,2017/03/13,1811793,390.6,OFFICE DEPOT INC,2017/07/03,925850,Louisville Metro Police Department,Metro Government Operations,Supplies,Office Supplies,,,,,General Fund,,,390.6,234
2018,2017/04/19,1817441,280.66,OFFICE DEPOT INC,2017/07/03,925850,Louisville Metro Police Department,Metro Government Operations,Supplies,Office Supplies,,,,,General Fund,,,280.66,235
2018,2017/05/31,1812179,-39.99,OFFICE DEPOT INC,2017/07/05,926101,Louisville Metro Police Department,Metro Government Operations,Supplies,Office Supplies,,,,,General Fund,,,-39.99,236
2018,2017/04/19,1809767,21.02,OFFICE DEPOT INC,2017/07/03,925850,Louisville Metro Police Department,Metro Government Operations,Supplies,Office Supplies,,,,,General Fund,,,21.02,237
2018,2017/06/27,1823202,2034,MPC PROMOTIONS,2017/07/24,929675,Louisville Metro Police Department,Metro Government Operations,Supplies,Police Supplies,,,,,General Fund,,,2034,238
2018,2017/06/08,1824681,21.75,TYLER MOUNTAIN WATER CO INC,2017/07/27,930429,Louisville Metro Police Department,Metro Government Operations,Supplies,Police Supplies,,,,,General Fund,,,21.75,239
2018,2017/06/30,1824255,22.95,TYLER MOUNTAIN WATER CO INC,2017/07/26,930229,Louisville Metro Police Department,Metro Government Operations,Supplies,Police Supplies,,,,,General Fund,,,22.95,240
2018,2017/06/30,1824255,22.95,TYLER MOUNTAIN WATER CO INC,2017/07/26,930229,Louisville Metro Police Department,Metro Government Operations,Supplies,Police Supplies,,,,,General Fund,,,-22.95,241
2018,2017/05/31,1817125,5,TYLER MOUNTAIN WATER CO INC,2017/07/11,927102,Louisville Metro Police Department,Metro Government Operations,Supplies,Police Supplies,,,,,General Fund,,,5,242
2018,2017/05/10,1817513,21.75,TYLER MOUNTAIN WATER CO INC,2017/07/12,927365,Louisville Metro Police Department,Metro Government Operations,Supplies,Police Supplies,,,,,General Fund,,,21.75,243
2018,2017/05/24,1817753,17.4,TYLER MOUNTAIN WATER CO INC,2017/07/03,925886,Louisville Metro Police Department,Metro Government Operations,Supplies,Police Supplies,,,,,General Fund,,,17.4,244
2018,2017/06/23,1822903,23,BEST STAMP & SEAL CO INC,2017/07/31,930808,Louisville Metro Police Department,Metro Government Operations,Supplies,Printing/Copier/Reproduction Supplies,,,,,General Fund,,,23,245
2018,2017/06/05,1823230,60,CROWN TROPHY OF LOUISVILLE,2017/07/26,930117,Louisville Metro Police Department,Metro Government Operations,Supplies,Public & Community Relations Supplies,,,,,General Fund,,,60,246
2018,2017/04/07,1800651,110,KENTUCKY CORRECTIONAL INDUSTRIES (KCI),2017/07/10,926809,Louisville Metro Police Department,Metro Government Operations,Supplies,Public & Community Relations Supplies,,,,,General Fund,,,31.82,247
2018,2017/04/07,1800651,110,KENTUCKY CORRECTIONAL INDUSTRIES (KCI),2017/07/10,926809,Louisville Metro Police Department,Metro Government Operations,Supplies,Public & Community Relations Supplies,,,,,General Fund,,,31.82,248
2018,2017/04/07,1800651,110,KENTUCKY CORRECTIONAL INDUSTRIES (KCI),2017/07/10,926809,Louisville Metro Police Department,Metro Government Operations,Supplies,Public & Community Relations Supplies,,,,,General Fund,,,46.36,249
2018,2017/05/15,1823185,105.53,KROGER CO,2017/07/26,930160,Louisville Metro Police Department,Metro Government Operations,Supplies,Public & Community Relations Supplies,,,,,General Fund,,,105.53,250
2018,2017/07/11,1822320,17895.78,KONICA MINOLTA BUSINESS SOLUTIONS,2017/07/19,928789,Louisville Metro Police Department,Metro Government Operations,Contractual Services,Equipment Rental,,,,,General Fund,,,353,251
2018,2017/06/09,1818606,18932.57,KONICA MINOLTA BUSINESS SOLUTIONS,2017/07/03,925933,Louisville Metro Police Department,Metro Government Operations,Contractual Services,Equipment Rental,,,,,General Fund,,,437.72,252
2018,2017/06/09,1818606,18932.57,KONICA MINOLTA BUSINESS SOLUTIONS,2017/07/03,925933,Louisville Metro Police Department,Metro Government Operations,Contractual Services,Equipment Rental,,,,,General Fund,,,223.64,253
2018,2017/06/09,1818606,18932.57,KONICA MINOLTA BUSINESS SOLUTIONS,2017/07/03,925933,Louisville Metro Police Department,Metro Government Operations,Contractual Services,Equipment Rental,,,,,General Fund,,,110.92,254
2018,2017/06/09,1818606,18932.57,KONICA MINOLTA BUSINESS SOLUTIONS,2017/07/03,925933,Louisville Metro Police Department,Metro Government Operations,Contractual Services,Equipment Rental,,,,,General Fund,,,337.83,255
2018,2017/07/11,1822320,17895.78,KONICA MINOLTA BUSINESS SOLUTIONS,2017/07/19,928789,Louisville Metro Police Department,Metro Government Operations,Contractual Services,Equipment Rental,,,,,General Fund,,,102.76,256
2018,2017/07/11,1822320,17895.78,KONICA MINOLTA BUSINESS SOLUTIONS,2017/07/19,928789,Louisville Metro Police Department,Metro Government Operations,Contractual Services,Equipment Rental,,,,,General Fund,,,362.82,257
2018,2017/07/11,1822320,17895.78,KONICA MINOLTA BUSINESS SOLUTIONS,2017/07/19,928789,Louisville Metro Police Department,Metro Government Operations,Contractual Services,Equipment Rental,,,,,General Fund,,,214.23,258
2018,2017/06/28,1820428,114.4,US BANK EQUIPMENT FINANCE,2017/07/14,927877,Louisville Metro Police Department,Metro Government Operations,Contractual Services,Equipment Rental,,,,,General Fund,,,62.4,259
2018,2017/06/28,1820428,114.4,US BANK EQUIPMENT FINANCE,2017/07/14,927877,Louisville Metro Police Department,Metro Government Operations,Contractual Services,Equipment Rental,,,,,General Fund,,,52,260
2018,2017/05/19,1811514,114.4,US BANK EQUIPMENT FINANCE,2017/07/12,927373,Louisville Metro Police Department,Metro Government Operations,Contractual Services,Equipment Rental,,,,,General Fund,,,114.4,261
2018,2017/04/19,1817392,326,OFFICE DEPOT INC,2017/07/14,927836,Louisville Metro Police Department,Metro Government Operations,Supplies,Office Supplies,,,,,General Fund,,,326,262
2018,2017/06/30,1822176,32.1,SHRED IT US JV LLC,2017/07/26,930207,Louisville Metro Police Department,Metro Government Operations,Contractual Services,Contractual Non Professional Service Agreements,,,,,General Fund,,,12.1,263
2018,2017/06/30,1822176,32.1,SHRED IT US JV LLC,2017/07/26,930207,Louisville Metro Police Department,Metro Government Operations,Contractual Services,Contractual Non Professional Service Agreements,,,,,General Fund,,,20,264
2018,2017/06/30,1822176,32.1,SHRED IT US JV LLC,2017/07/26,930207,Louisville Metro Police Department,Metro Government Operations,Contractual Services,Contractual Non Professional Service Agreements,,,,,General Fund,,,-12.1,265
2018,2017/06/30,1822176,32.1,SHRED IT US JV LLC,2017/07/26,930207,Louisville Metro Police Department,Metro Government Operations,Contractual Services,Contractual Non Professional Service Agreements,,,,,General Fund,,,12.1,266
2018,2017/06/30,1822176,32.1,SHRED IT US JV LLC,2017/07/26,930207,Louisville Metro Police Department,Metro Government Operations,Contractual Services,Contractual Non Professional Service Agreements,,,,,General Fund,,,-20,267
2018,2017/06/30,1822176,32.1,SHRED IT US JV LLC,2017/07/26,930207,Louisville Metro Police Department,Metro Government Operations,Contractual Services,Contractual Non Professional Service Agreements,,,,,General Fund,,,20,268
2018,2017/06/14,1815721,2417.76,GRAINGER INDUSTRIAL SUPPLY,2017/07/10,926788,Louisville Metro Police Department,Metro Government Operations,Contractual Services,Hazardous Materials Response Supplies,,,,,General Fund,,,2417.76,269
2018,2017/06/07,1814091,1009.23,GRAINGER INDUSTRIAL SUPPLY,2017/07/03,925815,Louisville Metro Police Department,Metro Government Operations,Contractual Services,Hazardous Materials Response Supplies,,,,,General Fund,,,1009.23,270
2018,2017/06/14,1819136,210.62,LOWES COMPANIES INC,2017/07/07,926609,Louisville Metro Police Department,Metro Government Operations,Contractual Services,Hazardous Materials Response Supplies,,,,,General Fund,,,210.62,271
2018,2017/01/10,1820202,-24.2,LOWES COMPANIES INC,2017/07/10,926822,Louisville Metro Police Department,Metro Government Operations,Contractual Services,Hazardous Materials Response Supplies,,,,,General Fund,,,-24.2,272
2018,2017/06/14,1819254,2312.42,LOWES COMPANIES INC,2017/07/17,928213,Louisville Metro Police Department,Metro Government Operations,Contractual Services,Hazardous Materials Response Supplies,,,,,General Fund,,,2185.42,273
2018,2017/06/14,1819254,2312.42,LOWES COMPANIES INC,2017/07/17,928213,Louisville Metro Police Department,Metro Government Operations,Contractual Services,Hazardous Materials Response Supplies,,,,,General Fund,,,127,274
2018,2017/06/29,1823105,27.36,SPECIFIC WASTE INDUSTRIES LLC,2017/07/31,930915,Louisville Metro Police Department,Metro Government Operations,Contractual Services,Hazardous Materials Response Supplies,,,,,General Fund,,,27.36,275
2018,2017/07/07,1825751,4680,KENTUCKY CORRECTIONAL INDUSTRIES (KCI),2017/09/06,937288,Louisville Metro Police Department,Metro Government Operations,Supplies,Office Supplies,,,,,General Fund,,,4680,276
2018,2017/07/11,1822320,17895.78,KONICA MINOLTA BUSINESS SOLUTIONS,2017/07/19,928789,Louisville Metro Police Department,Metro Government Operations,Contractual Services,Equipment Rental,,,,,General Fund,,,942.4,277
2018,2017/06/09,1818606,18932.57,KONICA MINOLTA BUSINESS SOLUTIONS,2017/07/03,925933,Louisville Metro Police Department,Metro Government Operations,Contractual Services,Equipment Rental,,,,,General Fund,,,893.69,278
2018,2017/06/27,1823218,90,ROCKY MOUNTAIN LOGISTICS INC,2017/07/31,930903,Louisville Metro Police Department,Metro Government Operations,Contractual Services,Equipment Rental,,,,,General Fund,,,90,279
2018,2017/06/02,1813219,257.05,STRATUS AUDIO INC,2017/07/05,926126,Louisville Metro Police Department,Metro Government Operations,Contractual Services,Professional Services,,,,,General Fund,,,257.05,280
2018,2017/04/05,1819100,331.06,STRATUS AUDIO INC,2017/07/12,927355,Louisville Metro Police Department,Metro Government Operations,Contractual Services,Professional Services,,,,,General Fund,,,331.06,281
2018,2017/06/28,1822426,12.56,OFFICE DEPOT INC,2017/07/20,929129,Louisville Metro Police Department,Metro Government Operations,Supplies,Office Supplies,,,,,General Fund,,,12.56,282
2018,2017/04/19,1817390,105.1,OFFICE DEPOT INC,2017/07/03,925850,Louisville Metro Police Department,Metro Government Operations,Supplies,Office Supplies,,,,,General Fund,,,105.1,283
2018,2017/05/26,1819261,47.93,OFFICE DEPOT INC,2017/07/07,926618,Louisville Metro Police Department,Metro Government Operations,Supplies,Office Supplies,,,,,General Fund,,,47.93,284
2018,2017/06/12,1819072,47455.21,VERIZON WIRELESS,2017/07/05,926144,Louisville Metro Police Department,Metro Government Operations,Contractual Services,Air Cards,,,,,General Fund,,,36444.17,285
2018,2017/06/12,1819072,47455.21,VERIZON WIRELESS,2017/07/05,926144,Louisville Metro Police Department,Metro Government Operations,Contractual Services,Air Cards,,,,,General Fund,,,11011.04,286
2018,2017/05/23,1823237,18405.47,VERIZON WIRELESS,2017/07/20,929158,Louisville Metro Police Department,Metro Government Operations,Contractual Services,Cellular Telephone Services,,,,,General Fund,,,18405.47,287
2018,2017/06/23,1820205,18624.93,VERIZON WIRELESS,2017/07/12,927375,Louisville Metro Police Department,Metro Government Operations,Contractual Services,Cellular Telephone Services,,,,,General Fund,,,18624.93,288
2018,2017/06/12,1815593,420.66,CDW LLC,2017/07/07,926565,Louisville Metro Police Department,Metro Government Operations,Contractual Services,Computer Software Licenses,,,,,General Fund,,,420.66,289
2018,2017/06/09,1814246,140.22,CDW LLC,2017/07/05,926057,Louisville Metro Police Department,Metro Government Operations,Contractual Services,Computer Software Licenses,,,,,General Fund,,,140.22,290
2018,2017/06/07,1813795,2056.9,CDW LLC,2017/07/03,925790,Louisville Metro Police Department,Metro Government Operations,Contractual Services,Computer Software Licenses,,,,,General Fund,,,2056.9,291
2018,2017/06/19,1826889,26456.25,CITRIX SYSTEMS INC,2017/08/04,931757,Louisville Metro Police Department,Metro Government Operations,Contractual Services,Computer Software Licenses,,,,,General Fund,,,26456.25,292
2018,2017/06/14,1815384,121.94,SHI INTERNATIONAL CORP,2017/07/10,926867,Louisville Metro Police Department,Metro Government Operations,Contractual Services,Computer Software Licenses,,,,,General Fund,,,121.94,293
2018,2017/06/15,1818596,380.48,SHI INTERNATIONAL CORP,2017/07/10,926867,Louisville Metro Police Department,Metro Government Operations,Contractual Services,Computer Software Licenses,,,,,General Fund,,,380.48,294
2018,2017/06/19,1819102,2663.36,SHI INTERNATIONAL CORP,2017/07/10,926867,Louisville Metro Police Department,Metro Government Operations,Contractual Services,Computer Software Licenses,,,,,General Fund,,,2663.36,295
2018,2017/06/07,1813994,7803,CI TECHNOLOGIES INC,2017/07/03,925792,Louisville Metro Police Department,Metro Government Operations,Contractual Services,Computer Software Rental,,,,,General Fund,,,7803,296
2018,2017/05/08,1820350,223.35,TIME WARNER CABLE ENTERPRISES LLC,2017/07/14,927868,Louisville Metro Police Department,Metro Government Operations,Contractual Services,Data Communication Services,,,,,General Fund,,,223.35,297
2018,2017/04/08,1820297,220,TIME WARNER CABLE ENTERPRISES LLC,2017/07/12,927360,Louisville Metro Police Department,Metro Government Operations,Contractual Services,Data Communication Services,,,,,General Fund,,,220,298
2018,2017/06/08,1820316,226.7,TIME WARNER CABLE ENTERPRISES LLC,2017/07/19,928751,Louisville Metro Police Department,Metro Government Operations,Contractual Services,Data Communication Services,,,,,General Fund,,,226.7,299
2018,2017/06/08,1814122,245,CDW LLC,2017/07/03,925790,Louisville Metro Police Department,Metro Government Operations,Contractual Services,Equipment Maintenance/Repair Services,,,,,General Fund,,,245,300
2018,2017/06/10,1814952,970.8,CDW LLC,2017/07/10,926754,Louisville Metro Police Department,Metro Government Operations,Contractual Services,Equipment Maintenance/Repair Services,,,,,General Fund,,,970.8,301
2018,2017/06/19,1823141,715,PC NET INC,2017/07/31,930889,Louisville Metro Police Department,Metro Government Operations,Contractual Services,Equipment Maintenance/Repair Services,,,,,General Fund,,,715,302
2018,2017/06/09,1818606,18932.57,KONICA MINOLTA BUSINESS SOLUTIONS,2017/07/03,925933,Louisville Metro Police Department,Metro Government Operations,Contractual Services,Equipment Rental,,,,,General Fund,,,50.92,303
2018,2017/07/11,1822320,17895.78,KONICA MINOLTA BUSINESS SOLUTIONS,2017/07/19,928789,Louisville Metro Police Department,Metro Government Operations,Contractual Services,Equipment Rental,,,,,General Fund,,,50,304
2018,2017/06/29,1820938,760.94,FISHEL COMPANY,2017/07/24,929553,Louisville Metro Police Department,Metro Government Operations,Contractual Services,Professional Services,,,,,General Fund,,,760.94,305
2018,2017/06/29,1821460,590.14,FISHEL COMPANY,2017/07/24,929553,Louisville Metro Police Department,Metro Government Operations,Contractual Services,Professional Services,,,,,General Fund,,,590.14,306
2018,2017/06/29,1821289,983.68,FISHEL COMPANY,2017/07/24,929553,Louisville Metro Police Department,Metro Government Operations,Contractual Services,Professional Services,,,,,General Fund,,,983.68,307
2018,2017/07/06,1820783,799.92,AMAZON COM,2017/07/14,927748,Louisville Metro Police Department,Metro Government Operations,Equipment/Capital Outlay,Computer Hardware,,,,,General Fund,,,799.92,308
2018,2017/07/05,1820276,243.92,AMAZON COM,2017/07/31,930797,Louisville Metro Police Department,Metro Government Operations,Equipment/Capital Outlay,Computer Hardware,,,,,General Fund,,,243.92,309
2018,2017/06/19,1816593,1116.92,AMAZON COM,2017/07/05,926046,Louisville Metro Police Department,Metro Government Operations,Equipment/Capital Outlay,Computer Hardware,,,,,General Fund,,,1116.92,310
2018,2017/06/16,1816673,1187.94,AMAZON COM,2017/07/03,925772,Louisville Metro Police Department,Metro Government Operations,Equipment/Capital Outlay,Computer Hardware,,,,,General Fund,,,1187.94,311
2018,2017/06/20,1817105,86.34,AMAZON COM,2017/07/05,926046,Louisville Metro Police Department,Metro Government Operations,Equipment/Capital Outlay,Computer Hardware,,,,,General Fund,,,86.34,312
2018,2017/06/10,1814697,1197,CDW LLC,2017/07/05,926057,Louisville Metro Police Department,Metro Government Operations,Equipment/Capital Outlay,Computer Hardware,,,,,General Fund,,,1197,313
2018,2017/06/06,1812600,115.5,CDW LLC,2017/07/03,925790,Louisville Metro Police Department,Metro Government Operations,Equipment/Capital Outlay,Computer Hardware,,,,,General Fund,,,115.5,314
2018,2017/06/06,1812863,90.23,CDW LLC,2017/07/03,925790,Louisville Metro Police Department,Metro Government Operations,Equipment/Capital Outlay,Computer Hardware,,,,,General Fund,,,90.23,315
2018,2017/06/16,1821277,1373.4,CDW LLC,2017/07/19,928580,Louisville Metro Police Department,Metro Government Operations,Equipment/Capital Outlay,Computer Hardware,,,,,General Fund,,,1221.55,316
2018,2017/06/29,1821074,392.7,CDW LLC,2017/07/26,930111,Louisville Metro Police Department,Metro Government Operations,Equipment/Capital Outlay,Computer Hardware,,,,,General Fund,,,392.7,317
2018,2017/05/15,1813835,199.83,CDW LLC,2017/07/17,928153,Louisville Metro Police Department,Metro Government Operations,Equipment/Capital Outlay,Computer Hardware,,,,,General Fund,,,199.83,318
2018,2017/06/27,1818349,8963.94,DELL MARKETING LP,2017/07/24,929544,Louisville Metro Police Department,Metro Government Operations,Equipment/Capital Outlay,Computer Hardware,,,,,General Fund,,,8963.94,319
2018,2017/06/28,1818893,20745,DELL MARKETING LP,2017/07/24,929544,Louisville Metro Police Department,Metro Government Operations,Equipment/Capital Outlay,Computer Hardware,,,,,General Fund,,,20745,320
2018,2017/06/11,1814408,1693.5,DELL MARKETING LP,2017/07/06,926278,Louisville Metro Police Department,Metro Government Operations,Equipment/Capital Outlay,Computer Hardware,,,,,General Fund,,,184,321
2018,2017/06/11,1814408,1693.5,DELL MARKETING LP,2017/07/06,926278,Louisville Metro Police Department,Metro Government Operations,Equipment/Capital Outlay,Computer Hardware,,,,,General Fund,,,1509.5,322
2018,2017/06/29,1820803,216.42,FISHEL COMPANY,2017/07/24,929553,Louisville Metro Police Department,Metro Government Operations,Equipment/Capital Outlay,Computer Hardware,,,,,General Fund,,,216.42,323
2018,2017/06/23,1817945,2806.56,SHI INTERNATIONAL CORP,2017/07/18,928423,Louisville Metro Police Department,Metro Government Operations,Equipment/Capital Outlay,Computer Hardware,,,,,General Fund,,,2806.56,324
2018,2017/06/29,1821409,1369,RADIO COMMUNICATIONS SYSTEMS INC,2017/07/14,927904,Louisville Metro Police Department,Metro Government Operations,Equipment/Capital Outlay,Radio/Communications Equipment,,,,,General Fund,,,1369,325
2018,2017/06/15,1816828,179.85,AMAZON COM,2017/07/05,926046,Louisville Metro Police Department,Metro Government Operations,Supplies,Office Supplies,,,,,General Fund,,,179.85,326
2018,2017/06/16,1816654,61.21,AMAZON COM,2017/07/05,926046,Louisville Metro Police Department,Metro Government Operations,Supplies,Office Supplies,,,,,General Fund,,,61.21,327
2018,2017/06/16,1816759,61.21,AMAZON COM,2017/07/03,925772,Louisville Metro Police Department,Metro Government Operations,Supplies,Office Supplies,,,,,General Fund,,,61.21,328
2018,2017/06/16,1816219,179.85,AMAZON COM,2017/07/05,926046,Louisville Metro Police Department,Metro Government Operations,Supplies,Office Supplies,,,,,General Fund,,,179.85,329
2018,2017/06/20,1817744,44.95,AMAZON COM,2017/07/10,926732,Louisville Metro Police Department,Metro Government Operations,Supplies,Office Supplies,,,,,General Fund,,,44.95,330
2018,2017/06/20,1817744,44.95,AMAZON COM,2017/07/10,926732,Louisville Metro Police Department,Metro Government Operations,Supplies,Office Supplies,,,,,General Fund,,,38.82,331
2018,2017/06/20,1817744,44.95,AMAZON COM,2017/07/10,926732,Louisville Metro Police Department,Metro Government Operations,Supplies,Office Supplies,,,,,General Fund,,,-38.82,332
2018,2017/06/16,1821277,1373.4,CDW LLC,2017/07/19,928580,Louisville Metro Police Department,Metro Government Operations,Supplies,Office Supplies,,,,,General Fund,,,151.85,333
2018,2016/08/29,1734638,240,KENTUCKY STATE UNIVERSITY,2017/08/11,933050,Louisville Metro Police Department,Metro Government Operations,Contractual Services,Advertising,,,,,General Fund,,,240,334
2018,2017/06/15,1818593,-20.39,SHRED IT US JV LLC,2017/07/14,927858,Louisville Metro Police Department,Metro Government Operations,Contractual Services,Contractual Non Professional Service Agreements,,,,,General Fund,,,20.39,335
2018,2017/06/15,1818593,-20.39,SHRED IT US JV LLC,2017/07/14,927858,Louisville Metro Police Department,Metro Government Operations,Contractual Services,Contractual Non Professional Service Agreements,,,,,General Fund,,,-20.39,336
2018,2017/07/11,1822320,17895.78,KONICA MINOLTA BUSINESS SOLUTIONS,2017/07/19,928789,Louisville Metro Police Department,Metro Government Operations,Contractual Services,Equipment Rental,,,,,General Fund,,,1744.05,337
2018,2017/06/09,1818606,18932.57,KONICA MINOLTA BUSINESS SOLUTIONS,2017/07/03,925933,Louisville Metro Police Department,Metro Government Operations,Contractual Services,Equipment Rental,,,,,General Fund,,,1866.78,338
2018,2017/06/10,1823255,4760,G-FIT INC,2017/07/26,930137,Louisville Metro Police Department,Metro Government Operations,Contractual Services,Professional Services,,,,,General Fund,,,4760,339
2018,2017/05/04,1820274,2250,HEALTHPOINT ASSOCIATES INC,2017/07/12,927302,Louisville Metro Police Department,Metro Government Operations,Contractual Services,Professional Services,,,,,General Fund,,,2250,340
2018,2017/04/13,1820275,2025,HEALTHPOINT ASSOCIATES INC,2017/07/14,927801,Louisville Metro Police Department,Metro Government Operations,Contractual Services,Professional Services,,,,,General Fund,,,2025,341
2018,2017/04/27,1820277,450,HEALTHPOINT ASSOCIATES INC,2017/07/12,927302,Louisville Metro Police Department,Metro Government Operations,Contractual Services,Professional Services,,,,,General Fund,,,450,342
2018,2017/04/12,1820254,2250,HEALTHPOINT ASSOCIATES INC,2017/07/12,927302,Louisville Metro Police Department,Metro Government Operations,Contractual Services,Professional Services,,,,,General Fund,,,2250,343
2018,2017/04/14,1820256,2250,HEALTHPOINT ASSOCIATES INC,2017/07/12,927302,Louisville Metro Police Department,Metro Government Operations,Contractual Services,Professional Services,,,,,General Fund,,,2250,344
2018,2017/04/17,1820259,2250,HEALTHPOINT ASSOCIATES INC,2017/07/12,927302,Louisville Metro Police Department,Metro Government Operations,Contractual Services,Professional Services,,,,,General Fund,,,2250,345
2018,2017/04/18,1820261,1800,HEALTHPOINT ASSOCIATES INC,2017/07/12,927302,Louisville Metro Police Department,Metro Government Operations,Contractual Services,Professional Services,,,,,General Fund,,,1800,346
2018,2017/04/19,1820262,2250,HEALTHPOINT ASSOCIATES INC,2017/07/12,927302,Louisville Metro Police Department,Metro Government Operations,Contractual Services,Professional Services,,,,,General Fund,,,2250,347
2018,2017/04/20,1820264,2250,HEALTHPOINT ASSOCIATES INC,2017/07/12,927302,Louisville Metro Police Department,Metro Government Operations,Contractual Services,Professional Services,,,,,General Fund,,,2250,348
2018,2017/04/21,1820267,2250,HEALTHPOINT ASSOCIATES INC,2017/07/12,927302,Louisville Metro Police Department,Metro Government Operations,Contractual Services,Professional Services,,,,,General Fund,,,2250,349
2018,2017/04/28,1820269,225,HEALTHPOINT ASSOCIATES INC,2017/07/12,927302,Louisville Metro Police Department,Metro Government Operations,Contractual Services,Professional Services,,,,,General Fund,,,225,350
2018,2017/05/02,1820245,2250,HEALTHPOINT ASSOCIATES INC,2017/07/12,927302,Louisville Metro Police Department,Metro Government Operations,Contractual Services,Professional Services,,,,,General Fund,,,2250,351
2018,2017/04/11,1820251,2250,HEALTHPOINT ASSOCIATES INC,2017/07/12,927302,Louisville Metro Police Department,Metro Government Operations,Contractual Services,Professional Services,,,,,General Fund,,,2250,352
2018,2017/05/05,1820247,1800,HEALTHPOINT ASSOCIATES INC,2017/07/12,927302,Louisville Metro Police Department,Metro Government Operations,Contractual Services,Professional Services,,,,,General Fund,,,1800,353
2018,2017/06/27,1822479,2250,HEALTHPOINT ASSOCIATES INC,2017/07/24,929568,Louisville Metro Police Department,Metro Government Operations,Contractual Services,Professional Services,,,,,General Fund,,,2250,354
2018,2017/06/30,1822480,1350,HEALTHPOINT ASSOCIATES INC,2017/07/24,929568,Louisville Metro Police Department,Metro Government Operations,Contractual Services,Professional Services,,,,,General Fund,,,1350,355
2018,2017/06/26,1822477,2025,HEALTHPOINT ASSOCIATES INC,2017/07/24,929568,Louisville Metro Police Department,Metro Government Operations,Contractual Services,Professional Services,,,,,General Fund,,,2025,356
2018,2017/06/28,1822206,1800,HEALTHPOINT ASSOCIATES INC,2017/07/24,929568,Louisville Metro Police Department,Metro Government Operations,Contractual Services,Professional Services,,,,,General Fund,,,1800,357
2018,2017/06/29,1822209,900,HEALTHPOINT ASSOCIATES INC,2017/07/24,929568,Louisville Metro Police Department,Metro Government Operations,Contractual Services,Professional Services,,,,,General Fund,,,900,358
2018,2017/06/21,1823144,200,FRATERNAL ORDER OF POLICE #99,2017/07/24,929557,Louisville Metro Police Department,Metro Government Operations,Contractual Services,Training & Educational Fees,,,,,General Fund,,,200,359
2018,2017/06/29,1820281,60,JEFF ARTMAN,2017/07/10,926801,Louisville Metro Police Department,Metro Government Operations,Contractual Services,Training & Educational Fees,,,,,General Fund,,,60,360
2018,2017/06/13,1814598,560,JR AVIATION INC,2017/07/10,926804,Louisville Metro Police Department,Metro Government Operations,Contractual Services,Training & Educational Fees,,,,,General Fund,,,560,361
2018,2017/06/28,1823083,10260,JR AVIATION INC,2017/07/24,929579,Louisville Metro Police Department,Metro Government Operations,Contractual Services,Training & Educational Fees,,,,,General Fund,,,10260,362
2018,2017/07/05,1823558,150,JR AVIATION INC,2017/07/31,930853,Louisville Metro Police Department,Metro Government Operations,Contractual Services,Training & Educational Fees,,,,,General Fund,,,150,363
2018,2017/07/10,1820641,450.5,CARMINE ZOELLER,2017/07/11,927224,Louisville Metro Police Department,Metro Government Operations,Contractual Services,Travel, Out of Town,,,,,General Fund,,,364
2018,2017/07/05,1819705,1087.32,CHERYL TRIPLETT,2017/07/06,926450,Louisville Metro Police Department,Metro Government Operations,Contractual Services,Travel, Out of Town,,,,,General Fund,,,365
2018,2017/07/31,1827355,1819.6,DANIEL M GILLESPIE,2017/08/01,931260,Louisville Metro Police Department,Metro Government Operations,Contractual Services,Travel, Out of Town,,,,,General Fund,,,366
2018,2017/07/31,1827364,2336.66,DONNIE MASDEN,2017/08/01,931259,Louisville Metro Police Department,Metro Government Operations,Contractual Services,Travel, Out of Town,,,,,General Fund,,,367
2018,2017/07/17,1822945,229.5,EDWARD E THOMAS,2017/07/18,928473,Louisville Metro Police Department,Metro Government Operations,Contractual Services,Travel, Out of Town,,,,,General Fund,,,368
2018,2017/07/05,1819887,505.2,ERIC BLACK,2017/07/06,926448,Louisville Metro Police Department,Metro Government Operations,Contractual Services,Travel, Out of Town,,,,,General Fund,,,369
2018,2017/07/05,1819721,2260.27,GREGORY BURNS,2017/07/06,926455,Louisville Metro Police Department,Metro Government Operations,Contractual Services,Travel, Out of Town,,,,,General Fund,,,370
2018,2017/07/06,1820051,2428.35,JOHN WELSH,2017/07/06,926476,Louisville Metro Police Department,Metro Government Operations,Contractual Services,Travel, Out of Town,,,,,General Fund,,,371
2018,2017/07/11,1821232,450.5,JUSTIN BICKETT,2017/07/13,927699,Louisville Metro Police Department,Metro Government Operations,Contractual Services,Travel, Out of Town,,,,,General Fund,,,372
2018,2017/07/05,1819892,818.28,MICHAEL SULLIVAN,2017/07/06,926454,Louisville Metro Police Department,Metro Government Operations,Contractual Services,Travel, Out of Town,,,,,General Fund,,,373
2018,2017/06/30,1818927,316.5,MICHAEL SULLIVAN,2017/07/06,926454,Louisville Metro Police Department,Metro Government Operations,Contractual Services,Travel, Out of Town,,,,,General Fund,,,374
2018,2017/06/21,1822956,1980,MPC PROMOTIONS,2017/07/26,930255,Louisville Metro Police Department,Metro Government Operations,Supplies,Clothing/Uniform supplies,,,,,General Fund,,,1980,375
2018,2017/06/27,1823199,297,MPC PROMOTIONS,2017/07/24,929675,Louisville Metro Police Department,Metro Government Operations,Supplies,Clothing/Uniform supplies,,,,,General Fund,,,297,376
2018,2017/06/27,1823164,5610,MPC PROMOTIONS,2017/07/26,930255,Louisville Metro Police Department,Metro Government Operations,Supplies,Clothing/Uniform supplies,,,,,General Fund,,,5610,377
2018,2017/06/28,1823180,9504,MPC PROMOTIONS,2017/07/26,930255,Louisville Metro Police Department,Metro Government Operations,Supplies,Clothing/Uniform supplies,,,,,General Fund,,,9504,378
2018,2017/06/21,1823213,430,MPC PROMOTIONS,2017/07/20,929174,Louisville Metro Police Department,Metro Government Operations,Supplies,Clothing/Uniform supplies,,,,,General Fund,,,430,379
2018,2017/06/19,1822958,18621.6,MPC PROMOTIONS,2017/07/21,929419,Louisville Metro Police Department,Metro Government Operations,Supplies,Clothing/Uniform supplies,,,,,General Fund,,,18621.6,380
2018,2017/04/05,1823169,916,MURPHYS CAMERA,2017/07/26,930110,Louisville Metro Police Department,Metro Government Operations,Supplies,Police Supplies,,,,,General Fund,,,916,381
2018,2017/05/31,1817560,1988.75,DJ LEASING LLC,2017/07/06,926279,Louisville Metro Police Department,Metro Government Operations,Contractual Services,Automotive Repair Services,,,,,General Fund,,,1988.75,382
2018,2017/06/09,1818606,18932.57,KONICA MINOLTA BUSINESS SOLUTIONS,2017/07/03,925933,Louisville Metro Police Department,Metro Government Operations,Contractual Services,Equipment Rental,,,,,General Fund,,,243.46,383
2018,2017/07/11,1822320,17895.78,KONICA MINOLTA BUSINESS SOLUTIONS,2017/07/19,928789,Louisville Metro Police Department,Metro Government Operations,Contractual Services,Equipment Rental,,,,,General Fund,,,261.34,384
2018,2017/05/30,1815626,1278.8,MCGINNIS AUCTION & APPRAISAL SERVICE,2017/07/12,927330,Louisville Metro Police Department,Metro Government Operations,Contractual Services,Professional Services,,,,,General Fund,,,1278.8,385
2018,2017/05/30,1815430,1427.7,MCGINNIS AUCTION & APPRAISAL SERVICE,2017/07/12,927330,Louisville Metro Police Department,Metro Government Operations,Contractual Services,Professional Services,,,,,General Fund,,,1427.7,386
2018,2017/06/26,1824843,51.38,ARAMARK UNIFORM & CAREER APPAREL GROUP INC,2017/07/26,930091,Louisville Metro Police Department,Metro Government Operations,Contractual Services,Uniform Services,,,,,General Fund,,,51.38,387
2018,2017/06/19,1823040,51.38,ARAMARK UNIFORM & CAREER APPAREL GROUP INC,2017/07/26,930091,Louisville Metro Police Department,Metro Government Operations,Contractual Services,Uniform Services,,,,,General Fund,,,51.38,388
2018,2017/06/12,1817281,200,SAFETY SHOE DISTRIBUTORS OF OKI INC,2017/07/19,928725,Louisville Metro Police Department,Metro Government Operations,Supplies,Clothing/Uniform supplies,,,,,General Fund,,,13.02,389
2018,2017/06/12,1817281,200,SAFETY SHOE DISTRIBUTORS OF OKI INC,2017/07/19,928725,Louisville Metro Police Department,Metro Government Operations,Supplies,Clothing/Uniform supplies,,,,,General Fund,,,186.98,390
2018,2017/06/06,1817511,96.99,SAFETY SHOE DISTRIBUTORS OF OKI INC,2017/07/12,927348,Louisville Metro Police Department,Metro Government Operations,Supplies,Clothing/Uniform supplies,,,,,General Fund,,,96.99,391
2018,2017/05/30,1817385,55.39,RUMPKE OF KENTUCKY INC,2017/07/12,927347,Louisville Metro Police Department,Metro Government Operations,Supplies,Sanitation Operation Supplies,,,,,General Fund,,,55.39,392
2018,2017/06/12,1815311,-148.35,VERIZON WIRELESS,2017/08/03,931614,Louisville Zoo,Metro Government Operations,Contractual Services,Cellular Telephone Services,,,,,General Fund,,,-148.35,393
2018,2017/06/22,1822029,3145.8,CDW LLC,2017/07/28,930535,Louisville Zoo,Metro Government Operations,Contractual Services,Equipment Maintenance/Repair Services,,,,,General Fund,,,69,394
2018,2017/06/22,1822029,3145.8,CDW LLC,2017/07/28,930535,Louisville Zoo,Metro Government Operations,Contractual Services,Equipment Maintenance/Repair Services,,,,,General Fund,,,3076.8,395
2018,2017/06/28,1821282,4075.4,CDW LLC,2017/07/28,930535,Louisville Zoo,Metro Government Operations,Contractual Services,Equipment Maintenance/Repair Services,,,,,General Fund,,,4075.4,396
2018,2017/06/26,1821472,-141.8,CDW LLC,2017/08/01,931117,Louisville Zoo,Metro Government Operations,Contractual Services,Equipment Maintenance/Repair Services,,,,,General Fund,,,-141.8,397
2018,2017/06/13,1814865,1018.85,CDW LLC,2017/07/10,926754,Louisville Zoo,Metro Government Operations,Contractual Services,Equipment Maintenance/Repair Services,,,,,General Fund,,,1018.85,398
2018,2017/06/29,1820800,810.73,FISHEL COMPANY,2017/07/24,929553,Louisville Zoo,Metro Government Operations,Contractual Services,Equipment Maintenance/Repair Services,,,,,General Fund,,,810.73,399
2018,2017/06/09,1816046,1621.29,KONICA MINOLTA BUSINESS SOLUTIONS,2017/07/12,927392,Louisville Zoo,Metro Government Operations,Contractual Services,Equipment Rental,,,,,General Fund,,,100.68,400
2018,2017/06/09,1816046,1621.29,KONICA MINOLTA BUSINESS SOLUTIONS,2017/07/12,927392,Louisville Zoo,Metro Government Operations,Contractual Services,Equipment Rental,,,,,General Fund,,,1173.48,401
2018,2017/06/29,1820794,5597.24,DELL MARKETING LP,2017/07/31,930828,Louisville Zoo,Metro Government Operations,Contractual Services,Professional Services,,,,,General Fund,,,5597.24,402
2018,2017/06/29,1820357,755.96,FISHEL COMPANY,2017/07/28,930557,Louisville Zoo,Metro Government Operations,Contractual Services,Professional Services,,,,,General Fund,,,755.96,403
2018,2017/06/30,1822723,4148.37,LOUISVILLE ZOO FOUNDATION,2017/07/18,928401,Louisville Zoo,Metro Government Operations,Contractual Services,Professional Services,,,,,General Fund,,,4148.37,404
2018,2017/06/23,1817946,1871.04,SHI INTERNATIONAL CORP,2017/07/18,928423,Louisville Zoo,Metro Government Operations,Contractual Services,Professional Services,,,,,General Fund,,,1871.04,405
2018,2017/03/07,1822528,2491.41,DELL MARKETING LP,2017/07/31,930828,Louisville Zoo,Metro Government Operations,Equipment/Capital Outlay,Computer Hardware,,,,,General Fund,,,2491.41,406
2018,2017/05/27,1810342,860,CDW LLC,2017/07/28,930535,Louisville Zoo,Metro Government Operations,Equipment/Capital Outlay,Telecommunications Equipment,,,,,General Fund,,,860,407
2018,2017/06/27,1819996,3796,COMSTOCK BROTHERS ELECTRIC CO LLC,2017/07/11,927045,Louisville Zoo,Metro Government Operations,Equipment/Capital Outlay,Telecommunications Equipment,,,,,General Fund,,,3796,408
2018,2017/06/29,1821211,31421.43,FISHEL COMPANY,2017/07/14,927790,Louisville Zoo,Metro Government Operations,Equipment/Capital Outlay,Telecommunications Equipment,,,,,General Fund,,,31421.43,409
2018,2017/06/07,1822101,38.76,OFFICE DEPOT INC,2017/07/19,928695,Louisville Zoo,Metro Government Operations,Supplies,Office Supplies,,,,,General Fund,,,3.12,410
2018,2017/06/07,1822101,38.76,OFFICE DEPOT INC,2017/07/19,928695,Louisville Zoo,Metro Government Operations,Supplies,Office Supplies,,,,,General Fund,,,3.12,411
2018,2017/06/07,1822101,38.76,OFFICE DEPOT INC,2017/07/19,928695,Louisville Zoo,Metro Government Operations,Supplies,Office Supplies,,,,,General Fund,,,0.47,412
2018,2017/06/07,1822101,38.76,OFFICE DEPOT INC,2017/07/19,928695,Louisville Zoo,Metro Government Operations,Supplies,Office Supplies,,,,,General Fund,,,7.52,413
2018,2017/06/07,1822101,38.76,OFFICE DEPOT INC,2017/07/19,928695,Louisville Zoo,Metro Government Operations,Supplies,Office Supplies,,,,,General Fund,,,3.12,414
2018,2017/06/07,1822101,38.76,OFFICE DEPOT INC,2017/07/19,928695,Louisville Zoo,Metro Government Operations,Supplies,Office Supplies,,,,,General Fund,,,12.05,415
2018,2017/06/07,1822101,38.76,OFFICE DEPOT INC,2017/07/19,928695,Louisville Zoo,Metro Government Operations,Supplies,Office Supplies,,,,,General Fund,,,3.12,416
2018,2017/06/07,1822101,38.76,OFFICE DEPOT INC,2017/07/19,928695,Louisville Zoo,Metro Government Operations,Supplies,Office Supplies,,,,,General Fund,,,3.12,417
2018,2017/06/07,1822101,38.76,OFFICE DEPOT INC,2017/07/19,928695,Louisville Zoo,Metro Government Operations,Supplies,Office Supplies,,,,,General Fund,,,3.12,418
2018,2017/06/12,1822287,101.92,OFFICE DEPOT INC,2017/07/25,929936,Louisville Zoo,Metro Government Operations,Supplies,Office Supplies,,,,,General Fund,,,28.43,419
2018,2017/06/12,1822287,101.92,OFFICE DEPOT INC,2017/07/25,929936,Louisville Zoo,Metro Government Operations,Supplies,Office Supplies,,,,,General Fund,,,13.39,420
2018,2017/06/12,1822287,101.92,OFFICE DEPOT INC,2017/07/25,929936,Louisville Zoo,Metro Government Operations,Supplies,Office Supplies,,,,,General Fund,,,19.32,421
2018,2017/06/12,1822287,101.92,OFFICE DEPOT INC,2017/07/25,929936,Louisville Zoo,Metro Government Operations,Supplies,Office Supplies,,,,,General Fund,,,14.73,422
2018,2017/06/12,1822287,101.92,OFFICE DEPOT INC,2017/07/25,929936,Louisville Zoo,Metro Government Operations,Supplies,Office Supplies,,,,,General Fund,,,26.05,423
2018,2017/06/28,1822326,3.08,OFFICE DEPOT INC,2017/07/25,929936,Louisville Zoo,Metro Government Operations,Supplies,Office Supplies,,,,,General Fund,,,3.08,424
2018,2017/06/28,1822260,3.08,OFFICE DEPOT INC,2017/07/25,929936,Louisville Zoo,Metro Government Operations,Supplies,Office Supplies,,,,,General Fund,,,0.17,425
2018,2017/06/28,1822260,3.08,OFFICE DEPOT INC,2017/07/25,929936,Louisville Zoo,Metro Government Operations,Supplies,Office Supplies,,,,,General Fund,,,0.12,426
2018,2017/06/28,1822260,3.08,OFFICE DEPOT INC,2017/07/25,929936,Louisville Zoo,Metro Government Operations,Supplies,Office Supplies,,,,,General Fund,,,0.31,427
2018,2017/06/28,1822260,3.08,OFFICE DEPOT INC,2017/07/25,929936,Louisville Zoo,Metro Government Operations,Supplies,Office Supplies,,,,,General Fund,,,1.78,428
2018,2017/06/28,1822260,3.08,OFFICE DEPOT INC,2017/07/25,929936,Louisville Zoo,Metro Government Operations,Supplies,Office Supplies,,,,,General Fund,,,0.07,429
2018,2017/06/28,1822260,3.08,OFFICE DEPOT INC,2017/07/25,929936,Louisville Zoo,Metro Government Operations,Supplies,Office Supplies,,,,,General Fund,,,0.13,430
2018,2017/06/28,1822260,3.08,OFFICE DEPOT INC,2017/07/25,929936,Louisville Zoo,Metro Government Operations,Supplies,Office Supplies,,,,,General Fund,,,0.22,431
2018,2017/06/28,1822260,3.08,OFFICE DEPOT INC,2017/07/25,929936,Louisville Zoo,Metro Government Operations,Supplies,Office Supplies,,,,,General Fund,,,0.22,432
2018,2017/06/28,1822260,3.08,OFFICE DEPOT INC,2017/07/25,929936,Louisville Zoo,Metro Government Operations,Supplies,Office Supplies,,,,,General Fund,,,0.06,433
2018,2017/06/23,1819782,32,PARKWAY SOUTHERN CO,2017/07/20,929130,Louisville Zoo,Metro Government Operations,Supplies,Office Supplies,,,,,General Fund,,,32,434
2018,2017/06/27,1818597,85.9,MPC PROMOTIONS,2017/07/24,929675,Metro Animal Services,Metro Government Operations,Contractual Services,Advertising,,,,,General Fund,,,23.57,435
2018,2017/06/27,1818597,85.9,MPC PROMOTIONS,2017/07/24,929675,Metro Animal Services,Metro Government Operations,Contractual Services,Advertising,,,,,General Fund,,,0.57,436
2018,2017/06/27,1818597,85.9,MPC PROMOTIONS,2017/07/24,929675,Metro Animal Services,Metro Government Operations,Contractual Services,Advertising,,,,,General Fund,,,61.76,437
2018,2017/06/23,1818551,379.47,MPC PROMOTIONS,2017/07/07,926513,Metro Animal Services,Metro Government Operations,Contractual Services,Advertising,,,,,General Fund,,,379.47,438
2018,2017/06/15,1813803,1848.96,HLP INC,2017/07/10,926793,Metro Animal Services,Metro Government Operations,Contractual Services,Computer Software Licenses,,,,,General Fund,,,559.32,439
2018,2017/06/15,1813803,1848.96,HLP INC,2017/07/10,926793,Metro Animal Services,Metro Government Operations,Contractual Services,Computer Software Licenses,,,,,General Fund,,,1289.64,440
2018,2017/06/30,1820712,108.41,ADAM HAMILTON,2017/07/13,927703,Metro Animal Services,Metro Government Operations,Contractual Services,Mail & Shipping,,,,,General Fund,,,6.47,441
2018,2017/06/30,1820712,108.41,ADAM HAMILTON,2017/07/13,927703,Metro Animal Services,Metro Government Operations,Contractual Services,Mail & Shipping,,,,,General Fund,,,6.59,442
2018,2017/06/10,1814999,250,ANIMAL WELLNESS COALITION OF LOUISVILLE INC,2017/07/05,926049,Metro Animal Services,Metro Government Operations,Contractual Services,Miscellaneous Services,,,,,General Fund,,,250,443
2018,2017/06/01,1819289,25.2,DAROB INC,2017/07/07,926573,Metro Animal Services,Metro Government Operations,Contractual Services,Miscellaneous Services,,,,,General Fund,,,25.2,444
2018,2017/06/19,1817045,244.24,SHI INTERNATIONAL CORP,2017/07/14,927857,Metro Animal Services,Metro Government Operations,Contractual Services,Miscellaneous Services,,,,,General Fund,,,244.24,445
2018,2017/06/19,1818065,18,VAN DYNE CROTTY CO,2017/07/14,927878,Metro Animal Services,Metro Government Operations,Contractual Services,Miscellaneous Services,,,,,General Fund,,,18,446
2018,2017/06/26,1818371,18,VAN DYNE CROTTY CO,2017/07/11,927105,Metro Animal Services,Metro Government Operations,Contractual Services,Miscellaneous Services,,,,,General Fund,,,14,447
2018,2017/06/26,1818371,18,VAN DYNE CROTTY CO,2017/07/11,927105,Metro Animal Services,Metro Government Operations,Contractual Services,Miscellaneous Services,,,,,General Fund,,,4,448
2018,2017/06/12,1815111,18,VAN DYNE CROTTY CO,2017/07/07,926657,Metro Animal Services,Metro Government Operations,Contractual Services,Miscellaneous Services,,,,,General Fund,,,18,449
2018,2017/06/12,1815113,14,VAN DYNE CROTTY CO,2017/07/07,926657,Metro Animal Services,Metro Government Operations,Contractual Services,Miscellaneous Services,,,,,General Fund,,,14,450
2018,2017/06/26,1818369,14,VAN DYNE CROTTY CO,2017/07/07,926657,Metro Animal Services,Metro Government Operations,Contractual Services,Miscellaneous Services,,,,,General Fund,,,14,451
2018,2017/06/22,1817361,18,VAN DYNE CROTTY CO,2017/07/07,926657,Metro Animal Services,Metro Government Operations,Contractual Services,Miscellaneous Services,,,,,General Fund,,,18,452
2018,2017/06/08,1814159,18,VAN DYNE CROTTY CO,2017/07/03,925899,Metro Animal Services,Metro Government Operations,Contractual Services,Miscellaneous Services,,,,,General Fund,,,18,453
2018,2017/07/03,1820390,14,VAN DYNE CROTTY CO,2017/07/11,927105,Metro Animal Services,Metro Government Operations,Contractual Services,Miscellaneous Services,,,,,General Fund,,,14,454
2018,2017/06/29,1820151,18,VAN DYNE CROTTY CO,2017/07/10,926890,Metro Animal Services,Metro Government Operations,Contractual Services,Miscellaneous Services,,,,,General Fund,,,18,455
2018,2017/06/19,1817693,14,VAN DYNE CROTTY CO,2017/07/19,928761,Metro Animal Services,Metro Government Operations,Contractual Services,Miscellaneous Services,,,,,General Fund,,,14,456
2018,2017/06/22,1817449,18,VAN DYNE CROTTY CO,2017/07/17,928274,Metro Animal Services,Metro Government Operations,Contractual Services,Miscellaneous Services,,,,,General Fund,,,18,457
2018,2017/06/29,1818619,18,VAN DYNE CROTTY CO,2017/07/24,929645,Metro Animal Services,Metro Government Operations,Contractual Services,Miscellaneous Services,,,,,General Fund,,,18,458
2018,2017/07/06,1821461,18,VAN DYNE CROTTY CO,2017/07/31,930940,Metro Animal Services,Metro Government Operations,Contractual Services,Miscellaneous Services,,,,,General Fund,,,18,459
2018,2017/07/03,1821361,18,VAN DYNE CROTTY CO,2017/07/28,930649,Metro Animal Services,Metro Government Operations,Contractual Services,Miscellaneous Services,,,,,General Fund,,,18,460
2018,2017/07/11,1823231,1491.67,KONICA MINOLTA BUSINESS SOLUTIONS,2017/07/19,928789,Metro Animal Services,Metro Government Operations,Contractual Services,Printing/Copying,,,,,General Fund,,,1491.67,461
2018,2017/06/16,1816839,30,PARKWAY SOUTHERN CO,2017/07/11,927087,Metro Animal Services,Metro Government Operations,Contractual Services,Printing/Copying,,,,,General Fund,,,30,462
2018,2017/06/20,1817478,322.5,CURRIE SOUND & SECURITY SYSTEMS INC,2017/07/07,926571,Metro Animal Services,Metro Government Operations,Contractual Services,Security Services,,,,,General Fund,,,0.5,463
2018,2017/06/20,1817478,322.5,CURRIE SOUND & SECURITY SYSTEMS INC,2017/07/07,926571,Metro Animal Services,Metro Government Operations,Contractual Services,Security Services,,,,,General Fund,,,69.5,464
2018,2017/06/20,1817478,322.5,CURRIE SOUND & SECURITY SYSTEMS INC,2017/07/07,926571,Metro Animal Services,Metro Government Operations,Contractual Services,Security Services,,,,,General Fund,,,252.5,465
2018,2017/06/30,1820712,108.41,ADAM HAMILTON,2017/07/13,927703,Metro Animal Services,Metro Government Operations,Supplies,Miscellaneous Supplies,,,,,General Fund,,,14,466
2018,2017/06/07,1813443,19.45,KLEIN BROTHERS INC,2017/07/03,925932,Metro Animal Services,Metro Government Operations,Supplies,Miscellaneous Supplies,,,,,General Fund,,,19.45,467
2018,2017/06/06,1812824,109.36,CDW LLC,2017/07/03,925790,Metro Animal Services,Metro Government Operations,Supplies,Office Equipment,,,,,General Fund,,,109.36,468
2018,2017/06/13,1815731,695,DELL MARKETING LP,2017/07/25,929858,Metro Animal Services,Metro Government Operations,Supplies,Office Equipment,,,,,General Fund,,,695,469
2018,2017/06/27,1821971,9.99,OFFICE DEPOT INC,2017/07/25,929936,Metro Animal Services,Metro Government Operations,Supplies,Office Supplies,,,,,General Fund,,,9.99,470
2018,2017/06/26,1822433,35.99,OFFICE DEPOT INC,2017/07/19,928695,Metro Animal Services,Metro Government Operations,Supplies,Office Supplies,,,,,General Fund,,,35.99,471
2018,2017/06/26,1822278,54.58,OFFICE DEPOT INC,2017/07/21,929362,Metro Animal Services,Metro Government Operations,Supplies,Office Supplies,,,,,General Fund,,,54.58,472
2018,2017/06/30,1824535,642.38,SERVICE SYSTEMS ASSOCIATES INC,2017/08/03,931601,Louisville Zoo,Metro Government Operations,Contractual Services,Payments to Contractors,,,,,General Fund,,,642.38,473
2018,2017/06/30,1824748,518.99,SERVICE SYSTEMS ASSOCIATES INC,2017/08/03,931601,Louisville Zoo,Metro Government Operations,Contractual Services,Payments to Contractors,,,,,General Fund,,,518.99,474
2018,2017/06/28,1820839,272.4,C L MCBRIDE COMPANY INC,2017/07/17,928149,Louisville Fire,Metro Government Operations,Contractual Services,Automotive Outside Vendor,,,,,General Fund,,,272.4,475
2018,2017/06/28,1820520,246.03,C L MCBRIDE COMPANY INC,2017/07/17,928149,Louisville Fire,Metro Government Operations,Contractual Services,Automotive Outside Vendor,,,,,General Fund,,,246.03,476
2018,2017/06/15,1826535,506.26,C L MCBRIDE COMPANY INC,2017/07/31,930811,Louisville Fire,Metro Government Operations,Contractual Services,Automotive Outside Vendor,,,,,General Fund,,,506.26,477
2018,2017/05/31,1826558,354.13,C L MCBRIDE COMPANY INC,2017/07/31,930811,Louisville Fire,Metro Government Operations,Contractual Services,Automotive Outside Vendor,,,,,General Fund,,,354.13,478
2018,2017/06/15,1820395,508.26,C L MCBRIDE COMPANY INC,2017/07/10,926752,Louisville Fire,Metro Government Operations,Contractual Services,Automotive Outside Vendor,,,,,General Fund,,,508.26,479
2018,2017/06/28,1820522,360.06,C L MCBRIDE COMPANY INC,2017/07/14,927767,Louisville Fire,Metro Government Operations,Contractual Services,Automotive Outside Vendor,,,,,General Fund,,,360.06,480
2018,2017/06/09,1820535,2288.62,C L MCBRIDE COMPANY INC,2017/07/14,927767,Louisville Fire,Metro Government Operations,Contractual Services,Automotive Outside Vendor,,,,,General Fund,,,2288.62,481
2018,2017/06/30,1820517,110,C L MCBRIDE COMPANY INC,2017/07/14,927767,Louisville Fire,Metro Government Operations,Contractual Services,Automotive Outside Vendor,,,,,General Fund,,,110,482
2018,2017/06/30,1820566,516.73,C L MCBRIDE COMPANY INC,2017/07/14,927767,Louisville Fire,Metro Government Operations,Contractual Services,Automotive Outside Vendor,,,,,General Fund,,,516.73,483
2018,2017/06/25,1825889,29.3,REPUBLIC SERVICES OF KENTUCKY LLC,2017/08/01,931203,Louisville Fire,Metro Government Operations,Contractual Services,Containerized Waste Collection Services,,,,,General Fund,,,29.3,484
2018,2017/02/28,1817020,884.94,REPUBLIC SERVICES OF KENTUCKY LLC,2017/07/14,927849,Louisville Fire,Metro Government Operations,Contractual Services,Containerized Waste Collection Services,,,,,General Fund,,,884.94,485
2018,2017/06/16,1816754,1225.68,ALPHA MECHANICAL SERVICE INC,2017/07/11,927027,Louisville Fire,Metro Government Operations,Contractual Services,Equipment Maintenance/Repair Services,,,,,General Fund,,,1225.68,486
2018,2017/06/23,1817698,233.85,ALPHA MECHANICAL SERVICE INC,2017/07/03,925770,Louisville Fire,Metro Government Operations,Contractual Services,Equipment Maintenance/Repair Services,,,,,General Fund,,,233.85,487
2018,2017/06/23,1817859,64,ALPHA MECHANICAL SERVICE INC,2017/07/03,925770,Louisville Fire,Metro Government Operations,Contractual Services,Equipment Maintenance/Repair Services,,,,,General Fund,,,64,488
2018,2017/06/23,1817864,836.03,ALPHA MECHANICAL SERVICE INC,2017/07/03,925770,Louisville Fire,Metro Government Operations,Contractual Services,Equipment Maintenance/Repair Services,,,,,General Fund,,,836.03,489
2018,2017/06/23,1817831,237,ALPHA MECHANICAL SERVICE INC,2017/07/03,925770,Louisville Fire,Metro Government Operations,Contractual Services,Equipment Maintenance/Repair Services,,,,,General Fund,,,237,490
2018,2017/06/30,1821222,175.98,ALPHA MECHANICAL SERVICE INC,2017/07/13,927591,Louisville Fire,Metro Government Operations,Contractual Services,Equipment Maintenance/Repair Services,,,,,General Fund,,,175.98,491
2018,2017/06/29,1820559,510,NIXON POWER SERVICES LLC,2017/07/24,929676,Louisville Fire,Metro Government Operations,Contractual Services,Equipment Maintenance/Repair Services,,,,,General Fund,,,510,492
2018,2017/04/07,1821522,2544.34,KONICA MINOLTA BUSINESS SOLUTIONS,2017/07/13,927681,Louisville Fire,Metro Government Operations,Contractual Services,Equipment Rental,,,,,General Fund,,,2544.34,493
2018,2017/06/09,1815385,2532.77,KONICA MINOLTA BUSINESS SOLUTIONS,2017/07/10,926917,Louisville Fire,Metro Government Operations,Contractual Services,Equipment Rental,,,,,General Fund,,,0.71,494
2018,2017/06/09,1815385,2532.77,KONICA MINOLTA BUSINESS SOLUTIONS,2017/07/10,926917,Louisville Fire,Metro Government Operations,Contractual Services,Equipment Rental,,,,,General Fund,,,2532.06,495
2018,2017/07/11,1822242,2338.08,KONICA MINOLTA BUSINESS SOLUTIONS,2017/07/17,928297,Louisville Fire,Metro Government Operations,Contractual Services,Equipment Rental,,,,,General Fund,,,2338.08,496
2018,2017/06/29,1818459,83.68,ARAMARK UNIFORM & CAREER APPAREL GROUP INC,2017/07/05,926051,Louisville Fire,Metro Government Operations,Contractual Services,Laundry and Towel Services,,,,,General Fund,,,83.68,497
2018,2017/06/22,1820220,27.16,UNIVERSAL LINEN SERVICE,2017/07/17,928270,Louisville Fire,Metro Government Operations,Contractual Services,Laundry and Towel Services,,,,,General Fund,,,27.16,498
2018,2017/06/21,1821007,29.03,UNIVERSAL LINEN SERVICE,2017/07/17,928270,Louisville Fire,Metro Government Operations,Contractual Services,Laundry and Towel Services,,,,,General Fund,,,29.03,499
2018,2017/06/21,1821386,33.94,UNIVERSAL LINEN SERVICE,2017/07/17,928270,Louisville Fire,Metro Government Operations,Contractual Services,Laundry and Towel Services,,,,,General Fund,,,33.94,500
2018,2017/06/27,1820219,6,UNIVERSAL LINEN SERVICE,2017/07/24,929642,Louisville Fire,Metro Government Operations,Contractual Services,Laundry and Towel Services,,,,,General Fund,,,6,501
2018,2017/06/27,1820222,10,UNIVERSAL LINEN SERVICE,2017/07/24,929642,Louisville Fire,Metro Government Operations,Contractual Services,Laundry and Towel Services,,,,,General Fund,,,10,502
2018,2017/06/28,1820231,36.32,UNIVERSAL LINEN SERVICE,2017/07/24,929642,Louisville Fire,Metro Government Operations,Contractual Services,Laundry and Towel Services,,,,,General Fund,,,36.32,503
2018,2017/06/27,1820232,74,UNIVERSAL LINEN SERVICE,2017/07/24,929642,Louisville Fire,Metro Government Operations,Contractual Services,Laundry and Towel Services,,,,,General Fund,,,74,504
2018,2017/06/30,1819214,37.28,UNIVERSAL LINEN SERVICE,2017/07/25,929979,Louisville Fire,Metro Government Operations,Contractual Services,Laundry and Towel Services,,,,,General Fund,,,37.28,505
2018,2017/06/30,1819228,37,UNIVERSAL LINEN SERVICE,2017/07/25,929979,Louisville Fire,Metro Government Operations,Contractual Services,Laundry and Towel Services,,,,,General Fund,,,37,506
2018,2017/06/27,1818544,35,UNIVERSAL LINEN SERVICE,2017/07/24,929642,Louisville Fire,Metro Government Operations,Contractual Services,Laundry and Towel Services,,,,,General Fund,,,35,507
2018,2017/06/23,1817470,27,UNIVERSAL LINEN SERVICE,2017/07/18,928431,Louisville Fire,Metro Government Operations,Contractual Services,Laundry and Towel Services,,,,,General Fund,,,27,508
2018,2017/06/23,1817691,37.28,UNIVERSAL LINEN SERVICE,2017/07/18,928431,Louisville Fire,Metro Government Operations,Contractual Services,Laundry and Towel Services,,,,,General Fund,,,37.28,509
2018,2017/06/13,1817193,35,UNIVERSAL LINEN SERVICE,2017/07/10,926887,Louisville Fire,Metro Government Operations,Contractual Services,Laundry and Towel Services,,,,,General Fund,,,35,510
2018,2017/06/16,1817052,37.28,UNIVERSAL LINEN SERVICE,2017/07/11,927103,Louisville Fire,Metro Government Operations,Contractual Services,Laundry and Towel Services,,,,,General Fund,,,37.28,511
2018,2017/06/16,1816875,27,UNIVERSAL LINEN SERVICE,2017/07/11,927103,Louisville Fire,Metro Government Operations,Contractual Services,Laundry and Towel Services,,,,,General Fund,,,27,512
2018,2017/06/13,1816552,19.8,UNIVERSAL LINEN SERVICE,2017/07/10,926887,Louisville Fire,Metro Government Operations,Contractual Services,Laundry and Towel Services,,,,,General Fund,,,19.8,513
2018,2017/06/13,1816626,16.95,UNIVERSAL LINEN SERVICE,2017/07/10,926887,Louisville Fire,Metro Government Operations,Contractual Services,Laundry and Towel Services,,,,,General Fund,,,16.95,514
2018,2017/06/13,1816824,10,UNIVERSAL LINEN SERVICE,2017/07/10,926887,Louisville Fire,Metro Government Operations,Contractual Services,Laundry and Towel Services,,,,,General Fund,,,10,515
2018,2017/06/13,1816806,10,UNIVERSAL LINEN SERVICE,2017/07/10,926887,Louisville Fire,Metro Government Operations,Contractual Services,Laundry and Towel Services,,,,,General Fund,,,10,516
2018,2017/06/13,1815865,15.02,UNIVERSAL LINEN SERVICE,2017/07/10,926887,Louisville Fire,Metro Government Operations,Contractual Services,Laundry and Towel Services,,,,,General Fund,,,15.02,517
2018,2017/06/13,1816057,25.7,UNIVERSAL LINEN SERVICE,2017/07/10,926887,Louisville Fire,Metro Government Operations,Contractual Services,Laundry and Towel Services,,,,,General Fund,,,25.7,518
2018,2017/06/06,1813261,21.62,UNIVERSAL LINEN SERVICE,2017/07/03,925889,Louisville Fire,Metro Government Operations,Contractual Services,Laundry and Towel Services,,,,,General Fund,,,21.62,519
2018,2017/06/06,1813405,28.77,UNIVERSAL LINEN SERVICE,2017/07/03,925889,Louisville Fire,Metro Government Operations,Contractual Services,Laundry and Towel Services,,,,,General Fund,,,28.77,520
2018,2017/06/07,1814165,39.75,UNIVERSAL LINEN SERVICE,2017/07/03,925889,Louisville Fire,Metro Government Operations,Contractual Services,Laundry and Towel Services,,,,,General Fund,,,39.75,521
2018,2017/06/07,1814166,47.45,UNIVERSAL LINEN SERVICE,2017/07/03,925889,Louisville Fire,Metro Government Operations,Contractual Services,Laundry and Towel Services,,,,,General Fund,,,47.45,522
2018,2017/06/06,1813879,38.82,UNIVERSAL LINEN SERVICE,2017/07/03,925889,Louisville Fire,Metro Government Operations,Contractual Services,Laundry and Towel Services,,,,,General Fund,,,38.82,523
2018,2017/06/09,1814005,27,UNIVERSAL LINEN SERVICE,2017/07/05,926138,Louisville Fire,Metro Government Operations,Contractual Services,Laundry and Towel Services,,,,,General Fund,,,27,524
2018,2017/06/09,1814019,37.28,UNIVERSAL LINEN SERVICE,2017/07/05,926138,Louisville Fire,Metro Government Operations,Contractual Services,Laundry and Towel Services,,,,,General Fund,,,37.28,525
2018,2017/06/29,1821384,15.22,UNIVERSAL LINEN SERVICE,2017/07/24,929642,Louisville Fire,Metro Government Operations,Contractual Services,Laundry and Towel Services,,,,,General Fund,,,15.22,526
2018,2017/06/29,1821494,36.22,UNIVERSAL LINEN SERVICE,2017/07/24,929642,Louisville Fire,Metro Government Operations,Contractual Services,Laundry and Towel Services,,,,,General Fund,,,36.22,527
2018,2017/06/28,1820361,117,UNIVERSAL LINEN SERVICE,2017/07/24,929642,Louisville Fire,Metro Government Operations,Contractual Services,Laundry and Towel Services,,,,,General Fund,,,117,528
2018,2017/06/27,1820557,20.16,UNIVERSAL LINEN SERVICE,2017/07/24,929642,Louisville Fire,Metro Government Operations,Contractual Services,Laundry and Towel Services,,,,,General Fund,,,20.16,529
2018,2017/06/28,1820400,33.43,UNIVERSAL LINEN SERVICE,2017/07/24,929642,Louisville Fire,Metro Government Operations,Contractual Services,Laundry and Towel Services,,,,,General Fund,,,33.43,530
2018,2017/06/28,1820403,26.59,UNIVERSAL LINEN SERVICE,2017/07/24,929642,Louisville Fire,Metro Government Operations,Contractual Services,Laundry and Towel Services,,,,,General Fund,,,26.59,531
2018,2017/06/27,1820404,10,UNIVERSAL LINEN SERVICE,2017/07/24,929642,Louisville Fire,Metro Government Operations,Contractual Services,Laundry and Towel Services,,,,,General Fund,,,10,532
2018,2017/05/30,1826052,25.8,UNIVERSAL LINEN SERVICE,2017/08/04,931890,Louisville Fire,Metro Government Operations,Contractual Services,Laundry and Towel Services,,,,,General Fund,,,25.8,533
2018,2017/06/30,1821288,463.51,ALPHA MECHANICAL SERVICE INC,2017/07/13,927591,Louisville Fire,Metro Government Operations,Contractual Services,Miscellaneous Services,,,,,General Fund,,,463.51,534
2018,2017/07/12,1822435,11595.45,ALPHA MECHANICAL SERVICE INC,2017/07/20,929033,Louisville Fire,Metro Government Operations,Contractual Services,Miscellaneous Services,,,,,General Fund,,,11595.45,535
2018,2017/06/30,1819600,112,ALPHA MECHANICAL SERVICE INC,2017/07/25,929817,Louisville Fire,Metro Government Operations,Contractual Services,Miscellaneous Services,,,,,General Fund,,,112,536
2018,2017/06/19,1817477,119.79,AMAZON COM,2017/07/05,926046,Louisville Fire,Metro Government Operations,Contractual Services,Other Building Maintenance/Repair Services,,,,,General Fund,,,119.79,537
2018,2017/06/19,1817526,119.79,AMAZON COM,2017/07/05,926046,Louisville Fire,Metro Government Operations,Contractual Services,Other Building Maintenance/Repair Services,,,,,General Fund,,,119.79,538
2018,2017/06/19,1817503,119.79,AMAZON COM,2017/07/05,926046,Louisville Fire,Metro Government Operations,Contractual Services,Other Building Maintenance/Repair Services,,,,,General Fund,,,119.79,539
2018,2017/06/19,1817515,119.79,AMAZON COM,2017/07/05,926046,Louisville Fire,Metro Government Operations,Contractual Services,Other Building Maintenance/Repair Services,,,,,General Fund,,,119.79,540
2018,2017/06/22,1818125,31.65,AMAZON COM,2017/07/10,926732,Louisville Fire,Metro Government Operations,Contractual Services,Other Building Maintenance/Repair Services,,,,,General Fund,,,31.65,541
2018,2017/06/21,1818107,119.79,AMAZON COM,2017/07/14,927748,Louisville Fire,Metro Government Operations,Contractual Services,Other Building Maintenance/Repair Services,,,,,General Fund,,,119.79,542
2018,2017/06/22,1818584,119.79,AMAZON COM,2017/07/05,926046,Louisville Fire,Metro Government Operations,Contractual Services,Other Building Maintenance/Repair Services,,,,,General Fund,,,119.79,543
2018,2017/06/21,1817109,119.79,AMAZON COM,2017/07/05,926046,Louisville Fire,Metro Government Operations,Contractual Services,Other Building Maintenance/Repair Services,,,,,General Fund,,,119.79,544
2018,2017/06/20,1817239,119.79,AMAZON COM,2017/07/05,926046,Louisville Fire,Metro Government Operations,Contractual Services,Other Building Maintenance/Repair Services,,,,,General Fund,,,119.79,545
2018,2017/06/20,1817244,119.79,AMAZON COM,2017/07/05,926046,Louisville Fire,Metro Government Operations,Contractual Services,Other Building Maintenance/Repair Services,,,,,General Fund,,,119.79,546
2018,2017/06/20,1817249,299.96,AMAZON COM,2017/07/05,926046,Louisville Fire,Metro Government Operations,Contractual Services,Other Building Maintenance/Repair Services,,,,,General Fund,,,299.96,547
2018,2017/06/19,1817546,119.79,AMAZON COM,2017/07/05,926046,Louisville Fire,Metro Government Operations,Contractual Services,Other Building Maintenance/Repair Services,,,,,General Fund,,,119.79,548
2018,2017/06/19,1817414,119.79,AMAZON COM,2017/07/05,926046,Louisville Fire,Metro Government Operations,Contractual Services,Other Building Maintenance/Repair Services,,,,,General Fund,,,119.79,549
2018,2017/06/20,1817103,214.5,AMAZON COM,2017/07/05,926046,Louisville Fire,Metro Government Operations,Contractual Services,Other Building Maintenance/Repair Services,,,,,General Fund,,,214.5,550
2018,2017/06/22,1818106,119.79,AMAZON COM,2017/07/05,926046,Louisville Fire,Metro Government Operations,Contractual Services,Other Building Maintenance/Repair Services,,,,,General Fund,,,119.79,551
2018,2017/06/21,1818526,119.79,AMAZON COM,2017/07/06,926253,Louisville Fire,Metro Government Operations,Contractual Services,Other Building Maintenance/Repair Services,,,,,General Fund,,,119.79,552
2018,2017/06/22,1818398,35.97,AMAZON COM,2017/07/05,926046,Louisville Fire,Metro Government Operations,Contractual Services,Other Building Maintenance/Repair Services,,,,,General Fund,,,35.97,553
2018,2017/06/14,1816005,7084,COMSTOCK BROTHERS ELECTRIC CO LLC,2017/07/12,927286,Louisville Fire,Metro Government Operations,Contractual Services,Other Building Maintenance/Repair Services,,,,,General Fund,,,3211,554
2018,2017/06/14,1816005,7084,COMSTOCK BROTHERS ELECTRIC CO LLC,2017/07/12,927286,Louisville Fire,Metro Government Operations,Contractual Services,Other Building Maintenance/Repair Services,,,,,General Fund,,,3873,555
2018,2017/06/27,1821009,269,COMSTOCK BROTHERS ELECTRIC CO LLC,2017/07/24,929539,Louisville Fire,Metro Government Operations,Contractual Services,Other Building Maintenance/Repair Services,,,,,General Fund,,,269,556
2018,2017/06/26,1820817,290,COMSTOCK BROTHERS ELECTRIC CO LLC,2017/07/11,927045,Louisville Fire,Metro Government Operations,Contractual Services,Other Building Maintenance/Repair Services,,,,,General Fund,,,290,557
2018,2017/06/27,1820226,173,COMSTOCK BROTHERS ELECTRIC CO LLC,2017/07/24,929539,Louisville Fire,Metro Government Operations,Contractual Services,Other Building Maintenance/Repair Services,,,,,General Fund,,,173,558
2018,2017/06/26,1820224,103.5,COMSTOCK BROTHERS ELECTRIC CO LLC,2017/07/21,929312,Louisville Fire,Metro Government Operations,Contractual Services,Other Building Maintenance/Repair Services,,,,,General Fund,,,103.5,559
2018,2017/07/14,1822263,3523.01,DEBRA KUEMPEL INC,2017/07/25,929856,Louisville Fire,Metro Government Operations,Contractual Services,Other Building Maintenance/Repair Services,,,,,General Fund,,,3523.01,560
2018,2017/06/09,1814877,2022.91,DEBRA KUEMPEL INC,2017/07/05,926063,Louisville Fire,Metro Government Operations,Contractual Services,Other Building Maintenance/Repair Services,,,,,General Fund,,,2022.91,561
2018,2017/04/30,1803122,78,DEBRA KUEMPEL INC,2017/07/31,930827,Louisville Fire,Metro Government Operations,Contractual Services,Other Building Maintenance/Repair Services,,,,,General Fund,,,78,562
2018,2017/05/17,1809477,345,DEBRA KUEMPEL INC,2017/07/31,930827,Louisville Fire,Metro Government Operations,Contractual Services,Other Building Maintenance/Repair Services,,,,,General Fund,,,345,563
2018,2017/06/30,1820263,103,DEBRA KUEMPEL INC,2017/07/31,930827,Louisville Fire,Metro Government Operations,Contractual Services,Other Building Maintenance/Repair Services,,,,,General Fund,,,6670.49,564
2018,2017/06/30,1820263,103,DEBRA KUEMPEL INC,2017/07/31,930827,Louisville Fire,Metro Government Operations,Contractual Services,Other Building Maintenance/Repair Services,,,,,General Fund,,,103,565
2018,2017/06/30,1820263,103,DEBRA KUEMPEL INC,2017/07/31,930827,Louisville Fire,Metro Government Operations,Contractual Services,Other Building Maintenance/Repair Services,,,,,General Fund,,,-6670.49,566
2018,2017/06/30,1821316,388.71,DEBRA KUEMPEL INC,2017/07/31,930827,Louisville Fire,Metro Government Operations,Contractual Services,Other Building Maintenance/Repair Services,,,,,General Fund,,,388.71,567
2018,2017/06/30,1820989,2989.5,DEBRA KUEMPEL INC,2017/07/14,927779,Louisville Fire,Metro Government Operations,Contractual Services,Other Building Maintenance/Repair Services,,,,,General Fund,,,2989.5,568
2018,2017/06/30,1821003,4923,DEBRA KUEMPEL INC,2017/07/14,927779,Louisville Fire,Metro Government Operations,Contractual Services,Other Building Maintenance/Repair Services,,,,,General Fund,,,4923,569
2018,2017/07/10,1820420,2487,DEBRA KUEMPEL INC,2017/07/14,927779,Louisville Fire,Metro Government Operations,Contractual Services,Other Building Maintenance/Repair Services,,,,,General Fund,,,2487,570
2018,2017/06/23,1820406,151.06,DEBRA KUEMPEL INC,2017/07/17,928168,Louisville Fire,Metro Government Operations,Contractual Services,Other Building Maintenance/Repair Services,,,,,General Fund,,,151.06,571
2018,2017/06/30,1821008,4407,DEBRA KUEMPEL INC,2017/07/19,928596,Louisville Fire,Metro Government Operations,Contractual Services,Other Building Maintenance/Repair Services,,,,,General Fund,,,4407,572
2018,2017/06/09,1814506,1711.87,DEBRA KUEMPEL INC,2017/07/14,927779,Louisville Fire,Metro Government Operations,Contractual Services,Other Building Maintenance/Repair Services,,,,,General Fund,,,1711.87,573
2018,2017/06/20,1821379,502.15,DOOR SERVICE COMPANY,2017/07/17,928292,Louisville Fire,Metro Government Operations,Contractual Services,Other Building Maintenance/Repair Services,,,,,General Fund,,,502.15,574
2018,2017/06/19,1821010,19.5,DOOR SERVICE COMPANY,2017/07/14,927896,Louisville Fire,Metro Government Operations,Contractual Services,Other Building Maintenance/Repair Services,,,,,General Fund,,,19.5,575
2018,2017/05/25,1816201,2000,DOOR SERVICE COMPANY,2017/07/05,926154,Louisville Fire,Metro Government Operations,Contractual Services,Other Building Maintenance/Repair Services,,,,,General Fund,,,2000,576
2018,2017/06/07,1826552,1173.19,DOOR SERVICE COMPANY,2017/07/28,930665,Louisville Fire,Metro Government Operations,Contractual Services,Other Building Maintenance/Repair Services,,,,,General Fund,,,1173.19,577
2018,2017/06/23,1820840,2469.07,ECOLAB INC,2017/07/18,928382,Louisville Fire,Metro Government Operations,Contractual Services,Other Building Maintenance/Repair Services,,,,,General Fund,,,2469.07,578
2018,2017/06/23,1822025,2469.07,ECOLAB INC,2017/07/18,928382,Louisville Fire,Metro Government Operations,Contractual Services,Other Building Maintenance/Repair Services,,,,,General Fund,,,2469.07,579
2018,2017/06/22,1820823,129,GRAINGER INDUSTRIAL SUPPLY,2017/07/19,928619,Louisville Fire,Metro Government Operations,Contractual Services,Other Building Maintenance/Repair Services,,,,,General Fund,,,129,580
2018,2017/06/26,1820442,238.31,GRAINGER INDUSTRIAL SUPPLY,2017/07/21,929327,Louisville Fire,Metro Government Operations,Contractual Services,Other Building Maintenance/Repair Services,,,,,General Fund,,,238.31,581
2018,2017/06/26,1821523,3405.76,GRAINGER INDUSTRIAL SUPPLY,2017/07/21,929327,Louisville Fire,Metro Government Operations,Contractual Services,Other Building Maintenance/Repair Services,,,,,General Fund,,,3405.76,582
2018,2017/06/14,1820394,200,KENTUCKY STATE TREASURER,2017/07/10,926813,Louisville Fire,Metro Government Operations,Contractual Services,Other Building Maintenance/Repair Services,,,,,General Fund,,,200,583
2018,2017/06/30,1821438,8466.43,NIXON POWER SERVICES LLC,2017/07/13,927683,Louisville Fire,Metro Government Operations,Contractual Services,Other Building Maintenance/Repair Services,,,,,General Fund,,,8466.43,584
2018,2017/05/31,1819491,390.44,TECTA AMERICA ZERO COMPANY,2017/07/14,927866,Louisville Fire,Metro Government Operations,Contractual Services,Other Building Maintenance/Repair Services,,,,,General Fund,,,390.44,585
2018,2017/04/19,1819412,138.64,TECTA AMERICA ZERO COMPANY,2017/07/14,927866,Louisville Fire,Metro Government Operations,Contractual Services,Other Building Maintenance/Repair Services,,,,,General Fund,,,138.64,586
2018,2017/06/28,1820402,32350,TECTA AMERICA ZERO COMPANY,2017/07/24,929633,Louisville Fire,Metro Government Operations,Contractual Services,Other Building Maintenance/Repair Services,,,,,General Fund,,,32350,587
2018,2017/06/23,1821375,650,MELVYN LITTLE JR,2017/07/18,928404,Louisville Fire,Metro Government Operations,Contractual Services,Professional Services,,,,,General Fund,,,650,588
2018,2017/06/06,1821035,650,MURPHY GAIL BELDING JR,2017/07/14,927835,Louisville Fire,Metro Government Operations,Contractual Services,Professional Services,,,,,General Fund,,,650,589
2018,2017/07/05,1820193,4250,UNIVERSITY OF LOUISVILLE RESEARCH FOUNDATION INC,2017/07/26,930231,Louisville Fire,Metro Government Operations,Contractual Services,Professional Services,,,,,General Fund,,,4250,590
2018,2017/07/05,1820190,4250,UNIVERSITY OF LOUISVILLE RESEARCH FOUNDATION INC,2017/07/12,927371,Louisville Fire,Metro Government Operations,Contractual Services,Professional Services,,,,,General Fund,,,4250,591
2018,2017/07/05,1820196,4250,UNIVERSITY OF LOUISVILLE RESEARCH FOUNDATION INC,2017/07/12,927371,Louisville Fire,Metro Government Operations,Contractual Services,Professional Services,,,,,General Fund,,,4250,592
2018,2017/06/21,1817800,119.79,AMAZON COM,2017/07/05,926046,Louisville Fire,Metro Government Operations,Equipment/Capital Outlay,Furniture and Office Equipment,,,,,General Fund,,,119.79,593
2018,2017/06/21,1817752,119.79,AMAZON COM,2017/07/05,926046,Louisville Fire,Metro Government Operations,Equipment/Capital Outlay,Furniture and Office Equipment,,,,,General Fund,,,119.79,594
2018,2017/06/21,1817757,119.79,AMAZON COM,2017/07/05,926046,Louisville Fire,Metro Government Operations,Equipment/Capital Outlay,Furniture and Office Equipment,,,,,General Fund,,,119.79,595
2018,2017/06/21,1817653,119.79,AMAZON COM,2017/07/05,926046,Louisville Fire,Metro Government Operations,Equipment/Capital Outlay,Furniture and Office Equipment,,,,,General Fund,,,119.79,596
2018,2017/06/21,1817022,119.79,AMAZON COM,2017/07/05,926046,Louisville Fire,Metro Government Operations,Equipment/Capital Outlay,Furniture and Office Equipment,,,,,General Fund,,,119.79,597
2018,2017/06/21,1817025,119.79,AMAZON COM,2017/07/05,926046,Louisville Fire,Metro Government Operations,Equipment/Capital Outlay,Furniture and Office Equipment,,,,,General Fund,,,119.79,598
2018,2017/06/21,1817450,119.79,AMAZON COM,2017/07/05,926046,Louisville Fire,Metro Government Operations,Equipment/Capital Outlay,Furniture and Office Equipment,,,,,General Fund,,,119.79,599
2018,2017/06/22,1817528,201.12,AMAZON COM,2017/07/05,926046,Louisville Fire,Metro Government Operations,Equipment/Capital Outlay,Furniture and Office Equipment,,,,,General Fund,,,201.12,600
2018,2017/06/15,1816595,322.44,AMERICAS FINEST FILTERS INC,2017/07/10,926735,Louisville Fire,Metro Government Operations,Supplies,Building Maintenance Supplies,,,,,General Fund,,,322.44,601
2018,2017/06/05,1822192,5092.97,CHANNING BETE CO INC,2017/08/04,931755,Louisville Fire,Metro Government Operations,Supplies,CPR Supplies,,,,,General Fund,,,5092.97,602
2018,2017/06/30,1820397,60,PARKWAY SOUTHERN CO,2017/07/19,928702,Louisville Fire,Metro Government Operations,Supplies,CPR Supplies,,,,,General Fund,,,60,603
2018,2017/06/06,1819312,2203.89,MPC PROMOTIONS,2017/07/07,926513,Metro Animal Services,Metro Government Operations,Contractual Services,Voucher/Refund Services,,,,,General Fund,,,2203.89,604
2018,2017/04/17,1825316,905.9,KB INDUSTRIES INC,2017/07/24,929580,Louisville Free Public Library,Metro Government Operations,Supplies,Educational/Training Supplies,,,,,Gen Council NDF,,,905.9,605
2018,2017/05/08,1809770,1012.08,TLF CREATIONS,2017/07/28,930639,Louisville Free Public Library,Metro Government Operations,Supplies,Educational/Training Supplies,,,,,Gen Council NDF,,,1012.08,606
2018,2017/05/19,1820737,1261.8,LOWES COMPANIES INC,2017/07/11,927076,Louisville Zoo,Metro Government Operations,Contractual Services,Payments to Contractors,,,,,General Fund,,,1261.8,607
2018,2017/06/11,1816879,5569.8,SECRET SAFARI,2017/07/06,926348,Louisville Zoo,Metro Government Operations,Contractual Services,Payments to Contractors,,,,,General Fund,,,5569.8,608
2018,2017/06/19,1821250,3433.2,SECRET SAFARI,2017/07/18,928425,Louisville Zoo,Metro Government Operations,Contractual Services,Payments to Contractors,,,,,General Fund,,,3433.2,609
2018,2017/06/18,1822404,753.6,SECRET SAFARI,2017/07/24,929636,Louisville Zoo,Metro Government Operations,Contractual Services,Payments to Contractors,,,,,General Fund,,,753.6,610
2018,2017/05/15,1826250,979.2,SECRET SAFARI,2017/07/31,930929,Louisville Zoo,Metro Government Operations,Contractual Services,Payments to Contractors,,,,,General Fund,,,979.2,611
2018,2017/06/30,1824738,28.9,SERVICE SYSTEMS ASSOCIATES INC,2017/08/03,931601,Louisville Zoo,Metro Government Operations,Contractual Services,Payments to Contractors,,,,,General Fund,,,28.9,612
2018,2017/05/28,1824567,28.95,SERVICE SYSTEMS ASSOCIATES INC,2017/07/31,930909,Louisville Zoo,Metro Government Operations,Contractual Services,Payments to Contractors,,,,,General Fund,,,28.95,613
2018,2017/05/30,1820388,4373.33,BIRDS N BEASTS INC,2017/07/10,926745,Louisville Zoo,Metro Government Operations,Contractual Services,Professional Services,,,,,General Fund,,,4373.33,614
2018,2017/05/30,1822115,4373.33,BIRDS N BEASTS INC,2017/07/17,928144,Louisville Zoo,Metro Government Operations,Contractual Services,Professional Services,,,,,General Fund,,,4373.33,615
2018,2017/06/18,1819885,25000,ENTOMOLOGY SOLUTIONS LLC,2017/07/19,928605,Louisville Zoo,Metro Government Operations,Contractual Services,Professional Services,,,,,General Fund,,,25000,616
2018,2017/04/27,1819795,90.85,UNIVERSITY OF KANSAS CENTER FOR RESEARCH INC,2017/07/13,927669,Louisville Zoo,Metro Government Operations,Contractual Services,Professional Services,,,,,General Fund,,,90.85,617
2018,2017/06/16,1818997,2131.09,WALLITSCH NURSERY & GARDEN CENTER,2017/07/14,927882,Louisville Zoo,Metro Government Operations,Contractual Services,Professional Services,,,,,General Fund,,,2131.09,618
2018,2017/06/12,1818490,2680.57,VERIZON WIRELESS,2017/07/07,926658,Develop Louisville,Metro Government Operations,Contractual Services,Air Cards,,,,,General Fund,,,400,619
2018,2017/06/12,1818490,2680.57,VERIZON WIRELESS,2017/07/07,926658,Develop Louisville,Metro Government Operations,Contractual Services,Air Cards,,,,,General Fund,,,40.01,620
2018,2017/06/12,1814415,345.85,CDW LLC,2017/07/07,926565,Develop Louisville,Metro Government Operations,Contractual Services,Computer Software Licenses,,,,,General Fund,,,345.85,621
2018,2017/07/11,1823538,902.28,KONICA MINOLTA BUSINESS SOLUTIONS,2017/08/07,932130,Develop Louisville,Metro Government Operations,Contractual Services,Equipment Rental,,,,,General Fund,,,451.14,622
2018,2017/06/28,1821607,267.09,CDW LLC,2017/07/24,929534,Develop Louisville,Metro Government Operations,Contractual Services,Miscellaneous Services,,,,,General Fund,,,267.09,623
2018,2017/06/27,1820377,5000,BLDG REFUGE LLC,2017/07/19,928570,Develop Louisville,Metro Government Operations,Contractual Services,Professional Services,,,,,General Fund,,,5000,624
2018,2017/06/12,1814868,49.93,CDW LLC,2017/07/07,926565,Develop Louisville,Metro Government Operations,Contractual Services,Professional Services,,,,,General Fund,,,49.93,625
2018,2017/05/31,1815495,2500,QK4 INC,2017/08/04,931851,Develop Louisville,Metro Government Operations,Contractual Services,Professional Services,,,,,General Fund,,,2500,626
2018,2017/06/12,1814414,139,DELL MARKETING LP,2017/07/07,926576,Develop Louisville,Metro Government Operations,Contractual Services,Public & Community Relations Services,,,,,General Fund,,,139,627
2018,2017/04/19,1819304,61.23,OFFICE DEPOT INC,2017/07/11,927085,Develop Louisville,Metro Government Operations,Supplies,Office Supplies,,,,,General Fund,,,61.23,628
2018,2017/06/12,1814419,920,HIGHWAY SAFETY SERVICES,2017/07/07,926593,Develop Louisville,Metro Government Operations,Contractual Services,Professional Services,,,,,General Fund,,,920,629
2018,2017/06/28,1820379,2376,MPC PROMOTIONS,2017/07/28,930671,Develop Louisville,Metro Government Operations,Contractual Services,Professional Services,,,,,General Fund,,,2376,630
2018,2017/06/27,1822334,3000,ASHLEY BRAUNECKER,2017/07/21,929295,Develop Louisville,Metro Government Operations,Contractual Services,Payments to Contractors,,,,,General Fund,,,3000,631
2018,2017/07/05,1820998,1000,TELEDYNE INSTRUMENTS INC,2017/07/31,930924,Economic Development,Metro Government Operations,Contractual Services,Equipment Maintenance/Repair Services,,,,,General Fund,,,1000,632
2018,2017/07/11,1822866,660.54,KONICA MINOLTA BUSINESS SOLUTIONS,2017/07/28,930669,Economic Development,Metro Government Operations,Contractual Services,Equipment Rental,,,,,General Fund,,,660.54,633
2018,2017/07/06,1822131,358.44,LOUISVILLE GAS & ELECTRIC COMPANY,2017/07/17,928210,Economic Development,Metro Government Operations,Contractual Services,Gas/Electric Utility Services,,,,,General Fund,,,358.44,634
2018,2017/06/23,1818430,251.37,VERIZON WIRELESS,2017/07/07,926658,Economic Development,Metro Government Operations,Contractual Services,Miscellaneous Services,,,,,General Fund,,,251.37,635
2018,2017/06/27,1818734,208.79,MONICA LITTLE,2017/07/11,927231,Economic Development,Metro Government Operations,Contractual Services,Training & Educational Fees,,,,,General Fund,,,61,636
2018,2017/06/27,1818734,208.79,MONICA LITTLE,2017/07/11,927231,Economic Development,Metro Government Operations,Contractual Services,Travel, Local Travel Costs,,,,,General Fund,,,637
2018,2017/06/27,1818734,208.79,MONICA LITTLE,2017/07/11,927231,Economic Development,Metro Government Operations,Direct Reimbursements,Fleet Fuel Supply,,,,,General Fund,,,33.06,638
2018,2017/06/27,1821307,12.7,CDW LLC,2017/07/28,930535,Economic Development,Metro Government Operations,Equipment/Capital Outlay,Miscellaneous Equipment,,,,,General Fund,,,12.7,639
2018,2017/06/29,1821462,31.61,CDW LLC,2017/07/28,930535,Economic Development,Metro Government Operations,Equipment/Capital Outlay,Miscellaneous Equipment,,,,,General Fund,,,31.61,640
2018,2017/06/28,1818713,266.4,AMAZON COM,2017/07/07,926553,Economic Development,Metro Government Operations,Supplies,Miscellaneous Supplies,,,,,General Fund,,,102.97,641
2018,2017/06/28,1818713,266.4,AMAZON COM,2017/07/07,926553,Economic Development,Metro Government Operations,Supplies,Miscellaneous Supplies,,,,,General Fund,,,163.43,642
2018,2017/06/28,1818457,127.5,AMAZON COM,2017/07/07,926553,Economic Development,Metro Government Operations,Supplies,Miscellaneous Supplies,,,,,General Fund,,,78.22,643
2018,2017/06/28,1818457,127.5,AMAZON COM,2017/07/07,926553,Economic Development,Metro Government Operations,Supplies,Miscellaneous Supplies,,,,,General Fund,,,49.28,644
2018,2017/06/07,1824515,159.95,HUMBERTS INC,2017/07/28,930571,Economic Development,Metro Government Operations,Supplies,Miscellaneous Supplies,,,,,General Fund,,,159.95,645
2018,2017/06/26,1820706,10.02,LOWES COMPANIES INC,2017/07/28,930601,Economic Development,Metro Government Operations,Supplies,Miscellaneous Supplies,,,,,General Fund,,,10.02,646
2018,2017/06/27,1818734,208.79,MONICA LITTLE,2017/07/11,927231,Economic Development,Metro Government Operations,Supplies,Miscellaneous Supplies,,,,,General Fund,,,82.73,647
2018,2017/06/28,1819557,2285.36,MPC PROMOTIONS,2017/07/28,930671,Economic Development,Metro Government Operations,Supplies,Miscellaneous Supplies,,,,,General Fund,,,1348.76,648
2018,2017/06/28,1821376,100,SAFETY SHOE DISTRIBUTORS OF OKI INC,2017/07/28,930625,Economic Development,Metro Government Operations,Supplies,Miscellaneous Supplies,,,,,General Fund,,,100,649
2018,2017/05/18,1820644,557.5,ATOMIC COWGIRL INC,2017/07/18,928358,Economic Development,Metro Government Operations,Supplies,Office Supplies,,,,,General Fund,,,557.5,650
2018,2017/06/27,1821812,77.97,OFFICE DEPOT INC,2017/07/28,930616,Economic Development,Metro Government Operations,Supplies,Office Supplies,,,,,General Fund,,,77.97,651
2018,2017/06/30,1822476,547.82,KENTUCKY PUBLIC RADIO INC,2017/07/28,930586,Economic Development,Metro Government Operations,Contractual Services,Advertising,,,,,Air Penalty Fees,,,547.82,652
2018,2017/04/19,1820225,867,LEO WEEKLY LLC,2017/07/07,926604,Economic Development,Metro Government Operations,Contractual Services,Advertising,,,,,Air Penalty Fees,,,867,653
2018,2017/06/29,1820646,490,KEITHS HARDWARE & RENTAL,2017/07/11,927069,Economic Development,Metro Government Operations,Contractual Services,Voucher/Refund Services,,,,,Air Penalty Fees,,,490,654
2018,2017/06/28,1819557,2285.36,MPC PROMOTIONS,2017/07/28,930671,Economic Development,Metro Government Operations,Supplies,Miscellaneous Supplies,,,,,Federally Funded Other,,,936.6,655
2018,2017/06/27,1818438,40000,OVARE GROUP INC,2017/07/24,929541,Economic Development,Metro Government Operations,Contractual Services,Public & Community Relations Services,,,,,Pass Thru Federal Other,,,40000,656
2018,2017/06/23,1818389,30600.08,OVARE GROUP INC,2017/07/18,928376,Economic Development,Metro Government Operations,Contractual Services,Public & Community Relations Services,,,,,Pass Thru Federal Other,,,30600.08,657
2018,2017/06/23,1818392,27844.7,OVARE GROUP INC,2017/07/18,928376,Economic Development,Metro Government Operations,Contractual Services,Public & Community Relations Services,,,,,Pass Thru Federal Other,,,27844.7,658
2018,2017/06/28,1822198,2177.66,INTER MOUNTAIN LABORATORIES INC,2017/07/24,929667,Economic Development,Metro Government Operations,Contractual Services,Professional Services,,,,,Federally Funded,,,2177.66,659
2018,2017/05/31,1814181,2044.24,INTER MOUNTAIN LABORATORIES INC,2017/07/03,925930,Economic Development,Metro Government Operations,Contractual Services,Professional Services,,,,,Federally Funded,,,2044.24,660
2018,2017/06/12,1814960,337.66,CDW LLC,2017/07/07,926565,Economic Development,Metro Government Operations,Supplies,Miscellaneous Supplies,,,,,Federally Funded,,,337.66,661
2018,2017/07/26,1826924,1182.83,CDW LLC,2017/08/21,934751,Economic Development,Metro Government Operations,Supplies,Miscellaneous Supplies,,,,,Federally Funded,,,1182.83,662
2018,2017/07/14,1824275,6571.91,INTER MOUNTAIN LABORATORIES INC,2017/08/08,932610,Economic Development,Metro Government Operations,Supplies,Miscellaneous Supplies,,,,,Federally Funded,,,6571.91,663
2018,2017/06/28,1819555,111.9,MPC PROMOTIONS,2017/07/26,930255,Economic Development,Metro Government Operations,Supplies,Miscellaneous Supplies,,,,,Federally Funded,,,119.9,664
2018,2017/06/28,1819555,111.9,MPC PROMOTIONS,2017/07/26,930255,Economic Development,Metro Government Operations,Supplies,Miscellaneous Supplies,,,,,Federally Funded,,,-119.9,665
2018,2017/06/28,1819555,111.9,MPC PROMOTIONS,2017/07/26,930255,Economic Development,Metro Government Operations,Supplies,Miscellaneous Supplies,,,,,Federally Funded,,,111.9,666
2018,2017/06/19,1820272,100,SAFETY SHOE DISTRIBUTORS OF OKI INC,2017/07/28,930625,Economic Development,Metro Government Operations,Supplies,Miscellaneous Supplies,,,,,Federally Funded,,,100,667
2018,2017/06/30,1824570,8.54,ANTECH DIAGNOSTICS INC,2017/07/24,929516,Metro Animal Services,Metro Government Operations,Contractual Services,Medical Lab Testing,,,,,General Fund,,,241.05,668
2018,2017/06/30,1824570,8.54,ANTECH DIAGNOSTICS INC,2017/07/24,929516,Metro Animal Services,Metro Government Operations,Contractual Services,Medical Lab Testing,,,,,General Fund,,,-241.05,669
2018,2017/04/11,1818379,315,KENTUCKY HUMANE SOCIETY,2017/07/05,926155,Metro Animal Services,Metro Government Operations,Contractual Services,Spay/Neuter,,,,,General Fund,,,511.5,670
2018,2017/04/11,1818379,315,KENTUCKY HUMANE SOCIETY,2017/07/05,926155,Metro Animal Services,Metro Government Operations,Contractual Services,Spay/Neuter,,,,,General Fund,,,18.5,671
2018,2017/04/11,1818379,315,KENTUCKY HUMANE SOCIETY,2017/07/05,926155,Metro Animal Services,Metro Government Operations,Contractual Services,Spay/Neuter,,,,,General Fund,,,315,672
2018,2017/04/11,1818379,315,KENTUCKY HUMANE SOCIETY,2017/07/05,926155,Metro Animal Services,Metro Government Operations,Contractual Services,Spay/Neuter,,,,,General Fund,,,-18.5,673
2018,2017/04/11,1818379,315,KENTUCKY HUMANE SOCIETY,2017/07/05,926155,Metro Animal Services,Metro Government Operations,Contractual Services,Spay/Neuter,,,,,General Fund,,,-511.5,674
2018,2017/06/08,1813854,784,JEFFERSON VETERINARY MANAGEMENT GROUP INC,2017/07/03,925822,Metro Animal Services,Metro Government Operations,Contractual Services,Veterinarian Services,,,,,General Fund,,,784,675
2018,2017/06/29,1819073,795.4,JEFFERSON VETERINARY MANAGEMENT GROUP INC,2017/07/24,929578,Metro Animal Services,Metro Government Operations,Contractual Services,Veterinarian Services,,,,,General Fund,,,795.4,676
2018,2017/06/29,1819073,795.4,JEFFERSON VETERINARY MANAGEMENT GROUP INC,2017/07/24,929578,Metro Animal Services,Metro Government Operations,Contractual Services,Veterinarian Services,,,,,General Fund,,,795.4,677
2018,2017/06/29,1819073,795.4,JEFFERSON VETERINARY MANAGEMENT GROUP INC,2017/07/24,929578,Metro Animal Services,Metro Government Operations,Contractual Services,Veterinarian Services,,,,,General Fund,,,-795.4,678
2018,2017/06/09,1815082,1300,RACHEL A BROWN DVM,2017/07/05,926112,Metro Animal Services,Metro Government Operations,Contractual Services,Veterinarian Services,,,,,General Fund,,,1300,679
2018,2017/06/30,1821705,3305.5,WOODFORD ANIMAL HEALTH SERVICES PSC,2017/07/25,929992,Metro Animal Services,Metro Government Operations,Contractual Services,Veterinarian Services,,,,,General Fund,,,3305.5,680
2018,2017/07/07,1821328,1050,INTERVET INC,2017/08/01,931159,Metro Animal Services,Metro Government Operations,Supplies,Drugs/Medicine Supplies,,,,,General Fund,,,-1050,681
2018,2017/07/07,1821328,1050,INTERVET INC,2017/08/01,931159,Metro Animal Services,Metro Government Operations,Supplies,Drugs/Medicine Supplies,,,,,General Fund,,,1050,682
2018,2017/06/21,1822142,2,TYLER MOUNTAIN WATER CO INC,2017/07/17,928269,Metro Animal Services,Metro Government Operations,Supplies,Drugs/Medicine Supplies,,,,,General Fund,,,2,683
2018,2017/06/21,1822142,2,TYLER MOUNTAIN WATER CO INC,2017/07/17,928269,Metro Animal Services,Metro Government Operations,Supplies,Drugs/Medicine Supplies,,,,,General Fund,,,-2,684
2018,2017/06/30,1819104,2500,AIR POLLUTION CONTROL PRODUCTS INC,2017/07/25,929812,Metro Animal Services,Metro Government Operations,Contractual Services,Equipment Maintenance/Repair Services,,,,,General Fund,,,2500,685
2018,2017/06/30,1824570,8.54,ANTECH DIAGNOSTICS INC,2017/07/24,929516,Metro Animal Services,Metro Government Operations,Contractual Services,Medical Lab Testing,,,,,General Fund,,,8.54,686
2018,2017/06/10,1814377,110,UNIVERSITY OF KENTUCKY,2017/07/05,926139,Metro Animal Services,Metro Government Operations,Contractual Services,Medical Lab Testing,,,,,General Fund,,,110,687
2018,2017/07/06,1821478,805.65,AHEAD HUMAN RESOURCES,2017/07/19,928545,Metro Animal Services,Metro Government Operations,Contractual Services,Temporary Service Contract,,,,,General Fund,,,805.65,688
2018,2017/06/28,1818402,878.68,AHEAD HUMAN RESOURCES,2017/07/03,925767,Metro Animal Services,Metro Government Operations,Contractual Services,Temporary Service Contract,,,,,General Fund,,,878.68,689
2018,2017/07/07,1821978,24,AMANDA CROOK,2017/07/25,930032,Metro Animal Services,Metro Government Operations,Contractual Services,Travel, Local Travel Costs,,,,,General Fund,,,690
2018,2017/06/15,1817250,553.97,2 HOUNDS DESIGN,2017/07/10,926723,Metro Animal Services,Metro Government Operations,Supplies,Animal Care Supplies,,,,,General Fund,,,553.97,691
2018,2017/06/28,1821685,550,BMQ INC,2017/07/24,929526,Metro Animal Services,Metro Government Operations,Supplies,Animal Care Supplies,,,,,General Fund,,,550,692
2018,2017/06/28,1821696,300,BMQ INC,2017/07/24,929526,Metro Animal Services,Metro Government Operations,Supplies,Animal Care Supplies,,,,,General Fund,,,300,693
2018,2017/06/30,1821718,2050,D R E MEDICAL GROUP INC,2017/07/25,929898,Metro Animal Services,Metro Government Operations,Supplies,Animal Care Supplies,,,,,General Fund,,,2000,694
2018,2017/06/30,1821718,2050,D R E MEDICAL GROUP INC,2017/07/25,929898,Metro Animal Services,Metro Government Operations,Supplies,Animal Care Supplies,,,,,General Fund,,,50,695
2018,2017/06/15,1815600,174,INTERVET INC,2017/07/10,926797,Metro Animal Services,Metro Government Operations,Supplies,Animal Care Supplies,,,,,General Fund,,,174,696
2018,2017/07/07,1821328,1050,INTERVET INC,2017/08/01,931159,Metro Animal Services,Metro Government Operations,Supplies,Animal Care Supplies,,,,,General Fund,,,876,697
2018,2017/07/07,1821328,1050,INTERVET INC,2017/08/01,931159,Metro Animal Services,Metro Government Operations,Supplies,Animal Care Supplies,,,,,General Fund,,,174,698
2018,2017/06/30,1820616,97.82,LOWES COMPANIES INC,2017/07/12,927326,Metro Animal Services,Metro Government Operations,Supplies,Animal Care Supplies,,,,,General Fund,,,47.68,699
2018,2017/06/30,1820616,97.82,LOWES COMPANIES INC,2017/07/12,927326,Metro Animal Services,Metro Government Operations,Supplies,Animal Care Supplies,,,,,General Fund,,,50.14,700
2018,2017/06/30,1820667,142.61,LOWES COMPANIES INC,2017/07/11,927076,Metro Animal Services,Metro Government Operations,Supplies,Animal Care Supplies,,,,,General Fund,,,142.61,701
2018,2017/06/28,1818673,1286.25,RICHARDSONS FEED & PET CENTER LLC,2017/07/05,926117,Metro Animal Services,Metro Government Operations,Supplies,Animal Care Supplies,,,,,General Fund,,,1112.13,702
2018,2017/06/28,1818673,1286.25,RICHARDSONS FEED & PET CENTER LLC,2017/07/05,926117,Metro Animal Services,Metro Government Operations,Supplies,Animal Care Supplies,,,,,General Fund,,,174.12,703
2018,2017/06/07,1813421,2616.5,RICHARDSONS FEED & PET CENTER LLC,2017/07/10,926855,Metro Animal Services,Metro Government Operations,Supplies,Animal Food,,,,,General Fund,,,2616.5,704
2018,2017/06/30,1820712,108.41,ADAM HAMILTON,2017/07/13,927703,Metro Animal Services,Metro Government Operations,Supplies,Building Maintenance Supplies,,,,,General Fund,,,27,705
2018,2017/06/30,1820712,108.41,ADAM HAMILTON,2017/07/13,927703,Metro Animal Services,Metro Government Operations,Supplies,Building Maintenance Supplies,,,,,General Fund,,,20.96,706
2018,2017/06/30,1820712,108.41,ADAM HAMILTON,2017/07/13,927703,Metro Animal Services,Metro Government Operations,Supplies,Building Maintenance Supplies,,,,,General Fund,,,4.5,707
2018,2017/06/23,1820337,355,ULINE INC,2017/07/17,928308,Metro Animal Services,Metro Government Operations,Supplies,Building Maintenance Supplies,,,,,General Fund,,,355,708
2018,2017/06/15,1817618,146.95,ULINE INC,2017/07/07,926515,Metro Animal Services,Metro Government Operations,Supplies,Building Maintenance Supplies,,,,,General Fund,,,125.95,709
2018,2017/06/15,1817618,146.95,ULINE INC,2017/07/07,926515,Metro Animal Services,Metro Government Operations,Supplies,Building Maintenance Supplies,,,,,General Fund,,,21,710
2018,2017/06/28,1819620,277.8,MPC PROMOTIONS,2017/07/24,929675,Metro Animal Services,Metro Government Operations,Supplies,Clothing/Uniform supplies,,,,,General Fund,,,277.8,711
2018,2017/06/28,1819585,129.95,MPC PROMOTIONS,2017/07/24,929675,Metro Animal Services,Metro Government Operations,Supplies,Clothing/Uniform supplies,,,,,General Fund,,,129.95,712
2018,2017/06/28,1819608,125,MPC PROMOTIONS,2017/07/24,929675,Metro Animal Services,Metro Government Operations,Supplies,Clothing/Uniform supplies,,,,,General Fund,,,125,713
2018,2017/06/28,1819111,167.85,MPC PROMOTIONS,2017/07/07,926513,Metro Animal Services,Metro Government Operations,Supplies,Clothing/Uniform supplies,,,,,General Fund,,,167.85,714
2018,2017/06/28,1818464,374.17,CLINT CHEMICAL & JANITORIAL SUPPLIES INC,2017/07/13,927604,Metro Animal Services,Metro Government Operations,Supplies,Custodial Supplies,,,,,General Fund,,,282.49,715
2018,2017/06/28,1818464,374.17,CLINT CHEMICAL & JANITORIAL SUPPLIES INC,2017/07/13,927604,Metro Animal Services,Metro Government Operations,Supplies,Custodial Supplies,,,,,General Fund,,,91.68,716
2018,2017/06/06,1812822,986,CORNERSTONE PHARMACY & COMPOUNDING LAB,2017/07/03,925796,Metro Animal Services,Metro Government Operations,Supplies,Custodial Supplies,,,,,General Fund,,,986,717
2018,2017/06/15,1815611,5820,INTERVET INC,2017/07/10,926797,Metro Animal Services,Metro Government Operations,Supplies,Custodial Supplies,,,,,General Fund,,,5820,718
2018,2017/06/08,1814034,173.99,LEONARD BRUSH & CHEMICAL CO INC,2017/07/03,925934,Metro Animal Services,Metro Government Operations,Supplies,Custodial Supplies,,,,,General Fund,,,173.99,719
2018,2017/06/14,1815755,66.58,LEONARD BRUSH & CHEMICAL CO INC,2017/07/10,926918,Metro Animal Services,Metro Government Operations,Supplies,Custodial Supplies,,,,,General Fund,,,66.58,720
2018,2017/06/29,1820209,29.91,BUTLER ANIMAL HEALTH HOLDING COMPANY LLC,2017/07/10,926910,Metro Animal Services,Metro Government Operations,Supplies,Drugs/Medicine Supplies,,,,,General Fund,,,29.91,721
2018,2017/06/29,1819587,1282.3,BUTLER ANIMAL HEALTH HOLDING COMPANY LLC,2017/07/24,929662,Metro Animal Services,Metro Government Operations,Supplies,Drugs/Medicine Supplies,,,,,General Fund,,,1242.64,722
2018,2017/06/29,1819587,1282.3,BUTLER ANIMAL HEALTH HOLDING COMPANY LLC,2017/07/24,929662,Metro Animal Services,Metro Government Operations,Supplies,Drugs/Medicine Supplies,,,,,General Fund,,,39.66,723
2018,2017/06/29,1820125,398.36,BUTLER ANIMAL HEALTH HOLDING COMPANY LLC,2017/07/19,928779,Metro Animal Services,Metro Government Operations,Supplies,Drugs/Medicine Supplies,,,,,General Fund,,,29.91,724
2018,2017/06/29,1820125,398.36,BUTLER ANIMAL HEALTH HOLDING COMPANY LLC,2017/07/19,928779,Metro Animal Services,Metro Government Operations,Supplies,Drugs/Medicine Supplies,,,,,General Fund,,,368.45,725
2018,2017/06/29,1819630,89.73,BUTLER ANIMAL HEALTH HOLDING COMPANY LLC,2017/07/19,928779,Metro Animal Services,Metro Government Operations,Supplies,Drugs/Medicine Supplies,,,,,General Fund,,,89.73,726
2018,2017/06/08,1814444,92.24,BUTLER ANIMAL HEALTH HOLDING COMPANY LLC,2017/07/03,925926,Metro Animal Services,Metro Government Operations,Supplies,Drugs/Medicine Supplies,,,,,General Fund,,,92.24,727
2018,2017/06/08,1815679,657,BUTLER ANIMAL HEALTH HOLDING COMPANY LLC,2017/07/07,926505,Metro Animal Services,Metro Government Operations,Supplies,Drugs/Medicine Supplies,,,,,General Fund,,,490.59,728
2018,2017/06/08,1815679,657,BUTLER ANIMAL HEALTH HOLDING COMPANY LLC,2017/07/07,926505,Metro Animal Services,Metro Government Operations,Supplies,Drugs/Medicine Supplies,,,,,General Fund,,,166.41,729
2018,2017/06/26,1821469,1530,CORNERSTONE PHARMACY & COMPOUNDING LAB,2017/07/13,927606,Metro Animal Services,Metro Government Operations,Supplies,Drugs/Medicine Supplies,,,,,General Fund,,,1530,730
2018,2017/06/13,1816886,2480,DRE INC,2017/07/10,926775,Metro Animal Services,Metro Government Operations,Supplies,Drugs/Medicine Supplies,,,,,General Fund,,,2480,731
2018,2017/06/05,1822861,602.35,IDEXX REFERENCE LABORATORIES INC,2017/07/19,928629,Metro Animal Services,Metro Government Operations,Supplies,Drugs/Medicine Supplies,,,,,General Fund,,,602.35,732
2018,2017/06/28,1822706,67.3,IDEXX REFERENCE LABORATORIES INC,2017/07/19,928629,Metro Animal Services,Metro Government Operations,Supplies,Drugs/Medicine Supplies,,,,,General Fund,,,67.3,733
2018,2017/06/21,1822142,2,TYLER MOUNTAIN WATER CO INC,2017/07/17,928269,Metro Animal Services,Metro Government Operations,Supplies,Drugs/Medicine Supplies,,,,,General Fund,,,2,734
2018,2017/06/21,1817283,693,ZOETIS INC,2017/07/17,928283,Metro Animal Services,Metro Government Operations,Supplies,Drugs/Medicine Supplies,,,,,General Fund,,,693,735
2018,2017/06/12,1815422,346.5,ZOETIS INC,2017/07/07,926667,Metro Animal Services,Metro Government Operations,Supplies,Drugs/Medicine Supplies,,,,,General Fund,,,346.5,736
2018,2017/06/21,1817112,76,ANIMAL CARE EQUIPMENT & SERVICES LLC,2017/07/06,926257,Metro Animal Services,Metro Government Operations,Supplies,Animal Care Supplies,,,,,General Fund,,,76,737
2018,2017/06/26,1817847,1191.6,RICHARDSONS FEED & PET CENTER LLC,2017/07/07,926634,Metro Animal Services,Metro Government Operations,Supplies,Animal Care Supplies,,,,,General Fund,,,1191.6,738
2018,2017/06/06,1812638,52.5,BLUEGRASS UNIFORMS,2017/07/03,925925,Metro Animal Services,Metro Government Operations,Supplies,Clothing/Uniform supplies,,,,,General Fund,,,52.5,739
2018,2017/06/12,1815680,66,BLUEGRASS UNIFORMS,2017/07/07,926503,Metro Animal Services,Metro Government Operations,Supplies,Clothing/Uniform supplies,,,,,General Fund,,,66,740
2018,2017/06/29,1819168,154.25,BLUEGRASS UNIFORMS,2017/07/24,929661,Metro Animal Services,Metro Government Operations,Supplies,Clothing/Uniform supplies,,,,,General Fund,,,154.25,741
2018,2017/06/28,1818545,105,BLUEGRASS UNIFORMS,2017/07/24,929661,Metro Animal Services,Metro Government Operations,Supplies,Clothing/Uniform supplies,,,,,General Fund,,,105,742
2018,2017/06/28,1818548,165.26,BLUEGRASS UNIFORMS,2017/07/24,929661,Metro Animal Services,Metro Government Operations,Supplies,Clothing/Uniform supplies,,,,,General Fund,,,165.26,743
2018,2017/06/30,1820712,108.41,ADAM HAMILTON,2017/07/13,927703,Metro Animal Services,Metro Government Operations,Supplies,Miscellaneous Supplies,,,,,General Fund,,,5.01,744
2018,2017/05/31,1821794,10042.75,KENTUCKY COMMUNITY & TECHNICAL COLLEGE SYSTEM,2017/07/14,927813,Louisville Zoo,Metro Government Operations,Contractual Services,Professional Services,,,,,General Fund,,,10042.75,745
2018,2017/06/07,1812678,194.11,ORKIN PEST CONTROL,2017/07/03,925937,Louisville Zoo,Metro Government Operations,Contractual Services,Professional Services,,,,,General Fund,,,194.11,746
2018,2017/06/13,1814888,203.63,ORKIN PEST CONTROL,2017/07/10,926922,Louisville Zoo,Metro Government Operations,Contractual Services,Professional Services,,,,,General Fund,,,203.63,747
2018,2017/06/21,1817522,194.11,ORKIN PEST CONTROL,2017/07/24,929677,Louisville Zoo,Metro Government Operations,Contractual Services,Professional Services,,,,,General Fund,,,194.11,748
2018,2017/06/21,1822259,13500,JERROD TREANGEN,2017/07/28,930578,Louisville Zoo,Metro Government Operations,Equipment/Capital Outlay,Animals,,,,,General Fund,,,13500,749
2018,2017/05/31,1820487,1120.68,ANTECH DIAGNOSTICS INC,2017/07/19,928554,Louisville Zoo,Metro Government Operations,Contractual Services,Laboratory Services,,,,,General Fund,,,1120.68,750
2018,2017/06/30,1825412,1312.1,ANTECH DIAGNOSTICS INC,2017/07/31,930801,Louisville Zoo,Metro Government Operations,Contractual Services,Laboratory Services,,,,,General Fund,,,622.82,751
2018,2017/06/30,1825412,1312.1,ANTECH DIAGNOSTICS INC,2017/07/31,930801,Louisville Zoo,Metro Government Operations,Contractual Services,Laboratory Services,,,,,General Fund,,,689.28,752
2018,2017/06/30,1822268,137,CORNELL DIAGNOSTIC LABORATORY,2017/07/25,929849,Louisville Zoo,Metro Government Operations,Contractual Services,Laboratory Services,,,,,General Fund,,,137,753
2018,2017/06/28,1819913,1904,SMITHSONIAN INSTITUTION/NATIONAL ZOOLOGICAL PARK,2017/07/24,929625,Louisville Zoo,Metro Government Operations,Contractual Services,Laboratory Services,,,,,General Fund,,,1904,754
2018,2017/06/08,1819994,100,TEXAS A&M UNIVERSITY,2017/07/07,926646,Louisville Zoo,Metro Government Operations,Contractual Services,Laboratory Services,,,,,General Fund,,,100,755
2018,2017/06/16,1820101,100,UNIVERSITY OF FLORIDA,2017/07/11,927104,Louisville Zoo,Metro Government Operations,Contractual Services,Laboratory Services,,,,,General Fund,,,100,756
2018,2017/07/03,1824827,340,UNIVERSITY OF GEORGIA,2017/07/28,930647,Louisville Zoo,Metro Government Operations,Contractual Services,Laboratory Services,,,,,General Fund,,,340,757
2018,2017/05/31,1812983,94,UNIVERSITY OF KENTUCKY,2017/07/06,926357,Louisville Zoo,Metro Government Operations,Contractual Services,Laboratory Services,,,,,General Fund,,,94,758
2018,2017/06/09,1819107,212,VRL - SAN ANTONIO LLC,2017/07/07,926661,Louisville Zoo,Metro Government Operations,Contractual Services,Laboratory Services,,,,,General Fund,,,212,759
2018,2017/06/01,1817251,753.63,WASTE MANAGEMENT OF KY LLC,2017/07/18,928433,Louisville Zoo,Metro Government Operations,Contractual Services,Landfill/Sanitation Services,,,,,General Fund,,,753.63,760
2018,2017/07/01,1821439,449.02,UNITED PARCEL SERVICE,2017/07/14,927875,Louisville Zoo,Metro Government Operations,Contractual Services,Mail & Shipping,,,,,General Fund,,,449.02,761
2018,2017/06/17,1819105,176.83,UNITED PARCEL SERVICE,2017/07/06,926355,Louisville Zoo,Metro Government Operations,Contractual Services,Mail & Shipping,,,,,General Fund,,,176.83,762
2018,2017/06/24,1819486,395.01,UNITED PARCEL SERVICE,2017/07/14,927875,Louisville Zoo,Metro Government Operations,Contractual Services,Mail & Shipping,,,,,General Fund,,,395.01,763
2018,2017/06/09,1814759,300,BMQ INC,2017/07/19,928571,Louisville Zoo,Metro Government Operations,Supplies,Animal Bedding,,,,,General Fund,,,300,764
2018,2017/06/22,1819415,680.48,METZGERS COUNTRY STORE,2017/07/17,928220,Louisville Zoo,Metro Government Operations,Supplies,Animal Bedding,,,,,General Fund,,,657.52,765
2018,2017/06/22,1819415,680.48,METZGERS COUNTRY STORE,2017/07/17,928220,Louisville Zoo,Metro Government Operations,Supplies,Animal Bedding,,,,,General Fund,,,22.96,766
2018,2017/06/07,1819193,801.4,METZGERS COUNTRY STORE,2017/07/10,926828,Louisville Zoo,Metro Government Operations,Supplies,Animal Bedding,,,,,General Fund,,,801.4,767
2018,2017/06/22,1821806,-979.98,METZGERS COUNTRY STORE,2017/08/07,932069,Louisville Zoo,Metro Government Operations,Supplies,Animal Bedding,,,,,General Fund,,,-979.98,768
2018,2017/06/15,1819999,814.98,METZGERS COUNTRY STORE,2017/08/07,932069,Louisville Zoo,Metro Government Operations,Supplies,Animal Bedding,,,,,General Fund,,,691.31,769
2018,2017/06/15,1819999,814.98,METZGERS COUNTRY STORE,2017/08/07,932069,Louisville Zoo,Metro Government Operations,Supplies,Animal Bedding,,,,,General Fund,,,123.67,770
2018,2017/06/09,1814869,520,PHILPOT HAY COMPANY,2017/07/05,926104,Louisville Zoo,Metro Government Operations,Supplies,Animal Bedding,,,,,General Fund,,,520,771
2018,2017/05/29,1819993,29.98,SANDY'S PET SUPPLIES INC,2017/07/07,926636,Louisville Zoo,Metro Government Operations,Supplies,Animal Care Supplies,,,,,General Fund,,,29.98,772
2018,2017/06/16,1820485,107.94,BARKSTOWN ROAD LLC,2017/07/19,928564,Louisville Zoo,Metro Government Operations,Supplies,Animal Food,,,,,General Fund,,,107.94,773
2018,2017/05/04,1819421,89.95,BARKSTOWN ROAD LLC,2017/07/10,926742,Louisville Zoo,Metro Government Operations,Supplies,Animal Food,,,,,General Fund,,,89.95,774
2018,2017/06/08,1819077,110.85,BLUEFIN SEAFOOD CORP,2017/07/06,926264,Louisville Zoo,Metro Government Operations,Supplies,Animal Food,,,,,General Fund,,,110.85,775
2018,2017/05/30,1819164,110.85,BLUEFIN SEAFOOD CORP,2017/07/06,926264,Louisville Zoo,Metro Government Operations,Supplies,Animal Food,,,,,General Fund,,,110.85,776
2018,2017/06/30,1822812,75.9,BLUEFIN SEAFOOD CORP,2017/07/25,929833,Louisville Zoo,Metro Government Operations,Supplies,Animal Food,,,,,General Fund,,,75.9,777
2018,2017/06/14,1819155,20,BOONES ABATTOIR INC,2017/07/10,926749,Louisville Zoo,Metro Government Operations,Supplies,Animal Food,,,,,General Fund,,,20,778
2018,2017/05/15,1819991,5999.87,CENTRAL NEBRASKA PACKING INC,2017/07/18,928445,Louisville Zoo,Metro Government Operations,Supplies,Animal Food,,,,,General Fund,,,5999.87,779
2018,2017/06/08,1822270,413.09,CINCINNATI LAB SUPPLY INC,2017/07/17,928156,Louisville Zoo,Metro Government Operations,Supplies,Animal Food,,,,,General Fund,,,413.09,780
2018,2017/06/20,1820020,108,CINCINNATI LAB SUPPLY INC,2017/07/19,928585,Louisville Zoo,Metro Government Operations,Supplies,Animal Food,,,,,General Fund,,,108,781
2018,2017/05/15,1819091,538.36,CINCINNATI LAB SUPPLY INC,2017/07/06,926270,Louisville Zoo,Metro Government Operations,Supplies,Animal Food,,,,,General Fund,,,538.36,782
2018,2017/06/08,1824387,76.63,DINE EQUIPMENT INC,2017/07/28,930551,Louisville Zoo,Metro Government Operations,Supplies,Animal Food,,,,,General Fund,,,76.63,783
2018,2017/04/19,1822221,44.99,DRS FOSTER & SMITH & PET WAREHOUSE,2017/07/17,928171,Louisville Zoo,Metro Government Operations,Supplies,Animal Food,,,,,General Fund,,,44.99,784
2018,2017/06/26,1821419,987.75,ENVIGO INTERNATIONAL HOLDINGS INC,2017/07/21,929318,Louisville Zoo,Metro Government Operations,Supplies,Animal Food,,,,,General Fund,,,987.75,785
2018,2017/06/12,1814911,780,ENVIGO INTERNATIONAL HOLDINGS INC,2017/07/07,926583,Louisville Zoo,Metro Government Operations,Supplies,Animal Food,,,,,General Fund,,,780,786
2018,2017/06/19,1819451,1339.5,ENVIGO INTERNATIONAL HOLDINGS INC,2017/07/14,927786,Louisville Zoo,Metro Government Operations,Supplies,Animal Food,,,,,General Fund,,,1339.5,787
2018,2017/06/07,1817124,1102.55,EXCEL EQUINE LLC,2017/07/03,925802,Louisville Zoo,Metro Government Operations,Supplies,Animal Food,,,,,General Fund,,,1102.55,788
2018,2017/06/14,1817525,377.6,EXCEL EQUINE LLC,2017/07/10,926776,Louisville Zoo,Metro Government Operations,Supplies,Animal Food,,,,,General Fund,,,377.6,789
2018,2017/06/28,1820243,164.6,EXCEL EQUINE LLC,2017/07/24,929549,Louisville Zoo,Metro Government Operations,Supplies,Animal Food,,,,,General Fund,,,164.6,790
2018,2017/06/21,1819998,593.7,EXCEL EQUINE LLC,2017/07/17,928173,Louisville Zoo,Metro Government Operations,Supplies,Animal Food,,,,,General Fund,,,593.7,791
2018,2017/06/28,1821390,1131.55,EXCEL EQUINE LLC,2017/07/24,929549,Louisville Zoo,Metro Government Operations,Supplies,Animal Food,,,,,General Fund,,,1131.55,792
2018,2017/06/20,1819227,316.4,FRANK A CAMPISANO & SONS INC,2017/07/06,926286,Louisville Zoo,Metro Government Operations,Supplies,Animal Food,,,,,General Fund,,,316.4,793
2018,2017/06/12,1819733,206.45,FRANK A CAMPISANO & SONS INC,2017/07/06,926286,Louisville Zoo,Metro Government Operations,Supplies,Animal Food,,,,,General Fund,,,206.45,794
2018,2017/06/12,1819733,206.45,FRANK A CAMPISANO & SONS INC,2017/07/06,926286,Louisville Zoo,Metro Government Operations,Supplies,Animal Food,,,,,General Fund,,,-206.45,795
2018,2017/06/12,1819733,206.45,FRANK A CAMPISANO & SONS INC,2017/07/06,926286,Louisville Zoo,Metro Government Operations,Supplies,Animal Food,,,,,General Fund,,,206.45,796
2018,2017/06/17,1819658,705,FRANK A CAMPISANO & SONS INC,2017/07/06,926286,Louisville Zoo,Metro Government Operations,Supplies,Animal Food,,,,,General Fund,,,705,797
2018,2017/06/15,1819680,527.15,FRANK A CAMPISANO & SONS INC,2017/07/06,926286,Louisville Zoo,Metro Government Operations,Supplies,Animal Food,,,,,General Fund,,,527.15,798
2018,2017/06/19,1819689,219.8,FRANK A CAMPISANO & SONS INC,2017/07/06,926286,Louisville Zoo,Metro Government Operations,Supplies,Animal Food,,,,,General Fund,,,219.8,799
2018,2017/06/24,1819568,754.85,FRANK A CAMPISANO & SONS INC,2017/07/06,926286,Louisville Zoo,Metro Government Operations,Supplies,Animal Food,,,,,General Fund,,,754.85,800
2018,2017/06/29,1819602,306.85,FRANK A CAMPISANO & SONS INC,2017/07/06,926286,Louisville Zoo,Metro Government Operations,Supplies,Animal Food,,,,,General Fund,,,306.85,801
2018,2017/06/14,1819948,164.75,FRANK A CAMPISANO & SONS INC,2017/07/13,927618,Louisville Zoo,Metro Government Operations,Supplies,Animal Food,,,,,General Fund,,,164.75,802
2018,2017/06/10,1819748,854.1,FRANK A CAMPISANO & SONS INC,2017/07/13,927618,Louisville Zoo,Metro Government Operations,Supplies,Animal Food,,,,,General Fund,,,854.1,803
2018,2017/06/14,1819749,26.4,FRANK A CAMPISANO & SONS INC,2017/07/13,927618,Louisville Zoo,Metro Government Operations,Supplies,Animal Food,,,,,General Fund,,,26.4,804
2018,2017/06/15,1819781,175.15,FRANK A CAMPISANO & SONS INC,2017/07/14,927791,Louisville Zoo,Metro Government Operations,Supplies,Animal Food,,,,,General Fund,,,175.15,805
2018,2017/06/13,1819793,346.85,FRANK A CAMPISANO & SONS INC,2017/07/13,927618,Louisville Zoo,Metro Government Operations,Supplies,Animal Food,,,,,General Fund,,,346.85,806
2018,2017/06/22,1819799,194.35,FRANK A CAMPISANO & SONS INC,2017/07/14,927791,Louisville Zoo,Metro Government Operations,Supplies,Animal Food,,,,,General Fund,,,194.35,807
2018,2017/06/23,1819808,282.1,FRANK A CAMPISANO & SONS INC,2017/07/13,927618,Louisville Zoo,Metro Government Operations,Supplies,Animal Food,,,,,General Fund,,,282.1,808
2018,2017/06/26,1819591,75,FRANK A CAMPISANO & SONS INC,2017/07/10,926783,Louisville Zoo,Metro Government Operations,Supplies,Animal Food,,,,,General Fund,,,75,809
2018,2017/06/26,1819592,239.1,FRANK A CAMPISANO & SONS INC,2017/07/10,926783,Louisville Zoo,Metro Government Operations,Supplies,Animal Food,,,,,General Fund,,,239.1,810
2018,2017/06/28,1819616,264.75,FRANK A CAMPISANO & SONS INC,2017/07/10,926783,Louisville Zoo,Metro Government Operations,Supplies,Animal Food,,,,,General Fund,,,264.75,811
2018,2017/06/20,1819426,495.25,FRANK A CAMPISANO & SONS INC,2017/07/10,926783,Louisville Zoo,Metro Government Operations,Supplies,Animal Food,,,,,General Fund,,,495.25,812
2018,2017/06/21,1819453,138.35,FRANK A CAMPISANO & SONS INC,2017/07/13,927618,Louisville Zoo,Metro Government Operations,Supplies,Animal Food,,,,,General Fund,,,3,813
2018,2017/06/21,1819453,138.35,FRANK A CAMPISANO & SONS INC,2017/07/13,927618,Louisville Zoo,Metro Government Operations,Supplies,Animal Food,,,,,General Fund,,,135.35,814
2018,2017/06/13,1820084,531.65,FRANK A CAMPISANO & SONS INC,2017/07/13,927618,Louisville Zoo,Metro Government Operations,Supplies,Animal Food,,,,,General Fund,,,531.65,815
2018,2017/06/30,1820092,164.45,FRANK A CAMPISANO & SONS INC,2017/07/13,927618,Louisville Zoo,Metro Government Operations,Supplies,Animal Food,,,,,General Fund,,,164.45,816
2018,2017/06/16,1820096,286.35,FRANK A CAMPISANO & SONS INC,2017/07/13,927618,Louisville Zoo,Metro Government Operations,Supplies,Animal Food,,,,,General Fund,,,286.35,817
2018,2017/06/17,1820097,247,FRANK A CAMPISANO & SONS INC,2017/07/13,927618,Louisville Zoo,Metro Government Operations,Supplies,Animal Food,,,,,General Fund,,,247,818
2018,2017/06/29,1820005,199.75,FRANK A CAMPISANO & SONS INC,2017/07/13,927618,Louisville Zoo,Metro Government Operations,Supplies,Animal Food,,,,,General Fund,,,199.75,819
2018,2017/06/27,1820011,516.5,FRANK A CAMPISANO & SONS INC,2017/07/13,927618,Louisville Zoo,Metro Government Operations,Supplies,Animal Food,,,,,General Fund,,,22.17,820
2018,2017/06/27,1820011,516.5,FRANK A CAMPISANO & SONS INC,2017/07/13,927618,Louisville Zoo,Metro Government Operations,Supplies,Animal Food,,,,,General Fund,,,494.33,821
2018,2017/06/27,1820055,162.85,FRANK A CAMPISANO & SONS INC,2017/07/14,927791,Louisville Zoo,Metro Government Operations,Supplies,Animal Food,,,,,General Fund,,,162.85,822
2018,2017/06/21,1820059,119,FRANK A CAMPISANO & SONS INC,2017/07/13,927618,Louisville Zoo,Metro Government Operations,Supplies,Animal Food,,,,,General Fund,,,119,823
2018,2017/06/26,1820728,30.25,FRANK A CAMPISANO & SONS INC,2017/07/13,927618,Louisville Zoo,Metro Government Operations,Supplies,Animal Food,,,,,General Fund,,,30.25,824
2018,2017/06/24,1819740,307.8,FRANK A CAMPISANO & SONS INC,2017/07/19,928615,Louisville Zoo,Metro Government Operations,Supplies,Animal Food,,,,,General Fund,,,307.8,825
2018,2017/04/19,1826178,8,FRANK A CAMPISANO & SONS INC,2017/07/28,930560,Louisville Zoo,Metro Government Operations,Supplies,Animal Food,,,,,General Fund,,,8,826
2018,2017/05/05,1826179,2,FRANK A CAMPISANO & SONS INC,2017/07/27,930368,Louisville Zoo,Metro Government Operations,Supplies,Animal Food,,,,,General Fund,,,2,827
2018,2017/06/26,1821387,129.28,GRUBCO INC,2017/07/21,929329,Louisville Zoo,Metro Government Operations,Supplies,Animal Food,,,,,General Fund,,,129.28,828
2018,2017/06/12,1819428,98.69,GRUBCO INC,2017/07/07,926592,Louisville Zoo,Metro Government Operations,Supplies,Animal Food,,,,,General Fund,,,98.69,829
2018,2017/06/19,1819844,129.28,GRUBCO INC,2017/07/14,927800,Louisville Zoo,Metro Government Operations,Supplies,Animal Food,,,,,General Fund,,,129.28,830
2018,2017/06/21,1819414,41.16,KROGER CO,2017/07/19,928653,Louisville Zoo,Metro Government Operations,Supplies,Animal Food,,,,,General Fund,,,-41.16,831
2018,2017/06/21,1819414,41.16,KROGER CO,2017/07/19,928653,Louisville Zoo,Metro Government Operations,Supplies,Animal Food,,,,,General Fund,,,41.16,832
2018,2017/06/08,1820049,288.27,KROGER CO,2017/07/19,928653,Louisville Zoo,Metro Government Operations,Supplies,Animal Food,,,,,General Fund,,,288.27,833
2018,2017/06/21,1819805,248.49,KROGER CO,2017/07/27,930382,Louisville Zoo,Metro Government Operations,Supplies,Animal Food,,,,,General Fund,,,248.49,834
2018,2017/06/09,1819819,35.44,KROGER CO,2017/07/27,930382,Louisville Zoo,Metro Government Operations,Supplies,Animal Food,,,,,General Fund,,,35.44,835
2018,2017/05/31,1819787,181.86,KROGER CO,2017/07/06,926303,Louisville Zoo,Metro Government Operations,Supplies,Animal Food,,,,,General Fund,,,181.86,836
2018,2017/06/14,1819900,6.06,KROGER CO,2017/07/13,927630,Louisville Zoo,Metro Government Operations,Supplies,Animal Food,,,,,General Fund,,,6.06,837
2018,2017/06/14,1819900,6.06,KROGER CO,2017/07/13,927630,Louisville Zoo,Metro Government Operations,Supplies,Animal Food,,,,,General Fund,,,-6.06,838
2018,2017/06/03,1819693,13.45,KROGER CO,2017/07/10,926814,Louisville Zoo,Metro Government Operations,Supplies,Animal Food,,,,,General Fund,,,13.45,839
2018,2017/05/24,1820072,219.66,KROGER CO,2017/07/10,926814,Louisville Zoo,Metro Government Operations,Supplies,Animal Food,,,,,General Fund,,,219.66,840
2018,2017/06/14,1820027,128.73,KROGER CO,2017/07/12,927317,Louisville Zoo,Metro Government Operations,Supplies,Animal Food,,,,,General Fund,,,128.73,841
2018,2017/05/29,1820080,1.26,KROGER CO,2017/07/10,926814,Louisville Zoo,Metro Government Operations,Supplies,Animal Food,,,,,General Fund,,,1.26,842
2018,2017/06/09,1815521,1377.75,MCROBERTS SALES CO INC,2017/07/05,926091,Louisville Zoo,Metro Government Operations,Supplies,Animal Food,,,,,General Fund,,,1377.75,843
2018,2016/09/27,1817544,61.25,PEPPERS TACKLE LLC,2017/07/03,925858,Louisville Zoo,Metro Government Operations,Supplies,Animal Food,,,,,General Fund,,,61.25,844
2018,2017/06/09,1815861,2352,PHILPOT HAY COMPANY,2017/07/19,928707,Louisville Zoo,Metro Government Operations,Supplies,Animal Food,,,,,General Fund,,,2352,845
2018,2017/06/26,1820830,1281.5,RODENT PRO.COM,2017/07/21,929420,Louisville Zoo,Metro Government Operations,Supplies,Animal Food,,,,,General Fund,,,1281.5,846
2018,2017/05/02,1815471,1373.5,RODENT PRO.COM,2017/07/19,928796,Louisville Zoo,Metro Government Operations,Supplies,Animal Food,,,,,General Fund,,,1373.5,847
2018,2017/06/06,1816608,1443,RODENT PRO.COM,2017/07/03,925940,Louisville Zoo,Metro Government Operations,Supplies,Animal Food,,,,,General Fund,,,1443,848
2018,2017/06/13,1815378,1310.5,RODENT PRO.COM,2017/07/10,926924,Louisville Zoo,Metro Government Operations,Supplies,Animal Food,,,,,General Fund,,,1310.5,849
2018,2017/06/27,1820821,1646,RODENT PRO.COM,2017/07/24,929678,Louisville Zoo,Metro Government Operations,Supplies,Animal Food,,,,,General Fund,,,1646,850
2018,2017/06/27,1822712,60,RUDY GREEN INC,2017/07/24,929619,Louisville Zoo,Metro Government Operations,Supplies,Animal Food,,,,,General Fund,,,60,851
2018,2017/06/21,1820014,490.19,SYSCO LOUISVILLE FOOD SERVICE,2017/07/17,928261,Louisville Zoo,Metro Government Operations,Supplies,Animal Food,,,,,General Fund,,,490.19,852
2018,2017/06/07,1814343,508.16,SYSCO LOUISVILLE FOOD SERVICE,2017/07/03,925876,Louisville Zoo,Metro Government Operations,Supplies,Animal Food,,,,,General Fund,,,508.16,853
2018,2017/06/26,1819932,556.1,ALLIED CENTRAL DISTRIBUTING INC,2017/07/21,929287,Louisville Zoo,Metro Government Operations,Supplies,Custodial Supplies,,,,,General Fund,,,556.1,854
2018,2017/06/30,1820066,200.38,GRAINGER INDUSTRIAL SUPPLY,2017/07/25,929875,Louisville Zoo,Metro Government Operations,Supplies,Custodial Supplies,,,,,General Fund,,,200.38,855
2018,2017/06/15,1815900,552.04,GRAINGER INDUSTRIAL SUPPLY,2017/07/19,928621,Louisville Zoo,Metro Government Operations,Supplies,Custodial Supplies,,,,,General Fund,,,552.04,856
2018,2017/06/23,1819298,351.66,GRAINGER INDUSTRIAL SUPPLY,2017/07/19,928621,Louisville Zoo,Metro Government Operations,Supplies,Custodial Supplies,,,,,General Fund,,,351.66,857
2018,2017/06/08,1819789,75.95,KROGER CO,2017/07/06,926303,Louisville Zoo,Metro Government Operations,Supplies,Custodial Supplies,,,,,General Fund,,,75.95,858
2018,2017/06/14,1819900,6.06,KROGER CO,2017/07/13,927630,Louisville Zoo,Metro Government Operations,Supplies,Custodial Supplies,,,,,General Fund,,,6.06,859
2018,2017/06/28,1820991,72.03,KROGER CO,2017/07/13,927630,Louisville Zoo,Metro Government Operations,Supplies,Custodial Supplies,,,,,General Fund,,,72.03,860
2018,2017/05/31,1820077,62.7,KROGER CO,2017/07/10,926814,Louisville Zoo,Metro Government Operations,Supplies,Custodial Supplies,,,,,General Fund,,,62.7,861
2018,2017/06/21,1819414,41.16,KROGER CO,2017/07/19,928653,Louisville Zoo,Metro Government Operations,Supplies,Custodial Supplies,,,,,General Fund,,,41.16,862
2018,2017/06/23,1821378,17.98,KROGER CO,2017/07/13,927630,Louisville Zoo,Metro Government Operations,Supplies,Custodial Supplies,,,,,General Fund,,,17.98,863
2018,2017/06/09,1819295,7.98,KROGER CO,2017/07/19,928653,Louisville Zoo,Metro Government Operations,Supplies,Custodial Supplies,,,,,General Fund,,,7.98,864
2018,2017/06/29,1819548,231.48,AMAZON COM,2017/07/14,927748,Louisville Zoo,Metro Government Operations,Supplies,Drugs/Medicine Supplies,,,,,General Fund,,,212.13,865
2018,2017/06/29,1819548,231.48,AMAZON COM,2017/07/14,927748,Louisville Zoo,Metro Government Operations,Supplies,Drugs/Medicine Supplies,,,,,General Fund,,,19.35,866
2018,2017/06/27,1818985,252.6,AMAZON COM,2017/07/13,927592,Louisville Zoo,Metro Government Operations,Supplies,Drugs/Medicine Supplies,,,,,General Fund,,,252.6,867
2018,2017/06/28,1820285,10,AUDUBON PHARMACY INC,2017/07/11,927032,Louisville Zoo,Metro Government Operations,Supplies,Drugs/Medicine Supplies,,,,,General Fund,,,10,868
2018,2017/06/21,1819490,330,BUTLER ANIMAL HEALTH HOLDING COMPANY LLC,2017/07/11,927121,Louisville Zoo,Metro Government Operations,Supplies,Drugs/Medicine Supplies,,,,,General Fund,,,330,869
2018,2017/06/08,1819149,9.19,BUTLER ANIMAL HEALTH HOLDING COMPANY LLC,2017/07/18,928443,Louisville Zoo,Metro Government Operations,Supplies,Drugs/Medicine Supplies,,,,,General Fund,,,9.19,870
2018,2017/06/21,1819528,827.03,BUTLER ANIMAL HEALTH HOLDING COMPANY LLC,2017/07/18,928443,Louisville Zoo,Metro Government Operations,Supplies,Drugs/Medicine Supplies,,,,,General Fund,,,393.09,871
2018,2017/06/21,1819528,827.03,BUTLER ANIMAL HEALTH HOLDING COMPANY LLC,2017/07/18,928443,Louisville Zoo,Metro Government Operations,Supplies,Drugs/Medicine Supplies,,,,,General Fund,,,433.94,872
2018,2017/06/14,1819572,370.56,BUTLER ANIMAL HEALTH HOLDING COMPANY LLC,2017/07/18,928443,Louisville Zoo,Metro Government Operations,Supplies,Drugs/Medicine Supplies,,,,,General Fund,,,370.56,873
2018,2017/06/07,1819576,19.5,BUTLER ANIMAL HEALTH HOLDING COMPANY LLC,2017/07/18,928443,Louisville Zoo,Metro Government Operations,Supplies,Drugs/Medicine Supplies,,,,,General Fund,,,19.5,874
2018,2017/06/28,1821334,56.25,BUTLER ANIMAL HEALTH HOLDING COMPANY LLC,2017/07/18,928443,Louisville Zoo,Metro Government Operations,Supplies,Drugs/Medicine Supplies,,,,,General Fund,,,56.25,875
2018,2017/06/28,1820933,1134.13,BUTLER ANIMAL HEALTH HOLDING COMPANY LLC,2017/07/14,927894,Louisville Zoo,Metro Government Operations,Supplies,Drugs/Medicine Supplies,,,,,General Fund,,,1134.13,876
2018,2017/06/30,1821406,900,FLORIDA DISCOUNT DRUGS,2017/07/25,929869,Louisville Zoo,Metro Government Operations,Supplies,Drugs/Medicine Supplies,,,,,General Fund,,,516,877
2018,2017/06/30,1821406,900,FLORIDA DISCOUNT DRUGS,2017/07/25,929869,Louisville Zoo,Metro Government Operations,Supplies,Drugs/Medicine Supplies,,,,,General Fund,,,384,878
2018,2017/06/30,1821301,330,FLORIDA DISCOUNT DRUGS,2017/07/25,929869,Louisville Zoo,Metro Government Operations,Supplies,Drugs/Medicine Supplies,,,,,General Fund,,,330,879
2018,2017/06/28,1820058,80,GREENWORLD PHARMACY LLC,2017/07/24,929562,Louisville Zoo,Metro Government Operations,Supplies,Drugs/Medicine Supplies,,,,,General Fund,,,80,880
2018,2017/06/14,1819935,36.06,MCKESSON MEDICAL SURGICAL INC,2017/07/10,926826,Louisville Zoo,Metro Government Operations,Supplies,Drugs/Medicine Supplies,,,,,General Fund,,,36.06,881
2018,2017/06/21,1820045,143.5,MERIAL LIMITED,2017/07/12,927333,Louisville Zoo,Metro Government Operations,Supplies,Drugs/Medicine Supplies,,,,,General Fund,,,143.5,882
2018,2017/06/21,1819621,53.48,PATTERSON VETERINARY SUPPLY INC,2017/07/19,928704,Louisville Zoo,Metro Government Operations,Supplies,Drugs/Medicine Supplies,,,,,General Fund,,,53.48,883
2018,2017/06/21,1819923,62.55,PATTERSON VETERINARY SUPPLY INC,2017/07/17,928232,Louisville Zoo,Metro Government Operations,Supplies,Drugs/Medicine Supplies,,,,,General Fund,,,62.55,884
2018,2017/06/21,1822232,106.08,SYSCO LOUISVILLE FOOD SERVICE,2017/07/19,928741,Louisville Zoo,Metro Government Operations,Supplies,Kitchen Supplies,,,,,General Fund,,,106.08,885
2018,2017/06/12,1819938,224.23,MCKESSON MEDICAL SURGICAL INC,2017/07/07,926612,Louisville Zoo,Metro Government Operations,Supplies,Lab Supplies,,,,,General Fund,,,224.23,886
2018,2017/06/29,1822272,86.58,MCKESSON MEDICAL SURGICAL INC,2017/07/24,929602,Louisville Zoo,Metro Government Operations,Supplies,Lab Supplies,,,,,General Fund,,,86.58,887
2018,2017/05/23,1808745,9395,METTS COMPANY INC,2017/07/05,926092,Louisville Free Public Library,Metro Government Operations,Contractual Services,Lease/Repair Costs,,,,,General Fund,,,9395,888
2018,2017/06/01,1826741,28,AMANDA LANGDON,2017/08/01,931095,Louisville Free Public Library,Metro Government Operations,Contractual Services,Travel, Local Travel Costs,,,,,General Fund,,,889
2018,2017/06/21,1824520,2947.5,ACTION LANDSCAPE INC,2017/07/24,929503,Develop Louisville,Metro Government Operations,Contractual Services,Professional Services,,,,,Gen Brightside,,,2947.5,890
2018,2017/06/30,1825789,1958,JIMMY WATKINS,2017/07/28,930579,Develop Louisville,Metro Government Operations,Contractual Services,Professional Services,,,,,Gen Brightside,,,1958,891
2018,2017/03/24,1819899,1958,JIMMY WATKINS,2017/07/11,927068,Develop Louisville,Metro Government Operations,Contractual Services,Professional Services,,,,,Gen Brightside,,,1958,892
2018,2017/04/07,1819850,1958,JIMMY WATKINS,2017/07/11,927068,Develop Louisville,Metro Government Operations,Contractual Services,Professional Services,,,,,Gen Brightside,,,1958,893
2018,2017/03/31,1819857,570,JIMMY WATKINS,2017/07/11,927068,Develop Louisville,Metro Government Operations,Contractual Services,Professional Services,,,,,Gen Brightside,,,570,894
2018,2017/03/10,1819758,1958,JIMMY WATKINS,2017/07/11,927068,Develop Louisville,Metro Government Operations,Contractual Services,Professional Services,,,,,Gen Brightside,,,1958,895
2018,2017/06/16,1816213,1958,JIMMY WATKINS,2017/07/11,927068,Develop Louisville,Metro Government Operations,Contractual Services,Professional Services,,,,,Gen Brightside,,,1958,896
2018,2017/07/13,1824086,2690,LUV-IT LANDSCAPING LLC,2017/08/07,932061,Develop Louisville,Metro Government Operations,Contractual Services,Professional Services,,,,,Gen Brightside,,,2690,897
2018,2017/05/30,1819982,778,LUV-IT LANDSCAPING LLC,2017/07/07,926598,Develop Louisville,Metro Government Operations,Contractual Services,Professional Services,,,,,Gen Brightside,,,778,898
2018,2017/03/27,1820715,17139,LUV-IT LANDSCAPING LLC,2017/07/11,927067,Develop Louisville,Metro Government Operations,Contractual Services,Professional Services,,,,,Gen Brightside,,,17139,899
2018,2017/06/26,1820171,93.49,ANDERSONS SALES & SERVICE INC,2017/07/21,929292,Louisville Zoo,Metro Government Operations,Contractual Services,Equipment Maintenance/Repair Services,,,,,General Fund,,,93.49,900
2018,2017/06/26,1820195,111.85,ANDERSONS SALES & SERVICE INC,2017/07/21,929292,Louisville Zoo,Metro Government Operations,Contractual Services,Equipment Maintenance/Repair Services,,,,,General Fund,,,22.3,901
2018,2017/06/26,1820195,111.85,ANDERSONS SALES & SERVICE INC,2017/07/21,929292,Louisville Zoo,Metro Government Operations,Contractual Services,Equipment Maintenance/Repair Services,,,,,General Fund,,,89.55,902
2018,2017/06/26,1820829,62.03,ANDERSONS SALES & SERVICE INC,2017/07/21,929292,Louisville Zoo,Metro Government Operations,Contractual Services,Equipment Maintenance/Repair Services,,,,,General Fund,,,62.03,903
2018,2017/06/21,1818919,258.34,ANDERSONS SALES & SERVICE INC,2017/07/17,928135,Louisville Zoo,Metro Government Operations,Contractual Services,Equipment Maintenance/Repair Services,,,,,General Fund,,,258.34,904
2018,2017/06/16,1816037,117,DEBRA KUEMPEL INC,2017/07/19,928596,Louisville Zoo,Metro Government Operations,Contractual Services,Equipment Maintenance/Repair Services,,,,,General Fund,,,117,905
2018,2017/06/23,1819521,2285.5,DEBRA KUEMPEL INC,2017/09/21,940015,Louisville Zoo,Metro Government Operations,Contractual Services,Equipment Maintenance/Repair Services,,,,,General Fund,,,2285.5,906
2018,2017/05/23,1814600,1504.6,DEBRA KUEMPEL INC,2017/07/07,926575,Louisville Zoo,Metro Government Operations,Contractual Services,Equipment Maintenance/Repair Services,,,,,General Fund,,,1504.6,907
2018,2017/05/26,1815723,742.86,DEBRA KUEMPEL INC,2017/07/07,926575,Louisville Zoo,Metro Government Operations,Contractual Services,Equipment Maintenance/Repair Services,,,,,General Fund,,,742.86,908
2018,2017/06/22,1818111,95.25,DOOR SERVICE COMPANY,2017/07/17,928292,Louisville Zoo,Metro Government Operations,Contractual Services,Equipment Maintenance/Repair Services,,,,,General Fund,,,95.25,909
2018,2017/06/13,1815729,2119,FIBERGLASS ANIMALS SHAPES & TRADEMARKS CORP DBA FAST CORPORATION,2017/07/10,926780,Louisville Zoo,Metro Government Operations,Contractual Services,Equipment Maintenance/Repair Services,,,,,General Fund,,,2119,910
2018,2017/06/19,1819411,39.2,KENTUCKIANA PRODUCTS & SERVICES INC,2017/07/14,927776,Louisville Zoo,Metro Government Operations,Contractual Services,Equipment Maintenance/Repair Services,,,,,General Fund,,,39.2,911
2018,2017/05/03,1821802,728,QUALITY ELECTRIC MOTOR SERVICE INC,2017/07/19,928794,Louisville Zoo,Metro Government Operations,Contractual Services,Equipment Maintenance/Repair Services,,,,,General Fund,,,728,912
2018,2017/06/19,1822418,418,HERC RENTALS INC,2017/07/25,929880,Louisville Zoo,Metro Government Operations,Contractual Services,Equipment Rental,,,,,General Fund,,,418,913
2018,2017/06/19,1822117,975,HERC RENTALS INC,2017/07/20,929082,Louisville Zoo,Metro Government Operations,Contractual Services,Equipment Rental,,,,,General Fund,,,975,914
2018,2017/06/19,1819151,96.2,KENTUCKIANA PRODUCTS & SERVICES INC,2017/07/14,927776,Louisville Zoo,Metro Government Operations,Contractual Services,Glacier Run Maintenance,,,,,General Fund,,,3.81,915
2018,2017/06/19,1819151,96.2,KENTUCKIANA PRODUCTS & SERVICES INC,2017/07/14,927776,Louisville Zoo,Metro Government Operations,Contractual Services,Glacier Run Maintenance,,,,,General Fund,,,92.39,916
2018,2017/06/23,1819790,416,ALPHA MECHANICAL SERVICE INC,2017/07/25,929817,Louisville Zoo,Metro Government Operations,Contractual Services,HVAC Contractor Services,,,,,General Fund,,,416,917
2018,2017/05/31,1812298,381.5,W FRANK HARSHAW & ASSOCIATES INC,2017/08/25,935735,Louisville Zoo,Metro Government Operations,Contractual Services,HVAC Contractor Services,,,,,General Fund,,,381.5,918
2018,2017/05/25,1812467,654,W FRANK HARSHAW & ASSOCIATES INC,2017/08/25,935735,Louisville Zoo,Metro Government Operations,Contractual Services,HVAC Contractor Services,,,,,General Fund,,,654,919
2018,2017/06/06,1816159,458.45,W FRANK HARSHAW & ASSOCIATES INC,2017/08/25,935735,Louisville Zoo,Metro Government Operations,Contractual Services,HVAC Contractor Services,,,,,General Fund,,,458.45,920
2018,2017/06/13,1816862,1318,W FRANK HARSHAW & ASSOCIATES INC,2017/08/25,935735,Louisville Zoo,Metro Government Operations,Contractual Services,HVAC Contractor Services,,,,,General Fund,,,1318,921
2018,2017/06/13,1817276,1318,W FRANK HARSHAW & ASSOCIATES INC,2017/08/25,935735,Louisville Zoo,Metro Government Operations,Contractual Services,HVAC Contractor Services,,,,,General Fund,,,1318,922
2018,2017/06/16,1817259,480,CHISM SERVICE IRRIGATION INC,2017/07/06,926269,Louisville Zoo,Metro Government Operations,Contractual Services,Irrigation Services,,,,,General Fund,,,480,923
2018,2017/06/29,1819485,2192.5,BECKMAR ENVIRONMENTAL LABORATORY INC,2017/07/24,929524,Louisville Zoo,Metro Government Operations,Contractual Services,Laboratory Services,,,,,General Fund,,,2192.5,924
2018,2017/06/29,1819929,3265,BECKMAR ENVIRONMENTAL LABORATORY INC,2017/07/24,929524,Louisville Zoo,Metro Government Operations,Contractual Services,Laboratory Services,,,,,General Fund,,,3265,925
2018,2017/06/27,1819615,341,COMSTOCK BROTHERS ELECTRIC CO LLC,2017/07/13,927605,Louisville Zoo,Metro Government Operations,Contractual Services,Other Building Maintenance/Repair Services,,,,,General Fund,,,341,926
2018,2017/06/26,1819904,414,COMSTOCK BROTHERS ELECTRIC CO LLC,2017/07/21,929312,Louisville Zoo,Metro Government Operations,Contractual Services,Other Building Maintenance/Repair Services,,,,,General Fund,,,414,927
2018,2017/06/26,1819853,336,COMSTOCK BROTHERS ELECTRIC CO LLC,2017/07/21,929312,Louisville Zoo,Metro Government Operations,Contractual Services,Other Building Maintenance/Repair Services,,,,,General Fund,,,336,928
2018,2017/06/26,1819872,3536,COMSTOCK BROTHERS ELECTRIC CO LLC,2017/07/21,929312,Louisville Zoo,Metro Government Operations,Contractual Services,Other Building Maintenance/Repair Services,,,,,General Fund,,,3536,929
2018,2017/06/26,1819882,103.5,COMSTOCK BROTHERS ELECTRIC CO LLC,2017/07/21,929312,Louisville Zoo,Metro Government Operations,Contractual Services,Other Building Maintenance/Repair Services,,,,,General Fund,,,103.5,930
2018,2017/06/26,1819837,5030,COMSTOCK BROTHERS ELECTRIC CO LLC,2017/07/21,929312,Louisville Zoo,Metro Government Operations,Contractual Services,Other Building Maintenance/Repair Services,,,,,General Fund,,,5030,931
2018,2017/06/26,1819988,1779,COMSTOCK BROTHERS ELECTRIC CO LLC,2017/07/18,928372,Louisville Zoo,Metro Government Operations,Contractual Services,Other Building Maintenance/Repair Services,,,,,General Fund,,,1779,932
2018,2017/06/27,1819995,315,COMSTOCK BROTHERS ELECTRIC CO LLC,2017/07/18,928372,Louisville Zoo,Metro Government Operations,Contractual Services,Other Building Maintenance/Repair Services,,,,,General Fund,,,315,933
2018,2017/06/26,1820003,103.5,COMSTOCK BROTHERS ELECTRIC CO LLC,2017/07/19,928588,Louisville Zoo,Metro Government Operations,Contractual Services,Other Building Maintenance/Repair Services,,,,,General Fund,,,103.5,934
2018,2017/06/27,1819604,950,COMSTOCK BROTHERS ELECTRIC CO LLC,2017/07/18,928372,Louisville Zoo,Metro Government Operations,Contractual Services,Other Building Maintenance/Repair Services,,,,,General Fund,,,950,935
2018,2017/06/26,1819965,180,COMSTOCK BROTHERS ELECTRIC CO LLC,2017/07/21,929312,Louisville Zoo,Metro Government Operations,Contractual Services,Other Building Maintenance/Repair Services,,,,,General Fund,,,180,936
2018,2017/06/26,1820024,460,COMSTOCK BROTHERS ELECTRIC CO LLC,2017/07/19,928588,Louisville Zoo,Metro Government Operations,Contractual Services,Other Building Maintenance/Repair Services,,,,,General Fund,,,460,937
2018,2017/06/27,1819962,3091,COMSTOCK BROTHERS ELECTRIC CO LLC,2017/07/24,929539,Louisville Zoo,Metro Government Operations,Contractual Services,Other Building Maintenance/Repair Services,,,,,General Fund,,,3091,938
2018,2017/06/14,1816221,1056,COMSTOCK BROTHERS ELECTRIC CO LLC,2017/07/19,928588,Louisville Zoo,Metro Government Operations,Contractual Services,Other Building Maintenance/Repair Services,,,,,General Fund,,,1056,939
2018,2017/06/21,1817118,5971.9,DUDE SOLUTIONS INC,2017/09/18,939179,Louisville Zoo,Metro Government Operations,Contractual Services,Other Building Maintenance/Repair Services,,,,,General Fund,,,5971.9,940
2018,2017/04/01,1813161,580,MADDEN ELEVATOR COMPANY,2017/07/06,926308,Louisville Zoo,Metro Government Operations,Contractual Services,Other Building Maintenance/Repair Services,,,,,General Fund,,,580,941
2018,2017/06/25,1820772,1600.37,REPUBLIC SERVICES OF KENTUCKY LLC,2017/07/25,929951,Louisville Zoo,Metro Government Operations,Contractual Services,Other Building Maintenance/Repair Services,,,,,General Fund,,,1600.37,942
2018,2017/06/14,1823890,7310,GREENSIDE OUTDOOR SERVICES INC,2017/07/20,929080,Louisville Zoo,Metro Government Operations,Contractual Services,Professional Services,,,,,General Fund,,,7310,943
2018,2017/06/26,1820576,891.25,SWEEP ALL INC,2017/07/10,926875,Louisville Zoo,Metro Government Operations,Contractual Services,Professional Services,,,,,General Fund,,,891.25,944
2018,2017/06/19,1819413,266.25,TRUGREEN LIMITED PARTNERSHIP,2017/07/12,927364,Louisville Zoo,Metro Government Operations,Contractual Services,Professional Services,,,,,General Fund,,,-266.25,945
2018,2017/06/19,1819413,266.25,TRUGREEN LIMITED PARTNERSHIP,2017/07/12,927364,Louisville Zoo,Metro Government Operations,Contractual Services,Professional Services,,,,,General Fund,,,266.25,946
2018,2017/06/19,1819413,266.25,TRUGREEN LIMITED PARTNERSHIP,2017/07/12,927364,Louisville Zoo,Metro Government Operations,Contractual Services,Professional Services,,,,,General Fund,,,266.25,947
2018,2017/05/16,1817787,254.6,TRUGREEN LIMITED PARTNERSHIP,2017/07/03,925885,Louisville Zoo,Metro Government Operations,Contractual Services,Professional Services,,,,,General Fund,,,254.6,948
2018,2017/05/02,1817688,254.6,TRUGREEN LIMITED PARTNERSHIP,2017/07/03,925885,Louisville Zoo,Metro Government Operations,Contractual Services,Professional Services,,,,,General Fund,,,254.6,949
2018,2017/05/30,1817836,254.6,TRUGREEN LIMITED PARTNERSHIP,2017/07/06,926353,Louisville Zoo,Metro Government Operations,Contractual Services,Professional Services,,,,,General Fund,,,254.6,950
2018,2017/05/09,1817838,254.6,TRUGREEN LIMITED PARTNERSHIP,2017/07/03,925885,Louisville Zoo,Metro Government Operations,Contractual Services,Professional Services,,,,,General Fund,,,254.6,951
2018,2017/05/23,1817819,254.6,TRUGREEN LIMITED PARTNERSHIP,2017/07/03,925885,Louisville Zoo,Metro Government Operations,Contractual Services,Professional Services,,,,,General Fund,,,254.6,952
2018,2017/06/07,1824403,254.6,TRUGREEN LIMITED PARTNERSHIP,2017/07/26,930228,Louisville Zoo,Metro Government Operations,Contractual Services,Professional Services,,,,,General Fund,,,254.6,953
2018,2017/06/27,1824426,254.6,TRUGREEN LIMITED PARTNERSHIP,2017/07/26,930228,Louisville Zoo,Metro Government Operations,Contractual Services,Professional Services,,,,,General Fund,,,-254.6,954
2018,2017/06/27,1824426,254.6,TRUGREEN LIMITED PARTNERSHIP,2017/07/26,930228,Louisville Zoo,Metro Government Operations,Contractual Services,Professional Services,,,,,General Fund,,,254.6,955
2018,2017/06/27,1824426,254.6,TRUGREEN LIMITED PARTNERSHIP,2017/07/26,930228,Louisville Zoo,Metro Government Operations,Contractual Services,Professional Services,,,,,General Fund,,,254.6,956
2018,2017/06/20,1824434,254.6,TRUGREEN LIMITED PARTNERSHIP,2017/07/28,930644,Louisville Zoo,Metro Government Operations,Contractual Services,Professional Services,,,,,General Fund,,,254.6,957
2018,2017/06/13,1824446,254.6,TRUGREEN LIMITED PARTNERSHIP,2017/07/26,930228,Louisville Zoo,Metro Government Operations,Contractual Services,Professional Services,,,,,General Fund,,,254.6,958
2018,2017/06/05,1816072,1296.25,BOB RAY CO INC,2017/07/06,926265,Louisville Zoo,Metro Government Operations,Contractual Services,Tree Removal Services,,,,,General Fund,,,1296.25,959
2018,2017/06/16,1820025,6356,DEBRA KUEMPEL INC,2017/07/11,927050,Louisville Zoo,Metro Government Operations,Supplies,Animal Services Department Maintenance and Supplies,,,,,General Fund,,,6356,960
2018,2017/06/30,1820010,9832,DEBRA KUEMPEL INC,2017/07/11,927050,Louisville Zoo,Metro Government Operations,Supplies,Animal Services Department Maintenance and Supplies,,,,,General Fund,,,9832,961
2018,2016/11/08,1818742,299,COMSTOCK BROTHERS ELECTRIC CO LLC,2017/07/06,926272,Louisville Zoo,Metro Government Operations,Supplies,Audio/Visual Supplies,,,,,General Fund,,,299,962
2018,2016/11/08,1818904,318,COMSTOCK BROTHERS ELECTRIC CO LLC,2017/07/06,926272,Louisville Zoo,Metro Government Operations,Supplies,Audio/Visual Supplies,,,,,General Fund,,,318,963
2018,2017/06/29,1820410,1851.04,FISHEL COMPANY,2017/07/26,930134,Louisville Zoo,Metro Government Operations,Supplies,Audio/Visual Supplies,,,,,General Fund,,,254.25,964
2018,2017/06/13,1821665,72.46,CARDINAL CARRYOR INC,2017/07/18,928367,Louisville Zoo,Metro Government Operations,Supplies,Automotive Parts & Accessories,,,,,General Fund,,,72.46,965
2018,2017/04/14,1821668,574.84,CARDINAL CARRYOR INC,2017/07/18,928367,Louisville Zoo,Metro Government Operations,Supplies,Automotive Parts & Accessories,,,,,General Fund,,,574.84,966
2018,2017/06/15,1825302,19.98,GENUINE PARTS COMPANY,2017/07/25,929872,Louisville Zoo,Metro Government Operations,Supplies,Automotive Parts & Accessories,,,,,General Fund,,,19.98,967
2018,2017/06/23,1818994,51.48,GENUINE PARTS COMPANY,2017/07/10,926784,Louisville Zoo,Metro Government Operations,Supplies,Automotive Parts & Accessories,,,,,General Fund,,,51.48,968
2018,2017/06/22,1819811,667.88,GRAINGER INDUSTRIAL SUPPLY,2017/07/17,928182,Louisville Zoo,Metro Government Operations,Supplies,Building Maintenance Supplies,,,,,General Fund,,,667.88,969
2018,2017/06/07,1813282,676.61,GRAINGER INDUSTRIAL SUPPLY,2017/07/03,925814,Louisville Zoo,Metro Government Operations,Supplies,Building Maintenance Supplies,,,,,General Fund,,,676.61,970
2018,2017/06/15,1815673,161.8,GRAINGER INDUSTRIAL SUPPLY,2017/07/10,926787,Louisville Zoo,Metro Government Operations,Supplies,Building Maintenance Supplies,,,,,General Fund,,,161.8,971
2018,2017/06/13,1816067,1399.27,GRAINGER INDUSTRIAL SUPPLY,2017/07/10,926787,Louisville Zoo,Metro Government Operations,Supplies,Building Maintenance Supplies,,,,,General Fund,,,1399.27,972
2018,2017/06/15,1816905,83.68,GRAINGER INDUSTRIAL SUPPLY,2017/07/10,926787,Louisville Zoo,Metro Government Operations,Supplies,Building Maintenance Supplies,,,,,General Fund,,,83.68,973
2018,2017/06/16,1819079,516.8,GRAINGER INDUSTRIAL SUPPLY,2017/07/11,927059,Louisville Zoo,Metro Government Operations,Supplies,Building Maintenance Supplies,,,,,General Fund,,,516.8,974
2018,2017/06/16,1819531,4.8,GRAINGER INDUSTRIAL SUPPLY,2017/07/11,927059,Louisville Zoo,Metro Government Operations,Supplies,Building Maintenance Supplies,,,,,General Fund,,,4.8,975
2018,2017/03/20,1820740,571.16,LOWES COMPANIES INC,2017/07/11,927076,Louisville Zoo,Metro Government Operations,Supplies,Building Maintenance Supplies,,,,,General Fund,,,571.16,976
2018,2017/06/20,1820745,266.03,LOWES COMPANIES INC,2017/07/11,927076,Louisville Zoo,Metro Government Operations,Supplies,Building Maintenance Supplies,,,,,General Fund,,,266.03,977
2018,2017/06/20,1821292,197.53,LOWES COMPANIES INC,2017/07/12,927326,Louisville Zoo,Metro Government Operations,Supplies,Building Maintenance Supplies,,,,,General Fund,,,197.53,978
2018,2017/06/30,1821293,213.25,LOWES COMPANIES INC,2017/07/12,927326,Louisville Zoo,Metro Government Operations,Supplies,Building Maintenance Supplies,,,,,General Fund,,,213.25,979
2018,2017/04/25,1825153,136.57,MASTERS SUPPLY INC,2017/07/27,930388,Louisville Zoo,Metro Government Operations,Supplies,Building Maintenance Supplies,,,,,General Fund,,,136.57,980
2018,2017/05/03,1825162,491.27,MASTERS SUPPLY INC,2017/07/27,930388,Louisville Zoo,Metro Government Operations,Supplies,Building Maintenance Supplies,,,,,General Fund,,,491.27,981
2018,2017/04/17,1825164,27.95,MASTERS SUPPLY INC,2017/08/10,932916,Louisville Zoo,Metro Government Operations,Supplies,Building Maintenance Supplies,,,,,General Fund,,,-27.95,982
2018,2017/04/17,1825164,27.95,MASTERS SUPPLY INC,2017/08/10,932916,Louisville Zoo,Metro Government Operations,Supplies,Building Maintenance Supplies,,,,,General Fund,,,27.95,983
2018,2017/04/17,1825164,27.95,MASTERS SUPPLY INC,2017/08/10,932916,Louisville Zoo,Metro Government Operations,Supplies,Building Maintenance Supplies,,,,,General Fund,,,27.95,984
2018,2017/05/15,1821497,3013.25,PENROD LUMBER CO INC,2017/07/19,928706,Louisville Zoo,Metro Government Operations,Supplies,Building Maintenance Supplies,,,,,General Fund,,,3013.25,985
2018,2017/06/12,1814417,48.37,PLUMBERS SUPPLY COMPANY,2017/07/03,925938,Louisville Zoo,Metro Government Operations,Supplies,Building Maintenance Supplies,,,,,General Fund,,,48.37,986
2018,2017/06/10,1816003,48.84,RECREONICS INC,2017/07/05,926114,Louisville Zoo,Metro Government Operations,Supplies,Chemical Supplies,,,,,General Fund,,,48.84,987
2018,2017/07/03,1820248,1967.46,GRAINGER INDUSTRIAL SUPPLY,2017/07/28,930562,Louisville Zoo,Metro Government Operations,Supplies,Electrical supplies,,,,,General Fund,,,1967.46,988
2018,2017/02/27,1826848,114.58,GRAINGER INDUSTRIAL SUPPLY,2017/07/31,930846,Louisville Zoo,Metro Government Operations,Supplies,Electrical supplies,,,,,General Fund,,,114.58,989
2018,2017/02/06,1780824,490,FRANK OTTE NURSERY OF BARDSTOWN RD INC,2017/08/10,932896,Louisville Zoo,Metro Government Operations,Supplies,Horticultural/Landscaping Supplies,,,,,General Fund,,,490,990
2018,2017/06/22,1817993,83.78,KEEP U GROWING LLC,2017/07/17,928197,Louisville Zoo,Metro Government Operations,Supplies,Horticultural/Landscaping Supplies,,,,,General Fund,,,83.78,991
2018,2017/05/04,1804370,37.4,WOLF CREEK COMPANY INC,2017/09/19,939554,Louisville Zoo,Metro Government Operations,Supplies,Horticultural/Landscaping Supplies,,,,,General Fund,,,37.4,992
2018,2017/02/24,1805054,831.36,AMERICAS FINEST FILTERS INC,2017/07/18,928353,Louisville Zoo,Metro Government Operations,Supplies,HVAC Parts & Supplies,,,,,General Fund,,,831.36,993
2018,2016/11/25,1759210,585.96,GRAINGER INDUSTRIAL SUPPLY,2017/07/31,930846,Louisville Zoo,Metro Government Operations,Supplies,HVAC Parts & Supplies,,,,,General Fund,,,585.96,994
2018,2017/06/06,1812408,117.18,GRAINGER INDUSTRIAL SUPPLY,2017/07/03,925814,Louisville Zoo,Metro Government Operations,Supplies,HVAC Parts & Supplies,,,,,General Fund,,,117.18,995
2018,2017/06/06,1814216,28.68,SWH SUPPLY COMPANY INC,2017/07/03,925942,Louisville Zoo,Metro Government Operations,Supplies,HVAC Parts & Supplies,,,,,General Fund,,,15.45,996
2018,2017/06/06,1814216,28.68,SWH SUPPLY COMPANY INC,2017/07/03,925942,Louisville Zoo,Metro Government Operations,Supplies,HVAC Parts & Supplies,,,,,General Fund,,,13.23,997
2018,2017/06/16,1819152,180.86,AM ELECTRIC CO INC,2017/07/11,927120,Louisville Zoo,Metro Government Operations,Supplies,Light Bulbs,,,,,General Fund,,,180.86,998
2018,2017/06/15,1823128,109.6,CARDINAL ICE EQUIPMENT INC,2017/07/24,929532,Louisville Zoo,Metro Government Operations,Supplies,Operating Equipment Maintenance Supplies,,,,,General Fund,,,109.6,999
2018,2017/06/05,1825676,208,MEE INDUSTRIES INC,2017/07/31,930874,Louisville Zoo,Metro Government Operations,Supplies,Operating Equipment Maintenance Supplies,,,,,General Fund,,,208,1000
2018,2017/06/21,1819744,81.52,GRAINGER INDUSTRIAL SUPPLY,2017/07/28,930562,Louisville Zoo,Metro Government Operations,Supplies,Safety Supplies,,,,,General Fund,,,81.52,1001
2018,2017/06/11,1817123,60.24,EARTH FIRST OF KENTUCKIANA INC,2017/07/06,926282,Louisville Zoo,Metro Government Operations,Supplies,Sand/Gravel Materials,,,,,General Fund,,,60.24,1002
2018,2017/07/17,1824346,17805.43,WEBER GROUP INC,2017/07/26,930238,Louisville Zoo,Metro Government Operations,Supplies,Signs/ Decorations/ Flags,,,,,General Fund,,,17805.43,1003
2018,2017/06/12,1814867,282.83,GRAINGER INDUSTRIAL SUPPLY,2017/07/07,926591,Louisville Zoo,Metro Government Operations,Supplies,Tools/Implements,,,,,General Fund,,,282.83,1004
2018,2017/07/05,1821271,107132.39,LOUISVILLE GAS & ELECTRIC COMPANY,2017/07/12,927323,Louisville Zoo,Metro Government Operations,Contractual Services,Electrical Expenses,,,,,General Fund,,,93564,1005
2018,2017/07/05,1821271,107132.39,LOUISVILLE GAS & ELECTRIC COMPANY,2017/07/12,927323,Louisville Zoo,Metro Government Operations,Contractual Services,Gas/Electric Utility Services,,,,,General Fund,,,13568.39,1006
2018,2017/05/16,1808392,559.5,KEYSTOPS LLC,2017/08/14,933376,Louisville Zoo,Metro Government Operations,Supplies,Automotive Fuel,,,,,General Fund,,,559.5,1007
2018,2017/06/30,1820159,551.2,KEYSTOPS LLC,2017/07/25,930009,Louisville Zoo,Metro Government Operations,Supplies,Automotive Fuel,,,,,General Fund,,,551.2,1008
2018,2017/06/16,1819229,910,KEYSTOPS LLC,2017/07/11,927123,Louisville Zoo,Metro Government Operations,Supplies,Automotive Fuel,,,,,General Fund,,,910,1009
2018,2017/06/08,1815455,100,COMMONWEALTH THEATRE CENTER,2017/07/03,925794,Louisville Free Public Library,Metro Government Operations,Contractual Services,Contractual Non Professional Service Agreements,,,,,General Fund,,,100,1010
2018,2017/06/28,1821006,125,GEORGE HALITZKA,2017/07/24,929560,Louisville Free Public Library,Metro Government Operations,Contractual Services,Contractual Non Professional Service Agreements,,,,,General Fund,,,95,1011
2018,2017/06/28,1821006,125,GEORGE HALITZKA,2017/07/24,929560,Louisville Free Public Library,Metro Government Operations,Contractual Services,Contractual Non Professional Service Agreements,,,,,General Fund,,,30,1012
2018,2017/06/29,1821807,200,HAROLD D MITCHELL,2017/07/28,930567,Louisville Free Public Library,Metro Government Operations,Contractual Services,Contractual Non Professional Service Agreements,,,,,General Fund,,,100,1013
2018,2017/06/21,1818915,73,JULIA ENGLEHARDT,2017/07/05,926080,Louisville Free Public Library,Metro Government Operations,Contractual Services,Contractual Non Professional Service Agreements,,,,,General Fund,,,73,1014
2018,2017/06/29,1820564,100,KELLY CREAGH,2017/07/10,926806,Louisville Free Public Library,Metro Government Operations,Contractual Services,Contractual Non Professional Service Agreements,,,,,General Fund,,,100,1015
2018,2017/06/03,1825105,100,KEVLEN GOODNER,2017/07/25,929904,Louisville Free Public Library,Metro Government Operations,Contractual Services,Contractual Non Professional Service Agreements,,,,,General Fund,,,100,1016
2018,2017/06/26,1818563,100,LARRY ELLIOTT,2017/07/21,929343,Louisville Free Public Library,Metro Government Operations,Contractual Services,Contractual Non Professional Service Agreements,,,,,General Fund,,,100,1017
2018,2017/06/21,1818184,175,RAPTOR REHABILITATION OF KY INC,2017/07/17,928240,Louisville Free Public Library,Metro Government Operations,Contractual Services,Contractual Non Professional Service Agreements,,,,,General Fund,,,65,1018
2018,2017/06/24,1819565,175,RAPTOR REHABILITATION OF KY INC,2017/07/19,928713,Louisville Free Public Library,Metro Government Operations,Contractual Services,Contractual Non Professional Service Agreements,,,,,General Fund,,,175,1019
2018,2017/06/06,1814565,125,SPECTRUM SCIENCE GROUP INC,2017/07/03,925874,Louisville Free Public Library,Metro Government Operations,Contractual Services,Contractual Non Professional Service Agreements,,,,,General Fund,,,75,1020
2018,2017/06/20,1817661,9811.9,BAKER AND TAYLOR INC,2017/07/17,928142,Louisville Free Public Library,Metro Government Operations,Supplies,Books,,,,,General Fund,,,9811.9,1021
2018,2017/06/02,1813834,136.06,HORNER NOVELTY COMPANY INC,2017/08/04,931795,Louisville Free Public Library,Metro Government Operations,Supplies,Educational/Training Supplies,,,,,General Fund,,,136.06,1022
2018,2017/06/28,1821652,399.95,KB INDUSTRIES INC,2017/07/28,930584,Louisville Free Public Library,Metro Government Operations,Supplies,Educational/Training Supplies,,,,,General Fund,,,73.99,1023
2018,2017/06/08,1814023,145.81,MILLCRAFT PAPER CO,2017/07/03,925845,Louisville Free Public Library,Metro Government Operations,Supplies,Educational/Training Supplies,,,,,General Fund,,,112.63,1024
2018,2017/06/08,1814023,145.81,MILLCRAFT PAPER CO,2017/07/03,925845,Louisville Free Public Library,Metro Government Operations,Supplies,Educational/Training Supplies,,,,,General Fund,,,33.18,1025
2018,2017/05/12,1822505,71.09,PROFORMA DOUBLE DOG DARE DBA DOUBLE DOG DARE LLC,2017/07/26,930188,Louisville Free Public Library,Metro Government Operations,Supplies,Educational/Training Supplies,,,,,General Fund,,,71.9,1026
2018,2017/05/12,1822505,71.09,PROFORMA DOUBLE DOG DARE DBA DOUBLE DOG DARE LLC,2017/07/26,930188,Louisville Free Public Library,Metro Government Operations,Supplies,Educational/Training Supplies,,,,,General Fund,,,-71.9,1027
2018,2017/05/12,1822505,71.09,PROFORMA DOUBLE DOG DARE DBA DOUBLE DOG DARE LLC,2017/07/26,930188,Louisville Free Public Library,Metro Government Operations,Supplies,Educational/Training Supplies,,,,,General Fund,,,71.09,1028
2018,2017/06/30,1822901,2375,VIVID IMPACT CORPORATION LLC,2017/07/25,929986,Louisville Free Public Library,Metro Government Operations,Supplies,Educational/Training Supplies,,,,,General Fund,,,2375,1029
2018,2017/07/06,1822230,265,ABNER JOHNSON ENTERPRISES LLC,2017/07/31,930787,Louisville Free Public Library,Metro Government Operations,Supplies,Food,,,,,General Fund,,,265,1030
2018,2016/12/05,1762447,196.99,CHICK-FIL-A JEFFERSON COMMONS,2017/09/18,939167,Louisville Free Public Library,Metro Government Operations,Supplies,Food,,,,,General Fund,,,-208.81,1031
2018,2016/12/05,1762447,196.99,CHICK-FIL-A JEFFERSON COMMONS,2017/09/18,939167,Louisville Free Public Library,Metro Government Operations,Supplies,Food,,,,,General Fund,,,196.99,1032
2018,2016/12/05,1762447,196.99,CHICK-FIL-A JEFFERSON COMMONS,2017/09/18,939167,Louisville Free Public Library,Metro Government Operations,Supplies,Food,,,,,General Fund,,,208.81,1033
2018,2017/07/06,1821583,38.68,KROGER CO,2017/07/31,930861,Louisville Free Public Library,Metro Government Operations,Supplies,Food,,,,,General Fund,,,38.68,1034
2018,2017/05/01,1804486,-33.22,KUHLMANN ENTERPRISES INC,2017/07/14,927818,Louisville Free Public Library,Metro Government Operations,Supplies,Printing/Copier/Reproduction Supplies,,,,,General Fund,,,-33.22,1035
2018,2017/06/16,1819433,199.95,KUHLMANN ENTERPRISES INC,2017/07/14,927818,Louisville Free Public Library,Metro Government Operations,Supplies,Printing/Copier/Reproduction Supplies,,,,,General Fund,,,91.22,1036
2018,2017/06/12,1825207,319.75,KUHLMANN ENTERPRISES INC,2017/08/01,931170,Louisville Free Public Library,Metro Government Operations,Supplies,Printing/Copier/Reproduction Supplies,,,,,General Fund,,,137.47,1037
2018,2017/06/25,1818122,10530,EIGHT ELEVEN GROUP LLC,2017/07/20,929145,Department of Information Technology,Metro Government Operations,Contractual Services,Professional Services,,,,,General Fund,,,10530,1038
2018,2017/06/06,1812827,5999.91,ONE NECK IT SERVICES CORPORATION,2017/07/03,925852,Department of Information Technology,Metro Government Operations,Contractual Services,Professional Services,,,,,General Fund,,,5999.91,1039
2018,2016/07/07,1815472,184,POMEROY IT SOLUTIONS,2017/07/26,930186,Department of Information Technology,Metro Government Operations,Contractual Services,Professional Services,,,,,General Fund,,,184,1040
2018,2017/06/15,1816909,101.7,CDW LLC,2017/07/10,926754,Codes and Regulations,Metro Government Operations,Contractual Services,Air Cards,,,,,General Fund,,,101.7,1041
2018,2017/06/12,1820161,2276.68,VERIZON WIRELESS,2017/07/07,926658,Codes and Regulations,Metro Government Operations,Contractual Services,Air Cards,,,,,General Fund,,,40.01,1042
2018,2017/06/12,1820161,2276.68,VERIZON WIRELESS,2017/07/07,926658,Codes and Regulations,Metro Government Operations,Contractual Services,Air Cards,,,,,General Fund,,,250,1043
2018,2017/06/12,1820161,2276.68,VERIZON WIRELESS,2017/07/07,926658,Codes and Regulations,Metro Government Operations,Contractual Services,Air Cards,,,,,General Fund,,,1666.67,1044
2018,2017/06/12,1820161,2276.68,VERIZON WIRELESS,2017/07/07,926658,Codes and Regulations,Metro Government Operations,Contractual Services,Air Cards,,,,,General Fund,,,320,1045
2018,2017/06/23,1821740,223.62,CDW LLC,2017/07/18,928369,Codes and Regulations,Metro Government Operations,Contractual Services,Cellular Telephone Services,,,,,General Fund,,,49.7,1046
2018,2017/06/23,1821740,223.62,CDW LLC,2017/07/18,928369,Codes and Regulations,Metro Government Operations,Contractual Services,Cellular Telephone Services,,,,,General Fund,,,86.96,1047
2018,2017/06/16,1820893,228.33,CDW LLC,2017/07/14,927768,Codes and Regulations,Metro Government Operations,Contractual Services,Cellular Telephone Services,,,,,General Fund,,,76.11,1048
2018,2017/06/16,1820893,228.33,CDW LLC,2017/07/14,927768,Codes and Regulations,Metro Government Operations,Contractual Services,Cellular Telephone Services,,,,,General Fund,,,76.11,1049
2018,2017/06/13,1815359,46.21,CDW LLC,2017/07/10,926754,Codes and Regulations,Metro Government Operations,Contractual Services,Cellular Telephone Services,,,,,General Fund,,,46.21,1050
2018,2017/06/15,1817005,1399.17,CDW LLC,2017/07/28,930535,Codes and Regulations,Metro Government Operations,Contractual Services,Cellular Telephone Services,,,,,General Fund,,,466.39,1051
2018,2017/06/15,1817005,1399.17,CDW LLC,2017/07/28,930535,Codes and Regulations,Metro Government Operations,Contractual Services,Cellular Telephone Services,,,,,General Fund,,,466.39,1052
2018,2017/06/21,1817194,139,DELL MARKETING LP,2017/07/17,928169,Codes and Regulations,Metro Government Operations,Contractual Services,Equipment Rental,,,,,General Fund,,,139,1053
2018,2017/07/07,1821617,50,GLEN STILLINGS,2017/07/14,927794,Codes and Regulations,Metro Government Operations,Contractual Services,License Renewal,,,,,General Fund,,,50,1054
